account_party,address,code,date,document_number,expense_code_name,expense_code_name_short,id,party_cell,party_cell_code,party_cell_geoobject,purpose,source_bank_account_number,source_bank_account_type,sum,target_legal_personality,target_legal_personality_code,target_type
НАРОДНИЙ ФРОНТ,"Харківська область, Ізюм, вулиця Соборна, 6",49,2016-12-29,845,Публікування матеріалів у друкованих ЗМІ,Реклама в друкованих ЗМІ,389834,Центральний офіс,39181335,Україна,Оплата за розміщення рекламних матеріалів в газеті,26004100001777,state,7844.00,"ТОВ ""Обрії 1919""",02476600,юридична особа
НАРОДНИЙ ФРОНТ,"Одеська область, Подільськ, проспект Шевченка, 20",49,2016-12-29,848,Публікування матеріалів у друкованих ЗМІ,Реклама в друкованих ЗМІ,389197,Центральний офіс,39181335,Україна,"Оплата за розміщення рекламних матеріалів в газеті ""Слово і діло""",26004100001777,state,5000.00,Вихованець Михайло Олексійович,1605800411,фізична особа
НАРОДНИЙ ФРОНТ,"Дніпропетровська область, Новомосковськ",79,2016-12-29,850,"Оренда будинків і приміщень та експлуатаційні витрати (прибирання, страхування орендованих будинків, охорона, сигналізація, ремонт, вивіз сміття, тощо)",Оренда нерухомості,389196,Центральний офіс,39181335,Україна,Орендна плата за грудень 2016р.,26004100001777,state,813.03,Шаркун Олександр Григорович,,фізична особа
НАРОДНИЙ ФРОНТ,"Сумська область, Ромни",79,2016-12-29,849,"Оренда будинків і приміщень та експлуатаційні витрати (прибирання, страхування орендованих будинків, охорона, сигналізація, ремонт, вивіз сміття, тощо)",Оренда нерухомості,389195,Центральний офіс,39181335,Україна,Орендна плата за грудень 2016р.,26004100001777,state,1851.50,Василенко Олена Миколаївна,,фізична особа
НАРОДНИЙ ФРОНТ,"Одеська область, Одеса",79,2016-12-29,847,"Оренда будинків і приміщень та експлуатаційні витрати (прибирання, страхування орендованих будинків, охорона, сигналізація, ремонт, вивіз сміття, тощо)",Оренда нерухомості,389194,Центральний офіс,39181335,Україна,Орендна плата за грудень 2016р.,26004100001777,state,2012.50,Крук Іван Данилович,,фізична особа
НАРОДНИЙ ФРОНТ,"Харківська область, Первомайський",79,2016-12-29,846,"Оренда будинків і приміщень та експлуатаційні витрати (прибирання, страхування орендованих будинків, охорона, сигналізація, ремонт, вивіз сміття, тощо)",Оренда нерухомості,389193,Центральний офіс,39181335,Україна,Орендна плата за грудень 2016р.,26004100001777,state,2012.50,Погрецький Микола Іванович,,фізична особа
НАРОДНИЙ ФРОНТ,"Дніпропетровська область, Новомосковськ",79,2016-12-29,219,"Оренда будинків і приміщень та експлуатаційні витрати (прибирання, страхування орендованих будинків, охорона, сигналізація, ремонт, вивіз сміття, тощо)",Оренда нерухомості,387727,Центральний офіс,39181335,Україна,Орендна плата за грудень 2016р.,26005300002745,current,190.00,Шаркун Олександр Григорович,,фізична особа
НАРОДНИЙ ФРОНТ,"Черкаська обл., Шполянський р-н, с. Мар'янівка",79,2016-12-29,217,"Оренда будинків і приміщень та експлуатаційні витрати (прибирання, страхування орендованих будинків, охорона, сигналізація, ремонт, вивіз сміття, тощо)",Оренда нерухомості,387726,Центральний офіс,39181335,Україна,Орендна плата за грудень 2016р.,26005300002745,current,1680.00,Лупан Руслан Олександрович,3436914612,фізична особа
НАРОДНИЙ ФРОНТ,"Львівська область, Сокальський район, Сокаль",79,2016-12-28,844,"Оренда будинків і приміщень та експлуатаційні витрати (прибирання, страхування орендованих будинків, охорона, сигналізація, ремонт, вивіз сміття, тощо)",Оренда нерухомості,389192,Центральний офіс,39181335,Україна,Орендна плата за грудень 2016р.,26004100001777,state,2817.50,Стефанишин Андрій Ярославович,,фізична особа
НАРОДНИЙ ФРОНТ,"Київ, вулиця Госпітальна, 12Г",70,2016-12-27,772579570,Банківські послуги,Інші витрати,389833,Центральний офіс,39181335,Україна,Плата за виконання операцій за допомогою системи дистанційного обслуговування за грудень 2016 р.,26004100001777,state,70.00,"АТ ""Ощадбанк""",00032129,юридична особа
НАРОДНИЙ ФРОНТ,"Київ, вулиця Госпітальна, 12Г",70,2016-12-27,772579571,Банківські послуги,Інші витрати,389832,Центральний офіс,39181335,Україна,Плата за обслуговування поточного рахунку за за грудень 2016 р.,26004100001777,state,120.00,"АТ ""Ощадбанк""",00032129,юридична особа
НАРОДНИЙ ФРОНТ,"Київ, бульвар Дружби Народів, 8А",72,2016-12-26,508,"Придбання, ремонт офісної техніки та програмного забезпечення (Бухгалтерські програми, Ліга.закон, домени)",Придбання офісної техніки та програмного забезпечення,389831,Центральний офіс,39181335,Україна,Плата за ноутбуки,26004100001777,state,279960.00,"ТОВ ""Розетка.УА""",37193071,юридична особа
НАРОДНИЙ ФРОНТ,"Київ, вулиця Хрещатик, 22",75,2016-12-26,412,Поштові послуги та поширення друкованих матеріалів,Поштові послуги та поширення друкованих матеріалів,389830,Центральний офіс,39181335,Україна,Оплата за пересилання поштових відправлень,26004100001777,state,66000.00,"Київська міська дирекція ПАТ ""Укрпошта""",01189979,юридична особа
НАРОДНИЙ ФРОНТ,Київ,63,2016-12-26,443,Податок на доходи,Податкові платежі,389829,Центральний офіс,39181335,Україна,"Податок на доходи фізичних осіб, утриманий податковим агентом",26004100001777,state,728.62,УДКСУ в Дарницькому районі,38021179,юридична особа
НАРОДНИЙ ФРОНТ,Київ,63,2016-12-26,442,Податок на доходи,Податкові платежі,389828,Центральний офіс,39181335,Україна,"Податок на доходи фізичних осіб, утриманий податковим агентом",26004100001777,state,8743.50,УДКСУ в Дарницькому районі,38021179,юридична особа
НАРОДНИЙ ФРОНТ,Київ,62,2016-12-26,835,Сплата ЄСВ,Податкові платежі,389827,Центральний офіс,39181335,Україна,Єдиний соціальний внесок,26004100001777,state,1171540.00,ДПІ у Дарницькому р-ні м. Києва,39479227,юридична особа
НАРОДНИЙ ФРОНТ,Київ,61,2016-12-26,833,Військовий збір,Податкові платежі,389826,Центральний офіс,39181335,Україна,"Військовий збір, утриманий податковим агентом",26004100001777,state,148.89,УДКСУ в Дарницькому районі,38021179,юридична особа
НАРОДНИЙ ФРОНТ,Київ,63,2016-12-26,832,Податок на доходи,Податкові платежі,389825,Центральний офіс,39181335,Україна,"Податок на доходи фізичних осіб, утриманий податковим агентом",26004100001777,state,1786.68,УДКСУ в Дарницькому районі,38021179,юридична особа
НАРОДНИЙ ФРОНТ,Київ,61,2016-12-26,837,Військовий збір,Податкові платежі,389824,Центральний офіс,39181335,Україна,"Військовий збір, утриманий податковим агентом",26004100001777,state,79877.73,УДКСУ в Дарницькому районі,38021179,юридична особа
НАРОДНИЙ ФРОНТ,Київ,63,2016-12-26,836,Податок на доходи,Податкові платежі,389823,Центральний офіс,39181335,Україна,"Податок на доходи фізичних осіб, утриманий податковим агентом",26004100001777,state,958532.73,УДКСУ в Дарницькому районі,38021179,юридична особа
НАРОДНИЙ ФРОНТ,"Київ, вулиця Братів Зерових, 14В, 35",81,2016-12-26,834,Аудит,"Гонорари, в тому числі за надані консультаційні послуги",389822,Центральний офіс,39181335,Україна,Плата за аудиторські (консультаційні) послуги,26004100001777,state,168300.00,"ТОВ ""Міжнародна аудиторська група""",23510442,юридична особа
НАРОДНИЙ ФРОНТ,"Київ, вулиця Госпітальна, 12Г",70,2016-12-26,839,Банківські послуги,Інші витрати,389821,Центральний офіс,39181335,Україна,Комісія банку,26004100001777,state,21426.08,"АТ ""Ощадбанк""",00032129,юридична особа
НАРОДНИЙ ФРОНТ,"Київ, вулиця Межигірська, 5, 18",72,2016-12-26,842,"Придбання, ремонт офісної техніки та програмного забезпечення (Бухгалтерські програми, Ліга.закон, домени)",Придбання офісної техніки та програмного забезпечення,389820,Центральний офіс,39181335,Україна,Оплата за програму 1с:Бухгалтерія 8 для України та інформаційно,26004100001777,state,8892.00,"ТОВ ""Ц.І.Т.""",37037811,юридична особа
НАРОДНИЙ ФРОНТ,"Київ, вулиця Кирилівська, 23",51,2016-12-26,805,Оплата ефірного часу на ТБ,Телереклама,389819,Центральний офіс,39181335,Україна,Оплата за розміщення реклами на каналах телебачення 1+1 та 2+2,26004100001777,state,1124838.00,"ТОВ ""Глобал медіа груп""",35446622,юридична особа
НАРОДНИЙ ФРОНТ,"Херсонська область, Каховка, вулиця Олеся Гончара, 2",79,2016-12-26,413,"Оренда будинків і приміщень та експлуатаційні витрати (прибирання, страхування орендованих будинків, охорона, сигналізація, ремонт, вивіз сміття, тощо)",Оренда нерухомості,389818,Центральний офіс,39181335,Україна,Орендна плата за грудень 2016р.,26004100001777,state,950.00,"ТОВ ""Південукрводбуд""",35668126,юридична особа
НАРОДНИЙ ФРОНТ,"Херсонська область, Каховка, вулиця Олеся Гончара, 2",79,2016-12-26,414,"Оренда будинків і приміщень та експлуатаційні витрати (прибирання, страхування орендованих будинків, охорона, сигналізація, ремонт, вивіз сміття, тощо)",Оренда нерухомості,389817,Центральний офіс,39181335,Україна,Відшкодування витрат по опаленню за грудень 2016р.,26004100001777,state,846.00,"ТОВ ""Південукрводбуд""",35668126,юридична особа
НАРОДНИЙ ФРОНТ,"Херсонська область, Горностаївський район, Горностаївка, вулиця Покровська, 133",79,2016-12-26,415,"Оренда будинків і приміщень та експлуатаційні витрати (прибирання, страхування орендованих будинків, охорона, сигналізація, ремонт, вивіз сміття, тощо)",Оренда нерухомості,389816,Центральний офіс,39181335,Україна,Орендна плата за грудень 2016р.,26004100001777,state,21.23,Горностаївська селищна рада,04400788,юридична особа
НАРОДНИЙ ФРОНТ,"Житомирська область, Пулинський район, Пулини, провулок Базарний",79,2016-12-26,416,"Оренда будинків і приміщень та експлуатаційні витрати (прибирання, страхування орендованих будинків, охорона, сигналізація, ремонт, вивіз сміття, тощо)",Оренда нерухомості,389815,Центральний офіс,39181335,Україна,Орендна плата за грудень 2016р.,26004100001777,state,1200.00,"Дочірне підприємство ""Кооперативний ринок"" Червоноармійського районного споживчого товариства",20420678,юридична особа
НАРОДНИЙ ФРОНТ,"Сумська область, Краснопільський район, Краснопілля, вулиця Вокзальна, 26",79,2016-12-26,417,"Оренда будинків і приміщень та експлуатаційні витрати (прибирання, страхування орендованих будинків, охорона, сигналізація, ремонт, вивіз сміття, тощо)",Оренда нерухомості,389814,Центральний офіс,39181335,Україна,Орендна плата за грудень 2016р.,26004100001777,state,700.00,"ФГ ""Колос""",23998165,юридична особа
НАРОДНИЙ ФРОНТ,"Київ, вулиця Єжи Ґедройця, 16",79,2016-12-26,418,"Оренда будинків і приміщень та експлуатаційні витрати (прибирання, страхування орендованих будинків, охорона, сигналізація, ремонт, вивіз сміття, тощо)",Оренда нерухомості,389813,Центральний офіс,39181335,Україна,Орендна плата за грудень 2016р.,26004100001777,state,4200.00,"ТОВ ""Ніка-Нор""",31863930,юридична особа
НАРОДНИЙ ФРОНТ,"Миколаївська область, Казанківський район, Казанка, вулиця Миру, 198",79,2016-12-26,420,"Оренда будинків і приміщень та експлуатаційні витрати (прибирання, страхування орендованих будинків, охорона, сигналізація, ремонт, вивіз сміття, тощо)",Оренда нерухомості,389812,Центральний офіс,39181335,Україна,Орендна плата за грудень 2016р.,26004100001777,state,1800.00,Казанківський районний спортивно-технічний клуб,02717564,юридична особа
НАРОДНИЙ ФРОНТ,"Чернігівська область, Сосницький район, Сосниця, вулиця Виноградського, 22",79,2016-12-26,422,"Оренда будинків і приміщень та експлуатаційні витрати (прибирання, страхування орендованих будинків, охорона, сигналізація, ремонт, вивіз сміття, тощо)",Оренда нерухомості,389811,Центральний офіс,39181335,Україна,Орендна плата за грудень 2016р.,26004100001777,state,1800.00,Сосницька районна спілка споживчих товариств,01775105,юридична особа
НАРОДНИЙ ФРОНТ,"Чернігівська область, Срібнянський район, Срібне, вул. Незалежності",79,2016-12-26,423,"Оренда будинків і приміщень та експлуатаційні витрати (прибирання, страхування орендованих будинків, охорона, сигналізація, ремонт, вивіз сміття, тощо)",Оренда нерухомості,389810,Центральний офіс,39181335,Україна,Орендна плата за грудень 2016р.,26004100001777,state,2500.00,Срібнянське районне споживче товариство,01775128,юридична особа
НАРОДНИЙ ФРОНТ,"Дніпропетровська область, Петропавлівський район, Петропавлівка",79,2016-12-26,424,"Оренда будинків і приміщень та експлуатаційні витрати (прибирання, страхування орендованих будинків, охорона, сигналізація, ремонт, вивіз сміття, тощо)",Оренда нерухомості,389809,Центральний офіс,39181335,Україна,Орендна плата за грудень 2016р.,26004100001777,state,584.00,"КП ""Петропавлівська районна дирекція кіновідеомереж""",02406261,юридична особа
НАРОДНИЙ ФРОНТ,"Дніпропетровська область, Жовті Води, вулиця Івана Богуна, 141",79,2016-12-26,425,"Оренда будинків і приміщень та експлуатаційні витрати (прибирання, страхування орендованих будинків, охорона, сигналізація, ремонт, вивіз сміття, тощо)",Оренда нерухомості,389808,Центральний офіс,39181335,Україна,Орендна плата за грудень 2016р.,26004100001777,state,3000.00,"ТОВ ""ЖОВТІ ВОДИ СІТІ ГРУП""",39716183,юридична особа
НАРОДНИЙ ФРОНТ,"Львівська область, Львів, вулиця Окуневського, 1",79,2016-12-26,507,"Оренда будинків і приміщень та експлуатаційні витрати (прибирання, страхування орендованих будинків, охорона, сигналізація, ремонт, вивіз сміття, тощо)",Оренда нерухомості,389807,Центральний офіс,39181335,Україна,Орендна плата за грудень 2016р.,26004100001777,state,1500.00,Львівська обласна організація Українського товариства глухих,03973051,юридична особа
НАРОДНИЙ ФРОНТ,"Вінницька область, Ладижин, вулиця Процишина, 4",79,2016-12-26,503,"Оренда будинків і приміщень та експлуатаційні витрати (прибирання, страхування орендованих будинків, охорона, сигналізація, ремонт, вивіз сміття, тощо)",Оренда нерухомості,389806,Центральний офіс,39181335,Україна,Орендна плата за грудень 2016р.,26004100001777,state,4000.00,"ТОВ ""Енергосервіс ЛТД""",23059711,юридична особа
НАРОДНИЙ ФРОНТ,"Херсонська область, Херсон, вулиця Миколи Куліша, 13",79,2016-12-26,504,"Оренда будинків і приміщень та експлуатаційні витрати (прибирання, страхування орендованих будинків, охорона, сигналізація, ремонт, вивіз сміття, тощо)",Оренда нерухомості,389805,Центральний офіс,39181335,Україна,Орендна плата за грудень 2016р.,26004100001777,state,7600.00,"ТОВ ""СТО""БУКОВИНА.ЛТД""",36129911,юридична особа
НАРОДНИЙ ФРОНТ,"Херсонська область, Верхньорогачицький район, Верхній Рогачик, вулиця Українська",79,2016-12-26,505,"Оренда будинків і приміщень та експлуатаційні витрати (прибирання, страхування орендованих будинків, охорона, сигналізація, ремонт, вивіз сміття, тощо)",Оренда нерухомості,389804,Центральний офіс,39181335,Україна,Орендна плата за грудень 2016р.,26004100001777,state,600.00,Верхньорогачицький спортивно-технічний клуб ТСОУ,02721689,юридична особа
НАРОДНИЙ ФРОНТ,"Чернігівська область, Чернігів",79,2016-12-26,506,"Оренда будинків і приміщень та експлуатаційні витрати (прибирання, страхування орендованих будинків, охорона, сигналізація, ремонт, вивіз сміття, тощо)",Оренда нерухомості,389803,Центральний офіс,39181335,Україна,Орендна плата за грудень 2016р.,26004100001777,state,6603.00,"ТОВ ""Науково-виробнича комерційна фірма ""Кронтекс ЛТД""",22815470,юридична особа
НАРОДНИЙ ФРОНТ,"Харківська область, Харків, проспект Ювілейний, 56",79,2016-12-26,822,"Оренда будинків і приміщень та експлуатаційні витрати (прибирання, страхування орендованих будинків, охорона, сигналізація, ремонт, вивіз сміття, тощо)",Оренда нерухомості,389802,Центральний офіс,39181335,Україна,Орендна плата за грудень 2016р.,26004100001777,state,627.00,"ПАТ ""ПТІМАШ""",00212334,юридична особа
НАРОДНИЙ ФРОНТ,"Харківська область, Харків, Московський проспект, 257",79,2016-12-26,823,"Оренда будинків і приміщень та експлуатаційні витрати (прибирання, страхування орендованих будинків, охорона, сигналізація, ремонт, вивіз сміття, тощо)",Оренда нерухомості,389801,Центральний офіс,39181335,Україна,Оплата послуг з комплексного обслуговування приміщень,26004100001777,state,2508.00,"ТОВ ""ККООН ""Будсервіс""",37577214,юридична особа
НАРОДНИЙ ФРОНТ,"Харківська область, Харків, Московський проспект, 144",79,2016-12-26,824,"Оренда будинків і приміщень та експлуатаційні витрати (прибирання, страхування орендованих будинків, охорона, сигналізація, ремонт, вивіз сміття, тощо)",Оренда нерухомості,389800,Центральний офіс,39181335,Україна,Орендна плата за грудень 2016р.,26004100001777,state,3800.00,"ПАТ по туризму та екскурсіям ""Харківтурист""",02648484,юридична особа
НАРОДНИЙ ФРОНТ,"Харківська область, Дергачівський район, Солоницівка, улица Пушкина, 18, 34",79,2016-12-26,827,"Оренда будинків і приміщень та експлуатаційні витрати (прибирання, страхування орендованих будинків, охорона, сигналізація, ремонт, вивіз сміття, тощо)",Оренда нерухомості,389799,Центральний офіс,39181335,Україна,Орендна плата за грудень 2016р.,26004100001777,state,4664.00,"ТОВ ""Сабсан-інвест""",35207019,юридична особа
НАРОДНИЙ ФРОНТ,"Харківська область, Харків, Московський проспект, 257",79,2016-12-26,828,"Оренда будинків і приміщень та експлуатаційні витрати (прибирання, страхування орендованих будинків, охорона, сигналізація, ремонт, вивіз сміття, тощо)",Оренда нерухомості,389798,Центральний офіс,39181335,Україна,Орендна плата за грудень 2016р.,26004100001777,state,3700.00,"ТОВ ""НДІ Кондиціонер""",31798392,юридична особа
НАРОДНИЙ ФРОНТ,"Харківська область, Харків, вулиця Благовіщенська, 32",79,2016-12-26,829,"Оренда будинків і приміщень та експлуатаційні витрати (прибирання, страхування орендованих будинків, охорона, сигналізація, ремонт, вивіз сміття, тощо)",Оренда нерухомості,389797,Центральний офіс,39181335,Україна,Орендна плата за грудень 2016р.,26004100001777,state,9600.00,"ПАТ ""Приват-Бізнес центр ""Слобожанський""",30592461,юридична особа
НАРОДНИЙ ФРОНТ,"Одеська область, Одеса, вулиця Жуковського, 20",79,2016-12-26,816,"Оренда будинків і приміщень та експлуатаційні витрати (прибирання, страхування орендованих будинків, охорона, сигналізація, ремонт, вивіз сміття, тощо)",Оренда нерухомості,389796,Центральний офіс,39181335,Україна,Орендна плата за грудень 2016р.,26004100001777,state,600.00,"ПАТ ""Аптечна мережа ""Фармація""",22447055,юридична особа
НАРОДНИЙ ФРОНТ,"Сумська область, Суми, вул. Куликівська",79,2016-12-26,807,"Оренда будинків і приміщень та експлуатаційні витрати (прибирання, страхування орендованих будинків, охорона, сигналізація, ремонт, вивіз сміття, тощо)",Оренда нерухомості,389795,Центральний офіс,39181335,Україна,Орендна плата за грудень 2016р.,26004100001777,state,2000.00,"ТОВ ""Роменка""",37785302,юридична особа
НАРОДНИЙ ФРОНТ,"Полтавська область, Машівський район, Машівка, вулиця Леніна, 130",79,2016-12-26,808,"Оренда будинків і приміщень та експлуатаційні витрати (прибирання, страхування орендованих будинків, охорона, сигналізація, ремонт, вивіз сміття, тощо)",Оренда нерухомості,389794,Центральний офіс,39181335,Україна,Орендна плата за грудень 2016р.,26004100001777,state,4400.00,"ПП ""Компанія ""Надежда""",22519085,юридична особа
НАРОДНИЙ ФРОНТ,"Вінницька область, Чернівецький район, Чернівці",79,2016-12-26,810,"Оренда будинків і приміщень та експлуатаційні витрати (прибирання, страхування орендованих будинків, охорона, сигналізація, ремонт, вивіз сміття, тощо)",Оренда нерухомості,389793,Центральний офіс,39181335,Україна,Орендна плата за грудень 2016р.,26004100001777,state,1500.00,"ТОВ ""Чернівецька автоколона""",13335423,юридична особа
НАРОДНИЙ ФРОНТ,"Вінницька область, Липовецький район, Струтинка",79,2016-12-26,811,"Оренда будинків і приміщень та експлуатаційні витрати (прибирання, страхування орендованих будинків, охорона, сигналізація, ремонт, вивіз сміття, тощо)",Оренда нерухомості,389792,Центральний офіс,39181335,Україна,Орендна плата за грудень 2016р.,26004100001777,state,960.00,Струтинська сільська рада,04329180,юридична особа
НАРОДНИЙ ФРОНТ,"Херсонська область, Бериславський район, Берислав, вулиця 1 Травня, 124",79,2016-12-26,813,"Оренда будинків і приміщень та експлуатаційні витрати (прибирання, страхування орендованих будинків, охорона, сигналізація, ремонт, вивіз сміття, тощо)",Оренда нерухомості,389791,Центральний офіс,39181335,Україна,Орендна плата за грудень 2016р.,26004100001777,state,500.00,"ТОВ ""Чайка""",14141046,юридична особа
НАРОДНИЙ ФРОНТ,"Чернівецька область, Герцаївський район, Герца, вулиця Центральна, 22",79,2016-12-26,814,"Оренда будинків і приміщень та експлуатаційні витрати (прибирання, страхування орендованих будинків, охорона, сигналізація, ремонт, вивіз сміття, тощо)",Оренда нерухомості,389790,Центральний офіс,39181335,Україна,Орендна плата за грудень 2016р.,26004100001777,state,500.00,Герцаївське районне споживче товариство,01774608,юридична особа
НАРОДНИЙ ФРОНТ,"Донецька область, Мангушський район, Мангуш, вулиця Котанова, 100",79,2016-12-26,815,"Оренда будинків і приміщень та експлуатаційні витрати (прибирання, страхування орендованих будинків, охорона, сигналізація, ремонт, вивіз сміття, тощо)",Оренда нерухомості,389789,Центральний офіс,39181335,Україна,Орендна плата за грудень 2016р.,26004100001777,state,750.00,"ТОВ ""Побутсервіс""",20314999,юридична особа
НАРОДНИЙ ФРОНТ,"Сумська область, Глухів, площа Рудченка, 1",49,2016-12-26,550,Публікування матеріалів у друкованих ЗМІ,Реклама в друкованих ЗМІ,389788,Центральний офіс,39181335,Україна,Оплата за розміщення рекламних матеріалів в газеті,26004100001777,state,9932.40,"РГ ""Глухівщина""",21100987,юридична особа
НАРОДНИЙ ФРОНТ,"Сумська область, Великописарівський район, Велика Писарівка",49,2016-12-26,552,Публікування матеріалів у друкованих ЗМІ,Реклама в друкованих ЗМІ,389787,Центральний офіс,39181335,Україна,Оплата за розміщення рекламних матеріалів в газеті,26004100001777,state,10200.00,"ТОВ ""Великописарівська газета ""Ворскла""",02475055,юридична особа
НАРОДНИЙ ФРОНТ,"Тернопільська область, Теребовлянський район, Теребовля, вулиця Князя Василька, 104а",49,2016-12-26,553,Публікування матеріалів у друкованих ЗМІ,Реклама в друкованих ЗМІ,389786,Центральний офіс,39181335,Україна,Оплата за розміщення рекламних матеріалів в газеті,26004100001777,state,9750.00,"ТОВ ""Редакція Теребовлянської газети ""Воля""",02475339,юридична особа
НАРОДНИЙ ФРОНТ,"Дніпропетровська область, Софіївський район, Софіївка",49,2016-12-26,554,Публікування матеріалів у друкованих ЗМІ,Реклама в друкованих ЗМІ,389785,Центральний офіс,39181335,Україна,Оплата за розміщення рекламних матеріалів в газеті,26004100001777,state,9880.00,"КП РГ ""Вісті Софіївщини""",20289876,юридична особа
НАРОДНИЙ ФРОНТ,"Чернігівська область, Сосницький район, Сосниця, вулиця Покровська",49,2016-12-26,555,Публікування матеріалів у друкованих ЗМІ,Реклама в друкованих ЗМІ,389784,Центральний офіс,39181335,Україна,Оплата за розміщення рекламних матеріалів в газеті,26004100001777,state,11070.40,"РГ ""Вісті Сосниччини""",02476161,юридична особа
НАРОДНИЙ ФРОНТ,"Чернігівська область, Борзнянський район, Борзна, вул. Ганни Барвінок, 13",49,2016-12-26,556,Публікування матеріалів у друкованих ЗМІ,Реклама в друкованих ЗМІ,389783,Центральний офіс,39181335,Україна,Оплата за розміщення рекламних матеріалів в газеті,26004100001777,state,13320.00,"ТОВ ""Борзна-інфо""",02476118,юридична особа
НАРОДНИЙ ФРОНТ,"Дніпропетровська область, Широківський район, Широке, Соборна вулиця, 121",49,2016-12-26,557,Публікування матеріалів у друкованих ЗМІ,Реклама в друкованих ЗМІ,389782,Центральний офіс,39181335,Україна,Оплата за розміщення рекламних матеріалів в газеті,26004100001777,state,12498.20,"КП РГ ""Вісник""",02471844,юридична особа
НАРОДНИЙ ФРОНТ,"Тернопільська область, Гусятинський район, Гусятин, проспект Незалежності, 1",49,2016-12-26,558,Публікування матеріалів у друкованих ЗМІ,Реклама в друкованих ЗМІ,389781,Центральний офіс,39181335,Україна,Оплата за розміщення рекламних матеріалів в газеті,26004100001777,state,9120.00,"РГ ""Вісник Надзбруччя""",02475243,юридична особа
НАРОДНИЙ ФРОНТ,"Чернівецька область, Вижницький район, Вижниця, вулиця Романа Шухевича, 14",49,2016-12-26,559,Публікування матеріалів у друкованих ЗМІ,Реклама в друкованих ЗМІ,389780,Центральний офіс,39181335,Україна,Оплата за розміщення рекламних матеріалів в газеті,26004100001777,state,13387.00,"РГ ""Вижницькі обрії""",02476327,юридична особа
НАРОДНИЙ ФРОНТ,"Рівненська область, Корецький район, Корець, вулиця Київська, 5",49,2016-12-26,561,Публікування матеріалів у друкованих ЗМІ,Реклама в друкованих ЗМІ,389779,Центральний офіс,39181335,Україна,Оплата за розміщення рекламних матеріалів в газеті,26004100001777,state,6916.00,"КП РГ ""Вісник Кореччини""",36788904,юридична особа
НАРОДНИЙ ФРОНТ,"Житомирська область, Андрушівський район, Андрушівка",49,2016-12-26,562,Публікування матеріалів у друкованих ЗМІ,Реклама в друкованих ЗМІ,389778,Центральний офіс,39181335,Україна,Оплата за розміщення рекламних матеріалів в газеті,26004100001777,state,15768.00,"КП РГ ""Новини Андрушівщини""",02472358,юридична особа
НАРОДНИЙ ФРОНТ,"Чернігівська область, Городнянський район, Городня",49,2016-12-26,563,Публікування матеріалів у друкованих ЗМІ,Реклама в друкованих ЗМІ,389777,Центральний офіс,39181335,Україна,Оплата за розміщення рекламних матеріалів в газеті,26004100001777,state,10670.40,"РРГ ""Новини Городнянщини""",02476221,юридична особа
НАРОДНИЙ ФРОНТ,"Київська обл., Поліський район, Красятичі, Жовтнева",49,2016-12-26,564,Публікування матеріалів у друкованих ЗМІ,Реклама в друкованих ЗМІ,389776,Центральний офіс,39181335,Україна,Оплата за розміщення рекламних матеріалів в газеті,26004100001777,state,6720.00,"РГ ""Новини Полісся’",02473317,юридична особа
НАРОДНИЙ ФРОНТ,"Львівська область, Червоноград, вулиця Будівельна, 22",49,2016-12-26,565,Публікування матеріалів у друкованих ЗМІ,Реклама в друкованих ЗМІ,389775,Центральний офіс,39181335,Україна,Оплата за розміщення рекламних матеріалів в газеті,26004100001777,state,7155.00,"КП РГ ""Новини Прибужжя""",02474015,юридична особа
НАРОДНИЙ ФРОНТ,"Дніпропетровська область, Новомосковськ, вулиця Гетьманська, 12",49,2016-12-26,566,Публікування матеріалів у друкованих ЗМІ,Реклама в друкованих ЗМІ,389774,Центральний офіс,39181335,Україна,Оплата за розміщення рекламних матеріалів в газеті,26004100001777,state,9690.00,"РГ ""Новомосковська правда""",02471962,юридична особа
НАРОДНИЙ ФРОНТ,"Чернігівська область, Куликівський район, Куликівка, вул. Партизанська",49,2016-12-26,568,Публікування матеріалів у друкованих ЗМІ,Реклама в друкованих ЗМІ,389773,Центральний офіс,39181335,Україна,Оплата за розміщення рекламних матеріалів в газеті,26004100001777,state,11628.00,"ТОВ ""Поліська правда""",02476250,юридична особа
НАРОДНИЙ ФРОНТ,"Черкаська область, Лисянський район, Лисянка, Миру, 27",49,2016-12-26,569,Публікування матеріалів у друкованих ЗМІ,Реклама в друкованих ЗМІ,389772,Центральний офіс,39181335,Україна,Оплата за розміщення рекламних матеріалів в газеті,26004100001777,state,10335.00,"РГ ""Понад Тікичем""",30904189,юридична особа
НАРОДНИЙ ФРОНТ,"Полтавська область, Миргородський район, Слобідка",49,2016-12-26,570,Публікування матеріалів у друкованих ЗМІ,Реклама в друкованих ЗМІ,389771,Центральний офіс,39181335,Україна,Оплата за розміщення рекламних матеріалів в газеті,26004100001777,state,7025.26,"КП ""Інформаційний центр "" Миргородщина""",36475336,юридична особа
НАРОДНИЙ ФРОНТ,"Запорізька область, Приазовський район, Приазовське",49,2016-12-26,571,Публікування матеріалів у друкованих ЗМІ,Реклама в друкованих ЗМІ,389770,Центральний офіс,39181335,Україна,Оплата за розміщення рекламних матеріалів в газеті,26004100001777,state,8550.00,"КП ""РГ ""Приазовська новь""",02472795,юридична особа
НАРОДНИЙ ФРОНТ,"Дніпропетровська область, Царичанський район, Царичанка, вулиця 14-ї Гвардійської дивізії",49,2016-12-26,572,Публікування матеріалів у друкованих ЗМІ,Реклама в друкованих ЗМІ,389769,Центральний офіс,39181335,Україна,Оплата за розміщення рекламних матеріалів в газеті,26004100001777,state,8892.00,"КП РРГ ""Приорільська правда""",02471838,юридична особа
НАРОДНИЙ ФРОНТ,"Миколаївська область, Новоодеський район, Нова Одеса, вулиця Федора Осадчого, 15",49,2016-12-26,573,Публікування матеріалів у друкованих ЗМІ,Реклама в друкованих ЗМІ,389768,Центральний офіс,39181335,Україна,Оплата за розміщення рекламних матеріалів в газеті,26004100001777,state,10488.17,"РГ ""Промінь""",02474185,юридична особа
НАРОДНИЙ ФРОНТ,"Миколаївська область, Новобузький район, Новий Буг, вулиця Площа Свободи, 36",49,2016-12-26,551,Публікування матеріалів у друкованих ЗМІ,Реклама в друкованих ЗМІ,389767,Центральний офіс,39181335,Україна,Оплата за розміщення рекламних матеріалів в газеті,26004100001777,state,13267.80,"ПП ""Видавництво газети ""Вперед""",02474179,юридична особа
НАРОДНИЙ ФРОНТ,"Харківська область, Сахновщинський район, Сахновщина, вулиця Шмідта, 10",49,2016-12-26,549,Публікування матеріалів у друкованих ЗМІ,Реклама в друкованих ЗМІ,389766,Центральний офіс,39181335,Україна,Оплата за розміщення рекламних матеріалів в газеті,26004100001777,state,5985.00,"ТОВ ""Колос-1930""",02476505,юридична особа
НАРОДНИЙ ФРОНТ,"Сумська область, Буринський район, Буринь",49,2016-12-26,576,Публікування матеріалів у друкованих ЗМІ,Реклама в друкованих ЗМІ,389765,Центральний офіс,39181335,Україна,Оплата за розміщення рекламних матеріалів в газеті,26004100001777,state,7660.00,"ТОВ ""Редакція районної газети ""Рідний край""",23998142,юридична особа
НАРОДНИЙ ФРОНТ,"Київська обл., Ірпінь, вулиця Мінеральна, 7",49,2016-12-26,548,Публікування матеріалів у друкованих ЗМІ,Реклама в друкованих ЗМІ,389764,Центральний офіс,39181335,Україна,Оплата за розміщення рекламних матеріалів в газеті,26004100001777,state,8541.00,"КП РГ ""Ірпінський вісник""",22201704,юридична особа
НАРОДНИЙ ФРОНТ,"Київська обл., Бориспіль, вулиця Котляревського, 12",49,2016-12-26,525,Публікування матеріалів у друкованих ЗМІ,Реклама в друкованих ЗМІ,389763,Центральний офіс,39181335,Україна,Оплата за розміщення рекламних матеріалів в газеті,26004100001777,state,10872.00,"ТОВ РГ ""Вісті. Інформація. Реклама""",36077172,юридична особа
НАРОДНИЙ ФРОНТ,"Рівненська область, Володимирецький район, Володимирець, вулиця Шкільна, 19",49,2016-12-26,526,Публікування матеріалів у друкованих ЗМІ,Реклама в друкованих ЗМІ,389762,Центральний офіс,39181335,Україна,Оплата за розміщення рекламних матеріалів в газеті,26004100001777,state,9880.00,"КП РГ ""Володимирецький вісник""",38184974,юридична особа
НАРОДНИЙ ФРОНТ,"Черкаська область, Золотоноша, Садовий проїзд, 5",49,2016-12-26,527,Публікування матеріалів у друкованих ЗМІ,Реклама в друкованих ЗМІ,389761,Центральний офіс,39181335,Україна,Оплата за розміщення рекламних матеріалів в газеті,26004100001777,state,9600.00,"РГ ""Вісник Золотоніщини""",21367130,юридична особа
НАРОДНИЙ ФРОНТ,"Чернівецька область, Кіцманський район, Кіцмань, вулиця Незалежності, 83",49,2016-12-26,528,Публікування матеріалів у друкованих ЗМІ,Реклама в друкованих ЗМІ,389760,Центральний офіс,39181335,Україна,Оплата за розміщення рекламних матеріалів в газеті,26004100001777,state,11184.00,"РГ ""Вільне життя""",02476362,юридична особа
НАРОДНИЙ ФРОНТ,"Полтавська область, Хорольський район, Хорол, вулиця Незалежності, 65",49,2016-12-26,529,Публікування матеріалів у друкованих ЗМІ,Реклама в друкованих ЗМІ,389759,Центральний офіс,39181335,Україна,Оплата за розміщення рекламних матеріалів в газеті,26004100001777,state,6000.00,"ТОВ ""Редакція газети ""Вісті Хорольщини""",02474727,юридична особа
НАРОДНИЙ ФРОНТ,"Дніпропетровська область, Апостолівський район, Апостолове, вул. Визволення",49,2016-12-26,530,Публікування матеріалів у друкованих ЗМІ,Реклама в друкованих ЗМІ,389758,Центральний офіс,39181335,Україна,Оплата за розміщення рекламних матеріалів в газеті,26004100001777,state,11250.00,"КП РГ ""Апостолівські новини""",02471985,юридична особа
НАРОДНИЙ ФРОНТ,"Дніпропетровська область, Вільногірськ, вулиця Молодіжна, 16",49,2016-12-26,531,Публікування матеріалів у друкованих ЗМІ,Реклама в друкованих ЗМІ,389757,Центральний офіс,39181335,Україна,Оплата за розміщення рекламних матеріалів в газеті,26004100001777,state,12506.00,"ТОВ ""Вільногірськ медіа""",31825187,юридична особа
НАРОДНИЙ ФРОНТ,"Львівська область, Новий Розділ, вулиця Михайла Грушевського, 37",49,2016-12-26,532,Публікування матеріалів у друкованих ЗМІ,Реклама в друкованих ЗМІ,389756,Центральний офіс,39181335,Україна,Оплата за розміщення рекламних матеріалів в газеті,26004100001777,state,7990.00,"КП РГ ""Вісник Розділля""",20823592,юридична особа
НАРОДНИЙ ФРОНТ,"Тернопільська область, Лановецький район, Ланівці, вулиця Незалежності, 20",49,2016-12-26,533,Публікування матеріалів у друкованих ЗМІ,Реклама в друкованих ЗМІ,389755,Центральний офіс,39181335,Україна,Оплата за розміщення рекламних матеріалів в газеті,26004100001777,state,10920.00,"ТОВ ""Редакція газети ""Голос Лановеччини""",02475308,юридична особа
НАРОДНИЙ ФРОНТ,"Тернопільська область, Чортківський район, Чортків, вулиця Зелена, 3",49,2016-12-26,534,Публікування матеріалів у друкованих ЗМІ,Реклама в друкованих ЗМІ,389754,Центральний офіс,39181335,Україна,Оплата за розміщення рекламних матеріалів в газеті,26004100001777,state,7360.00,"РГ ""Голос народу""",02475345,юридична особа
НАРОДНИЙ ФРОНТ,"Сумська область, Недригайлівський район, Недригайлів",49,2016-12-26,535,Публікування матеріалів у друкованих ЗМІ,Реклама в друкованих ЗМІ,389753,Центральний офіс,39181335,Україна,Оплата за розміщення рекламних матеріалів в газеті,26004100001777,state,7600.00,"РГ ""Голос Посулля""",02475196,юридична особа
НАРОДНИЙ ФРОНТ,"Чернігівська область, Прилуки, вулиця Незалежності, 78, 55",49,2016-12-26,536,Публікування матеріалів у друкованих ЗМІ,Реклама в друкованих ЗМІ,389752,Центральний офіс,39181335,Україна,Оплата за розміщення рекламних матеріалів в газеті,26004100001777,state,5700.00,"ПП ""Авеста""",30447160,юридична особа
НАРОДНИЙ ФРОНТ,"Київська обл., Васильків, вулиця Грушевського, 15",49,2016-12-26,537,Публікування матеріалів у друкованих ЗМІ,Реклама в друкованих ЗМІ,389751,Центральний офіс,39181335,Україна,Оплата за розміщення рекламних матеріалів в газеті,26004100001777,state,21000.00,"Васильківська міськрайонна громадсько-політична газета ""Життя і слово""",02473352,юридична особа
НАРОДНИЙ ФРОНТ,"Житомирська область, Коростень, вулиця 1-го Травня, 15",49,2016-12-26,538,Публікування матеріалів у друкованих ЗМІ,Реклама в друкованих ЗМІ,389750,Центральний офіс,39181335,Україна,Оплата за розміщення рекламних матеріалів в газеті,26004100001777,state,8600.00,"ПП ""Редакція Народицького тижневика ""Життя і слово""",02472370,юридична особа
НАРОДНИЙ ФРОНТ,"Рівненська область, Острог, вулиця Лесі Українки, 21",49,2016-12-26,539,Публікування матеріалів у друкованих ЗМІ,Реклама в друкованих ЗМІ,389749,Центральний офіс,39181335,Україна,Оплата за розміщення рекламних матеріалів в газеті,26004100001777,state,7738.00,"РГ ""Життя і слово""",02474860,юридична особа
НАРОДНИЙ ФРОНТ,"Полтавська область, Карлівський район, Карлівка, провулок Спартака, 1",49,2016-12-26,540,Публікування матеріалів у друкованих ЗМІ,Реклама в друкованих ЗМІ,389748,Центральний офіс,39181335,Україна,Оплата за розміщення рекламних матеріалів в газеті,26004100001777,state,3500.00,"ТОВ ""Редакція газети ""Життя і слово""",02474699,юридична особа
НАРОДНИЙ ФРОНТ,"Хмельницька область, Білогірський район, Білогір'я, Вулиця Шевченка, 46",49,2016-12-26,541,Публікування матеріалів у друкованих ЗМІ,Реклама в друкованих ЗМІ,389747,Центральний офіс,39181335,Україна,Оплата за розміщення рекламних матеріалів в газеті,26004100001777,state,16660.00,"РГ ""Життя і слово""",02475664,юридична особа
НАРОДНИЙ ФРОНТ,"Чернігівська область, Семенівський район, Семенівка, вулиця Шевченка",49,2016-12-26,542,Публікування матеріалів у друкованих ЗМІ,Реклама в друкованих ЗМІ,389746,Центральний офіс,39181335,Україна,Оплата за розміщення рекламних матеріалів в газеті,26004100001777,state,12025.00,"РРГ ""Життя Семенівщини""",02476155,юридична особа
НАРОДНИЙ ФРОНТ,"Хмельницька область, Теофіпольський район, Теофіполь",49,2016-12-26,543,Публікування матеріалів у друкованих ЗМІ,Реклама в друкованих ЗМІ,389745,Центральний офіс,39181335,Україна,Оплата за розміщення рекламних матеріалів в газеті,26004100001777,state,15980.00,"РГ ""Теофіпольгазетадрук""",02475782,юридична особа
НАРОДНИЙ ФРОНТ,"Дніпропетровська область, П'ятихатський район, П'ятихатки, вулиця Мамона, 127",49,2016-12-26,544,Публікування матеріалів у друкованих ЗМІ,Реклама в друкованих ЗМІ,389744,Центральний офіс,39181335,Україна,Оплата за розміщення рекламних матеріалів в газеті,26004100001777,state,11925.00,"КП Редакція громадсько-інформаційної газети ""Злагода""",02471850,юридична особа
НАРОДНИЙ ФРОНТ,"Івано-Франківська область, Тлумацький район, Тлумач, вул. Кармелюка, 10",49,2016-12-26,545,Публікування матеріалів у друкованих ЗМІ,Реклама в друкованих ЗМІ,389743,Центральний офіс,39181335,Україна,Оплата за розміщення рекламних матеріалів в газеті,26004100001777,state,10000.00,"ТОВ ""Редакційно-видавничий комплекс ""Злагода""",02472950,юридична особа
НАРОДНИЙ ФРОНТ,"Одеська область, Березівський район, Червоне, вул. Красна",49,2016-12-26,546,Публікування матеріалів у друкованих ЗМІ,Реклама в друкованих ЗМІ,389742,Центральний офіс,39181335,Україна,Оплата за розміщення рекламних матеріалів в газеті,26004100001777,state,10000.00,"ТОВ ""Знамя труда ""Масс-медиа""",02474506,юридична особа
НАРОДНИЙ ФРОНТ,"Черкаська область, Монастирищенський район, Монастирище, вулиця Жовтнева, 6",49,2016-12-26,547,Публікування матеріалів у друкованих ЗМІ,Реклама в друкованих ЗМІ,389741,Центральний офіс,39181335,Україна,Оплата за розміщення рекламних матеріалів в газеті,26004100001777,state,9360.00,"РГ ""Зоря""",02475820,юридична особа
НАРОДНИЙ ФРОНТ,"Одеська область, Ренійський район, Рені, вулиця Леніна, 111",49,2016-12-26,575,Публікування матеріалів у друкованих ЗМІ,Реклама в друкованих ЗМІ,389740,Центральний офіс,39181335,Україна,Оплата за розміщення рекламних матеріалів в газеті,26004100001777,state,11000.00,"КП РГ ""Ренійський вісник""",32631423,юридична особа
НАРОДНИЙ ФРОНТ,"Чернігівська область, Новгород-Сіверський район, Новгород-Сіверський, вулиця Козацька, 9",49,2016-12-26,577,Публікування матеріалів у друкованих ЗМІ,Реклама в друкованих ЗМІ,389739,Центральний офіс,39181335,Україна,Оплата за розміщення рекламних матеріалів в газеті,26004100001777,state,8334.00,"РРГ ""Сіверський край""",02476043,юридична особа
НАРОДНИЙ ФРОНТ,"Херсонська область, Голопристанський район, Гола Пристань, вулиця 1 Травня, 33",49,2016-12-26,523,Публікування матеріалів у друкованих ЗМІ,Реклама в друкованих ЗМІ,389738,Центральний офіс,39181335,Україна,Оплата за розміщення рекламних матеріалів в газеті,26004100001777,state,7824.00,"КП РГ ""Голопристанський вісник""",02475575,юридична особа
НАРОДНИЙ ФРОНТ,"Хмельницька область, Полонський район, Полонне, вулиця Лесі Українки, 103",49,2016-12-26,604,Публікування матеріалів у друкованих ЗМІ,Реклама в друкованих ЗМІ,389737,Центральний офіс,39181335,Україна,Оплата за розміщення рекламних матеріалів в газеті,26004100001777,state,14710.00,"РГ ""Новий шлях""",02475747,юридична особа
НАРОДНИЙ ФРОНТ,"Вінницька область, Погребищенський район, Погребище, вулиця Богдана Хмельницького, 110",49,2016-12-26,606,Публікування матеріалів у друкованих ЗМІ,Реклама в друкованих ЗМІ,389736,Центральний офіс,39181335,Україна,Оплата за розміщення рекламних матеріалів в газеті,26004100001777,state,8696.88,"ТОВ ""Колос-медіа""",02471488,юридична особа
НАРОДНИЙ ФРОНТ,"Івано-Франківська область, Городенківський район, Городенка, вулиця Володимира Великого, 4",49,2016-12-26,607,Публікування матеріалів у друкованих ЗМІ,Реклама в друкованих ЗМІ,389735,Центральний офіс,39181335,Україна,Оплата за розміщення рекламних матеріалів в газеті,26004100001777,state,10000.00,"ПП ""Медіацентр ""Край""",20553758,юридична особа
НАРОДНИЙ ФРОНТ,"Одеська область, Окнянський район, Окни, вулиця Комарова, 2",49,2016-12-26,608,Публікування матеріалів у друкованих ЗМІ,Реклама в друкованих ЗМІ,389734,Центральний офіс,39181335,Україна,Оплата за розміщення рекламних матеріалів в газеті,26004100001777,state,8000.00,"РГ ""Красноокнянський вісник""",02474423,юридична особа
НАРОДНИЙ ФРОНТ,"Вінницька область, Могилів-Подільський",49,2016-12-26,609,Публікування матеріалів у друкованих ЗМІ,Реклама в друкованих ЗМІ,389733,Центральний офіс,39181335,Україна,Оплата за розміщення рекламних матеріалів в газеті,26004100001777,state,8586.00,"КП ""Престелерадіоцентр ""Краяни""",23101287,юридична особа
НАРОДНИЙ ФРОНТ,"Хмельницька область, Летичівський район, Летичів",49,2016-12-26,610,Публікування матеріалів у друкованих ЗМІ,Реклама в друкованих ЗМІ,389732,Центральний офіс,39181335,Україна,Оплата за розміщення рекламних матеріалів в газеті,26004100001777,state,10000.00,"ПП ""Редакція газети ""Летичівська газета""",02475799,юридична особа
НАРОДНИЙ ФРОНТ,"Чернігівська область, Корюківський район, Корюківка, вул. Бульварна",49,2016-12-26,611,Публікування матеріалів у друкованих ЗМІ,Реклама в друкованих ЗМІ,389731,Центральний офіс,39181335,Україна,Оплата за розміщення рекламних матеріалів в газеті,26004100001777,state,8888.88,"ТОВ ""Маяк-медіа""",02476126,юридична особа
НАРОДНИЙ ФРОНТ,"Запорізька область, Михайлівський район, Михайлівка",49,2016-12-26,612,Публікування матеріалів у друкованих ЗМІ,Реклама в друкованих ЗМІ,389730,Центральний офіс,39181335,Україна,Оплата за розміщення рекламних матеріалів в газеті,26004100001777,state,11000.00,"КП ""РГ ""Михайлівські новини""",02472743,юридична особа
НАРОДНИЙ ФРОНТ,"Хмельницька область, Славута, вулиця Миру, 102",49,2016-12-26,613,Публікування матеріалів у друкованих ЗМІ,Реклама в друкованих ЗМІ,389729,Центральний офіс,39181335,Україна,Оплата за розміщення рекламних матеріалів в газеті,26004100001777,state,21178.00,"РГ ""Трудівник Полісся""",02475658,юридична особа
НАРОДНИЙ ФРОНТ,"Житомирська область, Брусилівський район, Брусилів",49,2016-12-26,614,Публікування матеріалів у друкованих ЗМІ,Реклама в друкованих ЗМІ,389728,Центральний офіс,39181335,Україна,Оплата за розміщення рекламних матеріалів в газеті,26004100001777,state,9000.00,"КП РГ ""Відродження""",13575305,юридична особа
НАРОДНИЙ ФРОНТ,"Миколаївська область, Первомайська район, Первомайськ, вулиця Михайла Грушевського, 3",49,2016-12-26,615,Публікування матеріалів у друкованих ЗМІ,Реклама в друкованих ЗМІ,389727,Центральний офіс,39181335,Україна,Оплата за розміщення рекламних матеріалів в газеті,26004100001777,state,8016.00,"КП РГ ""Вісник Первомайська""",32641934,юридична особа
НАРОДНИЙ ФРОНТ,"Волинська область, Ковель, вулиця Михайла Грушевського, 2",49,2016-12-26,616,Публікування матеріалів у друкованих ЗМІ,Реклама в друкованих ЗМІ,389726,Центральний офіс,39181335,Україна,Оплата за розміщення рекламних матеріалів в газеті,26004100001777,state,10186.18,"РГ ""Вісті Ковельщини""",02471672,юридична особа
НАРОДНИЙ ФРОНТ,"Закарпатська область, Міжгірський район, Міжгір'я",49,2016-12-26,617,Публікування матеріалів у друкованих ЗМІ,Реклама в друкованих ЗМІ,389725,Центральний офіс,39181335,Україна,Оплата за розміщення рекламних матеріалів в газеті,26004100001777,state,11544.00,"РГ ""Верховина""",02472720,юридична особа
НАРОДНИЙ ФРОНТ,"Полтавська область, Полтава, вулиця Раїси Кириченко, 36",49,2016-12-26,618,Публікування матеріалів у друкованих ЗМІ,Реклама в друкованих ЗМІ,389724,Центральний офіс,39181335,Україна,Оплата за розміщення рекламних матеріалів в газеті,26004100001777,state,19992.00,"ТОВ ""Газета ""Вечірня Полтава""",33660664,юридична особа
НАРОДНИЙ ФРОНТ,"Одеська область, Одеса, площадь Бориса Деревянко, 1",49,2016-12-26,619,Публікування матеріалів у друкованих ЗМІ,Реклама в друкованих ЗМІ,389723,Центральний офіс,39181335,Україна,Оплата за розміщення рекламних матеріалів в газеті,26004100001777,state,19200.00,"ТОВ РГ ""Вечірня Одеса""",13912323,юридична особа
НАРОДНИЙ ФРОНТ,"Львівська область, Львів, вулиця Героїв УПА, 65",49,2016-12-26,620,Публікування матеріалів у друкованих ЗМІ,Реклама в друкованих ЗМІ,389722,Центральний офіс,39181335,Україна,Оплата за розміщення рекламних матеріалів в газеті,26004100001777,state,93600.00,"ТОВ ""Видавничий дім ""Високий замок""",13807781,юридична особа
НАРОДНИЙ ФРОНТ,"Івано-Франківська область, Коломия, вулиця Михайла Драгоманова, 4",49,2016-12-26,621,Публікування матеріалів у друкованих ЗМІ,Реклама в друкованих ЗМІ,389721,Центральний офіс,39181335,Україна,Оплата за розміщення рекламних матеріалів в газеті,26004100001777,state,7650.72,"ТОВ ""Редакція газети ""Вільний голос""",02472967,юридична особа
НАРОДНИЙ ФРОНТ,"Івано-Франківська область, Івано-Франківськ, вулиця Січових стрільців, 25",49,2016-12-26,622,Публікування матеріалів у друкованих ЗМІ,Реклама в друкованих ЗМІ,389720,Центральний офіс,39181335,Україна,Оплата за розміщення рекламних матеріалів в газеті,26004100001777,state,24000.00,"РГ ""Галичина’",13644704,юридична особа
НАРОДНИЙ ФРОНТ,"Житомирська область, Бердичів, провулок Карла Маркса, 20",49,2016-12-26,623,Публікування матеріалів у друкованих ЗМІ,Реклама в друкованих ЗМІ,389719,Центральний офіс,39181335,Україна,Оплата за розміщення рекламних матеріалів в газеті,26004100001777,state,8400.00,"ТОВ ""Редакція Бердичівської міськрайонної газети ""Земля Бердичівська""",02472453,юридична особа
НАРОДНИЙ ФРОНТ,"Кіровоградська область, Знам'янка",49,2016-12-26,624,Публікування матеріалів у друкованих ЗМІ,Реклама в друкованих ЗМІ,389718,Центральний офіс,39181335,Україна,Оплата за розміщення рекламних матеріалів в газеті,26004100001777,state,12312.00,"РГ ""Знамʼянські вісті""",02473464,юридична особа
НАРОДНИЙ ФРОНТ,"Запорізька область, Веселівський район, Веселе",49,2016-12-26,625,Публікування матеріалів у друкованих ЗМІ,Реклама в друкованих ЗМІ,389717,Центральний офіс,39181335,Україна,Оплата за розміщення рекламних матеріалів в газеті,26004100001777,state,11200.00,"РГ ""Колос""",02472826,юридична особа
НАРОДНИЙ ФРОНТ,"Вінницька область, Липовецький район, Липовець, вулиця Набережна",49,2016-12-26,626,Публікування матеріалів у друкованих ЗМІ,Реклама в друкованих ЗМІ,389716,Центральний офіс,39181335,Україна,Оплата за розміщення рекламних матеріалів в газеті,26004100001777,state,11550.00,"КП РГ ""Липовецькі вісті""",36522908,юридична особа
НАРОДНИЙ ФРОНТ,"Івано-Франківська область, Надворнянський район, Надвірна, вулиця Визволення, 2",49,2016-12-26,628,Публікування матеріалів у друкованих ЗМІ,Реклама в друкованих ЗМІ,389715,Центральний офіс,39181335,Україна,Оплата за розміщення рекламних матеріалів в газеті,26004100001777,state,13832.00,"РГ ""Народна воля""",20536234,юридична особа
НАРОДНИЙ ФРОНТ,"Черкаська область, Тальнівський район, Тальне, вулиця Замкова, 83",49,2016-12-26,605,Публікування матеріалів у друкованих ЗМІ,Реклама в друкованих ЗМІ,389714,Центральний офіс,39181335,Україна,Оплата за розміщення рекламних матеріалів в газеті,26004100001777,state,9620.00,"ТОВ “Редакція Тальнівської районної газети ""Колос""",02476008,юридична особа
НАРОДНИЙ ФРОНТ,"Львівська область, Жидачівський район, Жидачів, вулиця Чайковського",49,2016-12-26,603,Публікування матеріалів у друкованих ЗМІ,Реклама в друкованих ЗМІ,389713,Центральний офіс,39181335,Україна,Оплата за розміщення рекламних матеріалів в газеті,26004100001777,state,8000.00,"Народний часопис ""Новий час""",02473961,юридична особа
НАРОДНИЙ ФРОНТ,"Хмельницька область, Віньковецький район, Віньківці, Гагаріна вул., 7",49,2016-12-26,578,Публікування матеріалів у друкованих ЗМІ,Реклама в друкованих ЗМІ,389712,Центральний офіс,39181335,Україна,Оплата за розміщення рекламних матеріалів в газеті,26004100001777,state,11232.00,"РГ ""Сільські новини""",02475641,юридична особа
НАРОДНИЙ ФРОНТ,"Рівненська область, Здолбунівський район, Здолбунів, вулиця Лесі Українки, 6",49,2016-12-26,602,Публікування матеріалів у друкованих ЗМІ,Реклама в друкованих ЗМІ,389711,Центральний офіс,39181335,Україна,Оплата за розміщення рекламних матеріалів в газеті,26004100001777,state,5820.00,"ТОВ ""Редакція Здолбунівської районної газети ""Нове життя""",02474891,юридична особа
НАРОДНИЙ ФРОНТ,"Волинська область, Володимир-Волинський, вулиця Драгоманова, 18",49,2016-12-26,580,Публікування матеріалів у друкованих ЗМІ,Реклама в друкованих ЗМІ,389710,Центральний офіс,39181335,Україна,Оплата за розміщення рекламних матеріалів в газеті,26004100001777,state,13000.00,"РГ ""Слово правди""",02476282,юридична особа
НАРОДНИЙ ФРОНТ,"Запорізька область, Якимівський район, Якимівка, вулиця Молодих Патріотів, 9",49,2016-12-26,581,Публікування матеріалів у друкованих ЗМІ,Реклама в друкованих ЗМІ,389709,Центральний офіс,39181335,Україна,Оплата за розміщення рекламних матеріалів в газеті,26004100001777,state,8977.50,"КП РРГ ""Слово трудівника""",31016466,юридична особа
НАРОДНИЙ ФРОНТ,"Черкаська область, Сміла, вулиця Перемоги, 18",49,2016-12-26,582,Публікування матеріалів у друкованих ЗМІ,Реклама в друкованих ЗМІ,389708,Центральний офіс,39181335,Україна,Оплата за розміщення рекламних матеріалів в газеті,26004100001777,state,7000.00,"ПП ""Обрії""",02476014,юридична особа
НАРОДНИЙ ФРОНТ,"Одеська область, Ізмаїл, проспект Суворова, 40",49,2016-12-26,583,Публікування матеріалів у друкованих ЗМІ,Реклама в друкованих ЗМІ,389707,Центральний офіс,39181335,Україна,Оплата за розміщення рекламних матеріалів в газеті,26004100001777,state,5185.44,"КП РГ ""Співрозмовник Ізмаїла""",02474305,юридична особа
НАРОДНИЙ ФРОНТ,"Кіровоградська область, Компаніївський район, Компаніївка",49,2016-12-26,584,Публікування матеріалів у друкованих ЗМІ,Реклама в друкованих ЗМІ,389706,Центральний офіс,39181335,Україна,Оплата за розміщення рекламних матеріалів в газеті,26004100001777,state,10000.00,"РГ ""Степовий край""",02473636,юридична особа
НАРОДНИЙ ФРОНТ,"Одеська область, Татарбунарський район, Татарбунари",49,2016-12-26,585,Публікування матеріалів у друкованих ЗМІ,Реклама в друкованих ЗМІ,389705,Центральний офіс,39181335,Україна,Оплата за розміщення рекламних матеріалів в газеті,26004100001777,state,11000.00,"РГ ""Татарбунарский вестник""",02474512,юридична особа
НАРОДНИЙ ФРОНТ,"Київська обл., Іванківський район, Іванків, вулиця Поліська, 2",49,2016-12-26,586,Публікування матеріалів у друкованих ЗМІ,Реклама в друкованих ЗМІ,389704,Центральний офіс,39181335,Україна,Оплата за розміщення рекламних матеріалів в газеті,26004100001777,state,16000.00,"РГ ""Трибуна праці""",02473263,юридична особа
НАРОДНИЙ ФРОНТ,"Запорізька область, Оріхівський район, Оріхів, вулиця Покровська, 25",49,2016-12-26,587,Публікування матеріалів у друкованих ЗМІ,Реклама в друкованих ЗМІ,389703,Центральний офіс,39181335,Україна,Оплата за розміщення рекламних матеріалів в газеті,26004100001777,state,7440.00,"РГ ""Трудова слава""",02472861,юридична особа
НАРОДНИЙ ФРОНТ,"Кіровоградська область, Петрівський район, Петрове, вулиця Літвінова, 19",49,2016-12-26,588,Публікування матеріалів у друкованих ЗМІ,Реклама в друкованих ЗМІ,389702,Центральний офіс,39181335,Україна,Оплата за розміщення рекламних матеріалів в газеті,26004100001777,state,9959.10,"ТОВ ""Редакція Петрівської районної газети ""Трудова слава""",35867131,юридична особа
НАРОДНИЙ ФРОНТ,"Вінницька область, Іллінецький район, Кальник, вулиця Леніна, 22",49,2016-12-26,589,Публікування матеріалів у друкованих ЗМІ,Реклама в друкованих ЗМІ,389701,Центральний офіс,39181335,Україна,Оплата за розміщення рекламних матеріалів в газеті,26004100001777,state,15264.00,"РГ ""Трудова слава""",02471407,юридична особа
НАРОДНИЙ ФРОНТ,"Запорізька область, Запорізький район, Широке, вулиця Радянська, 1",49,2016-12-26,591,Публікування матеріалів у друкованих ЗМІ,Реклама в друкованих ЗМІ,389700,Центральний офіс,39181335,Україна,Оплата за розміщення рекламних матеріалів в газеті,26004100001777,state,8000.00,"РГ ""Червоний прмінь""",05428234,юридична особа
НАРОДНИЙ ФРОНТ,"Миколаївська область, Очаків, вулиця Лоцманська, 20",49,2016-12-26,592,Публікування матеріалів у друкованих ЗМІ,Реклама в друкованих ЗМІ,389699,Центральний офіс,39181335,Україна,Оплата за розміщення рекламних матеріалів в газеті,26004100001777,state,8739.00,"РРГ ""Чорноморська зірка""",02474191,юридична особа
НАРОДНИЙ ФРОНТ,"Черкаська область, Шполянський район, Шпола, вулиця Пролетарська, 55",49,2016-12-26,593,Публікування матеріалів у друкованих ЗМІ,Реклама в друкованих ЗМІ,389698,Центральний офіс,39181335,Україна,Оплата за розміщення рекламних матеріалів в газеті,26004100001777,state,9363.00,"РРГ ""Шполянські вісті""",02475894,юридична особа
НАРОДНИЙ ФРОНТ,"Львівська область, Яворівський район, Яворів, вулиця Львівська, 22",49,2016-12-26,594,Публікування матеріалів у друкованих ЗМІ,Реклама в друкованих ЗМІ,389697,Центральний офіс,39181335,Україна,Оплата за розміщення рекламних матеріалів в газеті,26004100001777,state,11100.00,"КП ""Редакція часопису ""Яворівщина""",02473889,юридична особа
НАРОДНИЙ ФРОНТ,"Миколаївська область, Березнегуватський район, Березнегувате",49,2016-12-26,595,Публікування матеріалів у друкованих ЗМІ,Реклама в друкованих ЗМІ,389696,Центральний офіс,39181335,Україна,Оплата за розміщення рекламних матеріалів в газеті,26004100001777,state,7559.00,"РГ ""Народна трибуна""",02474251,юридична особа
НАРОДНИЙ ФРОНТ,"Сумська, Липоводолинський район, Липова Долина, вулиця Горького, 1",49,2016-12-26,597,Публікування матеріалів у друкованих ЗМІ,Реклама в друкованих ЗМІ,389695,Центральний офіс,39181335,Україна,Оплата за розміщення рекламних матеріалів в газеті,26004100001777,state,7032.96,"РГ ""Наш край""",02475014,юридична особа
НАРОДНИЙ ФРОНТ,"Дніпропетровська область, Магдалинівський район, Магдалинівка",49,2016-12-26,598,Публікування матеріалів у друкованих ЗМІ,Реклама в друкованих ЗМІ,389694,Центральний офіс,39181335,Україна,Оплата за розміщення рекламних матеріалів в газеті,26004100001777,state,9792.00,"РГ ""Наше життя""",02471904,юридична особа
НАРОДНИЙ ФРОНТ,"Вінницька область, Мурованокуриловецький район, Муровані Курилівці",49,2016-12-26,599,Публікування матеріалів у друкованих ЗМІ,Реклама в друкованих ЗМІ,389693,Центральний офіс,39181335,Україна,Оплата за розміщення рекламних матеріалів в газеті,26004100001777,state,13356.00,"ПП ""Редакція газети ""Наше Придністровʼя""",02471620,юридична особа
НАРОДНИЙ ФРОНТ,"Чернігівська область, Ніжин, Яворського, 3",49,2016-12-26,600,Публікування матеріалів у друкованих ЗМІ,Реклама в друкованих ЗМІ,389692,Центральний офіс,39181335,Україна,Оплата за розміщення рекламних матеріалів в газеті,26004100001777,state,9600.00,"РГ ""Ніжинський вісник""",02476053,юридична особа
НАРОДНИЙ ФРОНТ,"Волинська область, Любешівський район, Любешів, вулиця Незалежності, 54",49,2016-12-26,601,Публікування матеріалів у друкованих ЗМІ,Реклама в друкованих ЗМІ,389691,Центральний офіс,39181335,Україна,Оплата за розміщення рекламних матеріалів в газеті,26004100001777,state,6916.00,"ПП ""Редакція ""Нове життя""",02471784,юридична особа
НАРОДНИЙ ФРОНТ,"Львівська область, Буський район, Буськ, майдан Незалежності, 17",49,2016-12-26,524,Публікування матеріалів у друкованих ЗМІ,Реклама в друкованих ЗМІ,389690,Центральний офіс,39181335,Україна,Оплата за розміщення рекламних матеріалів в газеті,26004100001777,state,8095.00,"ПП ""Медіа-центр ""Над Бугом""",02474021,юридична особа
НАРОДНИЙ ФРОНТ,"Закарпатська область, Воловецький район, Воловець, вул. Зарічна",49,2016-12-26,522,Публікування матеріалів у друкованих ЗМІ,Реклама в друкованих ЗМІ,389689,Центральний офіс,39181335,Україна,Оплата за розміщення рекламних матеріалів в газеті,26004100001777,state,13650.00,"РРГ ""Голос Верховини""",02472708,юридична особа
НАРОДНИЙ ФРОНТ,"Тернопільська область, Збаразький район, Збараж, вулиця Шолом-Алейхема, 19",49,2016-12-26,631,Публікування матеріалів у друкованих ЗМІ,Реклама в друкованих ЗМІ,389688,Центральний офіс,39181335,Україна,Оплата за розміщення рекламних матеріалів в газеті,26004100001777,state,10000.00,"ТОВ ""Редакція Збаразької газети ""Народне слово""",02475262,юридична особа
НАРОДНИЙ ФРОНТ,"Одеська область, Овідіопольський район, Овідіополь, вулиця Портова, 10",49,2016-12-26,444,Публікування матеріалів у друкованих ЗМІ,Реклама в друкованих ЗМІ,389687,Центральний офіс,39181335,Україна,Оплата за розміщення рекламних матеріалів в газеті,26004100001777,state,8000.00,"КП РГ ""Наддністрянська правда""",24778431,юридична особа
НАРОДНИЙ ФРОНТ,"Львівська область, Львів, вулиця Газова, 26",49,2016-12-26,446,Публікування матеріалів у друкованих ЗМІ,Реклама в друкованих ЗМІ,389686,Центральний офіс,39181335,Україна,"Оплата за розміщення інформаційних матеріалів в газеті ""ММС-інформ Газета",26004100001777,state,66400.00,"ПП ""Маркетинг Медіа Сервіс""",34167211,юридична особа
НАРОДНИЙ ФРОНТ,"Львівська область, Борислав, вул.Карпатська брама, 14",49,2016-12-26,447,Публікування матеріалів у друкованих ЗМІ,Реклама в друкованих ЗМІ,389685,Центральний офіс,39181335,Україна,Оплата за розміщення рекламних матеріалів в газеті,26004100001777,state,10000.00,"РГ ""Нафтовик Борислава""",02474009,юридична особа
НАРОДНИЙ ФРОНТ,"Закарпатська область, Мукачево, площа Кирила і Мефодія, 29",49,2016-12-26,449,Публікування матеріалів у друкованих ЗМІ,Реклама в друкованих ЗМІ,389684,Центральний офіс,39181335,Україна,Оплата за розміщення рекламних матеріалів в газеті,26004100001777,state,11132.00,"ТОВ ""Редакція газети ""Панорама""",02472654,юридична особа
НАРОДНИЙ ФРОНТ,"Хмельницька область, Нетішин, проспект Незалежності, 31",49,2016-12-26,450,Публікування матеріалів у друкованих ЗМІ,Реклама в друкованих ЗМІ,389683,Центральний офіс,39181335,Україна,Оплата за розміщення рекламних матеріалів в газеті,26004100001777,state,11448.00,"РГ ""Нетішинський вісник""",21324617,юридична особа
НАРОДНИЙ ФРОНТ,"Одеська область, Арцизький район, вул. 28 Червня",49,2016-12-26,451,Публікування матеріалів у друкованих ЗМІ,Реклама в друкованих ЗМІ,389682,Центральний офіс,39181335,Україна,Оплата за розміщення рекламних матеріалів в газеті,26004100001777,state,10000.00,"КП РГ ""Арцизькі вісті""",02474334,юридична особа
НАРОДНИЙ ФРОНТ,"Чернівецька область, Чернівці, вулиця Українська, 22",49,2016-12-26,452,Публікування матеріалів у друкованих ЗМІ,Реклама в друкованих ЗМІ,389681,Центральний офіс,39181335,Україна,Оплата за розміщення рекламних матеріалів в газеті,26004100001777,state,18050.00,"Колективне підприємство ""Редакція газети ""Буковина""",02476296,юридична особа
НАРОДНИЙ ФРОНТ,"Житомирська область, Коростень, вулиця Шевченка, 4",49,2016-12-26,453,Публікування матеріалів у друкованих ЗМІ,Реклама в друкованих ЗМІ,389680,Центральний офіс,39181335,Україна,Оплата за розміщення рекламних матеріалів в газеті,26004100001777,state,8400.00,"РГ ""Вечірній Коростень""",13562679,юридична особа
НАРОДНИЙ ФРОНТ,"Тернопільська область, Козівський район, Козова",49,2016-12-26,454,Публікування матеріалів у друкованих ЗМІ,Реклама в друкованих ЗМІ,389679,Центральний офіс,39181335,Україна,Оплата за розміщення рекламних матеріалів в газеті,26004100001777,state,13468.00,"РГ ""Вільне Слово""",02475285,юридична особа
НАРОДНИЙ ФРОНТ,"Херсонська область, Генічеський район, Генічеськ, вулиця Вокзальна, 3",49,2016-12-26,455,Публікування матеріалів у друкованих ЗМІ,Реклама в друкованих ЗМІ,389678,Центральний офіс,39181335,Україна,Оплата за розміщення рекламних матеріалів в газеті,26004100001777,state,6976.80,"КП РРГ ""Приазовська правда""",02475486,юридична особа
НАРОДНИЙ ФРОНТ,"Київська обл., Фастів, вулиця Соборна, 39",49,2016-12-26,456,Публікування матеріалів у друкованих ЗМІ,Реклама в друкованих ЗМІ,389677,Центральний офіс,39181335,Україна,Оплата за розміщення рекламних матеріалів в газеті,26004100001777,state,16800.00,"РГ ""Перемога""",02473197,юридична особа
НАРОДНИЙ ФРОНТ,"Херсонська область, Чаплинський район, Чаплинка, вулиця Грушевського, 16",49,2016-12-26,457,Публікування матеріалів у друкованих ЗМІ,Реклама в друкованих ЗМІ,389676,Центральний офіс,39181335,Україна,Оплата за розміщення рекламних матеріалів в газеті,26004100001777,state,6720.00,"РГ ""Голос Таврії""",02475411,юридична особа
НАРОДНИЙ ФРОНТ,"Чернігівська область, Срібнянський район, Срібне, вул. Миру",49,2016-12-26,458,Публікування матеріалів у друкованих ЗМІ,Реклама в друкованих ЗМІ,389675,Центральний офіс,39181335,Україна,Оплата за розміщення рекламних матеріалів в газеті,26004100001777,state,8433.00,"ТОВ ""Срібнянщина""",02476149,юридична особа
НАРОДНИЙ ФРОНТ,"Львівська область, Старий Самбір, вулиця Михайла Коцюбинського, 6",49,2016-12-26,459,Публікування матеріалів у друкованих ЗМІ,Реклама в друкованих ЗМІ,389674,Центральний офіс,39181335,Україна,Оплата за розміщення рекламних матеріалів в газеті,26004100001777,state,10989.00,"ПП РГ ""Прикарпатська ватра""",35653502,юридична особа
НАРОДНИЙ ФРОНТ,"Волинська область, Володимир-Волинський, вулиця Драгоманова, 18",49,2016-12-26,460,Публікування матеріалів у друкованих ЗМІ,Реклама в друкованих ЗМІ,389673,Центральний офіс,39181335,Україна,Оплата за розміщення рекламних матеріалів в газеті,26004100001777,state,8505.00,"РГ ""Слово правди""",02471761,юридична особа
НАРОДНИЙ ФРОНТ,"Житомирська область, Ружинський район, Ружин, вулиця Бірюкова, буд. 2",49,2016-12-26,461,Публікування матеріалів у друкованих ЗМІ,Реклама в друкованих ЗМІ,389672,Центральний офіс,39181335,Україна,Оплата за розміщення рекламних матеріалів в газеті,26004100001777,state,13860.00,"РГ ""Ружинська земля""",02472542,юридична особа
НАРОДНИЙ ФРОНТ,"Івано-Франківська область, Івано-Франківськ, вулиця В'ячеслава Чорновола, 99",49,2016-12-26,462,Публікування матеріалів у друкованих ЗМІ,Реклама в друкованих ЗМІ,389671,Центральний офіс,39181335,Україна,Оплата за розміщення рекламних матеріалів в газеті,26004100001777,state,17953.92,"ТОВ РГ ""Репортер""",31524848,юридична особа
НАРОДНИЙ ФРОНТ,"Львівська область, Сокальський район, Белз, вулиця Шашкевича",49,2016-12-26,521,Публікування матеріалів у друкованих ЗМІ,Реклама в друкованих ЗМІ,389670,Центральний офіс,39181335,Україна,Оплата за розміщення рекламних матеріалів в газеті,26004100001777,state,7665.00,"КП РГ ""Голос з-над Бугу""",02473872,юридична особа
НАРОДНИЙ ФРОНТ,"Рівненська область, Костопільський район, Костопіль, вул.Незалежності, 7",49,2016-12-26,496,Публікування матеріалів у друкованих ЗМІ,Реклама в друкованих ЗМІ,389669,Центральний офіс,39181335,Україна,Оплата за розміщення рекламних матеріалів в газеті,26004100001777,state,6097.00,"Комунальна організація ""Новини Костопільщини""",39382416,юридична особа
НАРОДНИЙ ФРОНТ,"Дніпропетровська область, Дніпро́, вулиця Воскресенська, 14",49,2016-12-26,498,Публікування матеріалів у друкованих ЗМІ,Реклама в друкованих ЗМІ,389668,Центральний офіс,39181335,Україна,Оплата за розміщення рекламних матеріалів в газеті,26004100001777,state,25800.00,"РГ ""Наше місто""",19087191,юридична особа
НАРОДНИЙ ФРОНТ,"Волинська область, Нововолинськ, проспект Дружби, 27",49,2016-12-26,499,Публікування матеріалів у друкованих ЗМІ,Реклама в друкованих ЗМІ,389667,Центральний офіс,39181335,Україна,Оплата за розміщення рекламних матеріалів в газеті,26004100001777,state,7488.00,"РГ ""Наше місто""",20128222,юридична особа
НАРОДНИЙ ФРОНТ,"Харківська область, Кегичівський район, Кегичівка, вул. Волошина, 76",49,2016-12-26,500,Публікування матеріалів у друкованих ЗМІ,Реклама в друкованих ЗМІ,389666,Центральний офіс,39181335,Україна,Оплата за розміщення рекламних матеріалів в газеті,26004100001777,state,8000.00,"ТОВ ""Наш край-1933""",02476617,юридична особа
НАРОДНИЙ ФРОНТ,"Львівська область, Радехівський район, Радехів, вулиця Богдана Хмельницького, 22",49,2016-12-26,501,Публікування матеріалів у друкованих ЗМІ,Реклама в друкованих ЗМІ,389665,Центральний офіс,39181335,Україна,Оплата за розміщення рекламних матеріалів в газеті,26004100001777,state,7309.12,"РГ ""Народна справа""""",02473903,юридична особа
НАРОДНИЙ ФРОНТ,"Вінницька область, Вінниця, вулиця Ширшова",49,2016-12-26,502,Публікування матеріалів у друкованих ЗМІ,Реклама в друкованих ЗМІ,389664,Центральний офіс,39181335,Україна,Оплата за розміщення рекламних матеріалів в газеті,26004100001777,state,43747.20,"ТОВ ""Місто""",32833106,юридична особа
НАРОДНИЙ ФРОНТ,"Запорізька область, Запоріжжя, проспект Соборний, 152",49,2016-12-26,509,Публікування матеріалів у друкованих ЗМІ,Реклама в друкованих ЗМІ,389663,Центральний офіс,39181335,Україна,Оплата за розміщення рекламних матеріалів в газеті,26004100001777,state,66500.00,"ТОВ ""Газета ""МИГ""",14298776,юридична особа
НАРОДНИЙ ФРОНТ,"Одеська область, Ізмаїл, проспект Суворова, 77",49,2016-12-26,510,Публікування матеріалів у друкованих ЗМІ,Реклама в друкованих ЗМІ,389662,Центральний офіс,39181335,Україна,Оплата за розміщення рекламних матеріалів в газеті,26004100001777,state,19500.00,"ТОВ ""Видавничий дім ""Курʼєр""",35328402,юридична особа
НАРОДНИЙ ФРОНТ,"Харківська область, Шевченківський район, Шевченкове, вулиця Лермонтова, 7",49,2016-12-26,511,Публікування матеріалів у друкованих ЗМІ,Реклама в друкованих ЗМІ,389661,Центральний офіс,39181335,Україна,Оплата за розміщення рекламних матеріалів в газеті,26004100001777,state,12000.00,"ТОВ ""Творче агенство ""Краєвид""",30926113,юридична особа
НАРОДНИЙ ФРОНТ,"Житомирська область, Чуднівський район, Чуднів",49,2016-12-26,512,Публікування матеріалів у друкованих ЗМІ,Реклама в друкованих ЗМІ,389660,Центральний офіс,39181335,Україна,Оплата за розміщення рекламних матеріалів в газеті,26004100001777,state,13000.00,"РГ ""Життя Чуднівщини""""",02472447,юридична особа
НАРОДНИЙ ФРОНТ,"Львівська область, Кам'янка-Бузький район, Кам'янка-Бузька, вулиця Незалежності, 27",49,2016-12-26,513,Публікування матеріалів у друкованих ЗМІ,Реклама в друкованих ЗМІ,389659,Центральний офіс,39181335,Україна,Оплата за розміщення рекламних матеріалів в газеті,26004100001777,state,7497.00,"РГ ""Життя і слово""",02474050,юридична особа
НАРОДНИЙ ФРОНТ,"Тернопільська область, Кременецький район, Кременець, вулиця Словацького, 2",49,2016-12-26,514,Публікування матеріалів у друкованих ЗМІ,Реклама в друкованих ЗМІ,389658,Центральний офіс,39181335,Україна,Оплата за розміщення рекламних матеріалів в газеті,26004100001777,state,9500.00,"ТОВ ""Інформаційний центр ""Діалог""",36993179,юридична особа
НАРОДНИЙ ФРОНТ,"Сумська область, Конотоп, проспект Миру, 8",49,2016-12-26,515,Публікування матеріалів у друкованих ЗМІ,Реклама в друкованих ЗМІ,389657,Центральний офіс,39181335,Україна,Оплата за розміщення рекламних матеріалів в газеті,26004100001777,state,5709.60,"РГ ""Конотопський край""",13999152,юридична особа
НАРОДНИЙ ФРОНТ,"Полтавська область, Глобинський район, Глобине, вулиця Володимирівська, 228",49,2016-12-26,516,Публікування матеріалів у друкованих ЗМІ,Реклама в друкованих ЗМІ,389656,Центральний офіс,39181335,Україна,Оплата за розміщення рекламних матеріалів в газеті,26004100001777,state,17971.00,"РГ ""Зоря Придніпровʼя""",02476959,юридична особа
НАРОДНИЙ ФРОНТ,"Житомирська область, Житомир, вулиця Чуднівська, 106",49,2016-12-26,517,Публікування матеріалів у друкованих ЗМІ,Реклама в друкованих ЗМІ,389655,Центральний офіс,39181335,Україна,Оплата за розміщення рекламних матеріалів в газеті,26004100001777,state,30000.00,"ТОВ ""Видавництво та телерадіокомпанія ""Редакція газети ""Эхо""",13568663,юридична особа
НАРОДНИЙ ФРОНТ,"Херсонська область, Херсон, вулиця Університетська, 31",49,2016-12-26,518,Публікування матеріалів у друкованих ЗМІ,Реклама в друкованих ЗМІ,389654,Центральний офіс,39181335,Україна,"Оплата за розміщення рекламних матеріалів в газеті ""Гривня""",26004100001777,state,64008.00,"ПП ""Компроміс-медіа""",24951639,юридична особа
НАРОДНИЙ ФРОНТ,"Львівська область, Самбір, вулиця Козацька, 4",49,2016-12-26,519,Публікування матеріалів у друкованих ЗМІ,Реклама в друкованих ЗМІ,389653,Центральний офіс,39181335,Україна,Оплата за розміщення рекламних матеріалів в газеті,26004100001777,state,6916.00,"РГ ""Голос Самбірщини""",13808531,юридична особа
НАРОДНИЙ ФРОНТ,"Чернівецька область, Заставнівський район, Заставна, вулиця Чорновола, 4",49,2016-12-26,520,Публікування матеріалів у друкованих ЗМІ,Реклама в друкованих ЗМІ,389652,Центральний офіс,39181335,Україна,Оплата за розміщення рекламних матеріалів в газеті,26004100001777,state,11934.00,"ПП ""Заставнівська обласна редакція газети ""Голос краю""",02476347,юридична особа
НАРОДНИЙ ФРОНТ,"Тернопільська область, Бучацький район, Бучач, вулиця Галицька, 84",49,2016-12-26,497,Публікування матеріалів у друкованих ЗМІ,Реклама в друкованих ЗМІ,389651,Центральний офіс,39181335,Україна,Оплата за розміщення рекламних матеріалів в газеті,26004100001777,state,16804.00,"РГ ""Нова доба""",02475233,юридична особа
НАРОДНИЙ ФРОНТ,"Львівська область, Самбір, вулиця Козацька, 4",49,2016-12-26,495,Публікування матеріалів у друкованих ЗМІ,Реклама в друкованих ЗМІ,389650,Центральний офіс,39181335,Україна,Оплата за розміщення рекламних матеріалів в газеті,26004100001777,state,7904.00,"РГ ""Новини Самбора""",30624938,юридична особа
НАРОДНИЙ ФРОНТ,"Херсонська область, Нова Каховка",49,2016-12-26,494,Публікування матеріалів у друкованих ЗМІ,Реклама в друкованих ЗМІ,389649,Центральний офіс,39181335,Україна,Оплата за розміщення рекламних матеріалів в газеті,26004100001777,state,24000.00,"ТОВ ""Редакція газети ""Нова Каховка""",22752321,юридична особа
НАРОДНИЙ ФРОНТ,"Сумська область, Конотоп, вулиця Михайла Сусла, 21",49,2016-12-26,477,Публікування матеріалів у друкованих ЗМІ,Реклама в друкованих ЗМІ,389648,Центральний офіс,39181335,Україна,Оплата за розміщення інформаційних матеріалів в газеті,26004100001777,state,6771.60,"РГ ""Сільські горизонти""",21107216,юридична особа
НАРОДНИЙ ФРОНТ,"Вінницька область, Ямпільський район, Ямпіль, вулиця Богдана Хмельницького, 57",49,2016-12-26,478,Публікування матеріалів у друкованих ЗМІ,Реклама в друкованих ЗМІ,389647,Центральний офіс,39181335,Україна,Оплата за розміщення інформаційних матеріалів в газеті,26004100001777,state,8312.00,"КП РРГ ""Ямпільські вісті""",02471577,юридична особа
НАРОДНИЙ ФРОНТ,"Черкаська область, Чорнобаївський район, Чорнобай, вулиця Леніна, 211",49,2016-12-26,479,Публікування матеріалів у друкованих ЗМІ,Реклама в друкованих ЗМІ,389646,Центральний офіс,39181335,Україна,Оплата за розміщення інформаційних матеріалів в газеті,26004100001777,state,10863.00,"РГ ""Світлий шлях""",02475871,юридична особа
НАРОДНИЙ ФРОНТ,"Івано-Франківська область, Долинський район, Долина, майдан Січових Стрільців, 3",49,2016-12-26,480,Публікування матеріалів у друкованих ЗМІ,Реклама в друкованих ЗМІ,389645,Центральний офіс,39181335,Україна,Оплата за розміщення рекламних матеріалів в газеті,26004100001777,state,10000.00,"ТОВ ""Медіацентр ""Свіча""",20545641,юридична особа
НАРОДНИЙ ФРОНТ,"Рівненська область, Рівне, вулиця Соборна, 195",49,2016-12-26,481,Публікування матеріалів у друкованих ЗМІ,Реклама в друкованих ЗМІ,389644,Центральний офіс,39181335,Україна,Оплата за розміщення рекламних матеріалів в газеті,26004100001777,state,6527.00,"РГ ""Слово і час""",02474831,юридична особа
НАРОДНИЙ ФРОНТ,"Харківська область, Харківський район, Пісочин, провулок Транспортний, 2",49,2016-12-26,482,Публікування матеріалів у друкованих ЗМІ,Реклама в друкованих ЗМІ,389643,Центральний офіс,39181335,Україна,Оплата за розміщення рекламних матеріалів в газеті,26004100001777,state,8000.00,"ТОВ ""Три-медіа""",02476416,юридична особа
НАРОДНИЙ ФРОНТ,"Запорізька область, Запоріжжя, вулиця Кияшка, 16",49,2016-12-26,483,Публікування матеріалів у друкованих ЗМІ,Реклама в друкованих ЗМІ,389642,Центральний офіс,39181335,Україна,Оплата за розміщення рекламних матеріалів в газеті,26004100001777,state,21000.00,"ТОВ ""Вулиця...""",31490898,юридична особа
НАРОДНИЙ ФРОНТ,"Житомирська область, Чуднівський район, Чуднів",49,2016-12-26,484,Публікування матеріалів у друкованих ЗМІ,Реклама в друкованих ЗМІ,389641,Центральний офіс,39181335,Україна,Оплата за розміщення рекламних матеріалів в газеті,26004100001777,state,8000.00,"КП РГ ""Чуднівська фортеця""",34868527,юридична особа
НАРОДНИЙ ФРОНТ,"Одеська область, Южне, проспект Миру, 19",49,2016-12-26,485,Публікування матеріалів у друкованих ЗМІ,Реклама в друкованих ЗМІ,389640,Центральний офіс,39181335,Україна,Оплата за розміщення рекламних матеріалів в газеті,26004100001777,state,6000.00,"МПП ""Гармонія""",22502245,юридична особа
НАРОДНИЙ ФРОНТ,"Херсонська область, Херсон, вулиця Університетська, 31",49,2016-12-26,486,Публікування матеріалів у друкованих ЗМІ,Реклама в друкованих ЗМІ,389639,Центральний офіс,39181335,Україна,Оплата за розміщення рекламних матеріалів в газеті,26004100001777,state,24000.00,"ПП ""Компроміс-медіа""",24951639,юридична особа
НАРОДНИЙ ФРОНТ,"Львівська область, Самбір",49,2016-12-26,487,Публікування матеріалів у друкованих ЗМІ,Реклама в друкованих ЗМІ,389638,Центральний офіс,39181335,Україна,Оплата за розміщення рекламних матеріалів в газеті,26004100001777,state,6552.00,"ТОВ РГ ""Самбірська газета""",40128395,юридична особа
НАРОДНИЙ ФРОНТ,"Полтавська область, Шишацький район, Шишаки, вулиця Легейди, 4А",49,2016-12-26,488,Публікування матеріалів у друкованих ЗМІ,Реклама в друкованих ЗМІ,389637,Центральний офіс,39181335,Україна,Оплата за розміщення рекламних матеріалів в газеті,26004100001777,state,8634.78,"ТОВ ""Редакція Шишацької газети ""Сільське життя""",02474707,юридична особа
НАРОДНИЙ ФРОНТ,"Миколаївська область, Миколаїв, вулиця Адміральська, 20",49,2016-12-26,489,Публікування матеріалів у друкованих ЗМІ,Реклама в друкованих ЗМІ,389636,Центральний офіс,39181335,Україна,Оплата за розміщення рекламних матеріалів в газеті,26004100001777,state,10615.00,"ТОВ РГ ""Родной причал""",20883728,юридична особа
НАРОДНИЙ ФРОНТ,"Рівненська область, Рівне, вулиця Вячеслава Чорновола, 14, 16",49,2016-12-26,490,Публікування матеріалів у друкованих ЗМІ,Реклама в друкованих ЗМІ,389635,Центральний офіс,39181335,Україна,Оплата за розміщення рекламних матеріалів в газеті,26004100001777,state,15000.00,"ТОВ ""Видавнича група ""Ракурс""",36922025,юридична особа
НАРОДНИЙ ФРОНТ,"Одеська область, Ширяївський район, Ширяєве",49,2016-12-26,491,Публікування матеріалів у друкованих ЗМІ,Реклама в друкованих ЗМІ,389634,Центральний офіс,39181335,Україна,Оплата за розміщення рекламних матеріалів в газеті,26004100001777,state,11766.00,"РГ ""Промінь""",02474280,юридична особа
НАРОДНИЙ ФРОНТ,"Миколаївська область, Первомайський район, Кам'яний Міст, вулиця Заводська",49,2016-12-26,493,Публікування матеріалів у друкованих ЗМІ,Реклама в друкованих ЗМІ,389633,Центральний офіс,39181335,Україна,Оплата за розміщення рекламних матеріалів в газеті,26004100001777,state,8000.00,"КП РГ ""Прибузький вісник""",32843757,юридична особа
НАРОДНИЙ ФРОНТ,"Львівська область, Золочівський район, Золочів, вулиця Героїв УПА, 8",49,2016-12-26,630,Публікування матеріалів у друкованих ЗМІ,Реклама в друкованих ЗМІ,389632,Центральний офіс,39181335,Україна,Оплата за розміщення рекламних матеріалів в газеті,26004100001777,state,7650.00,"РГ ""Народне слово""",02474067,юридична особа
НАРОДНИЙ ФРОНТ,"Дніпропетровська область, Петриківський район, Петриківка, вулиця Леніна, 52",49,2016-12-26,765,Публікування матеріалів у друкованих ЗМІ,Реклама в друкованих ЗМІ,389631,Центральний офіс,39181335,Україна,Оплата за розміщення рекламних матеріалів в газеті,26004100001777,state,11400.00,"РГ ""Петриківські новини""",19150328,юридична особа
НАРОДНИЙ ФРОНТ,"Волинська область, Турійський район, Турійськ, вулиця Луцька, 16",49,2016-12-26,768,Публікування матеріалів у друкованих ЗМІ,Реклама в друкованих ЗМІ,389630,Центральний офіс,39181335,Україна,Оплата за розміщення рекламних матеріалів в газеті,26004100001777,state,7207.50,"РГ ""Народне Слово""",02471749,юридична особа
НАРОДНИЙ ФРОНТ,"Одеська область, Одеса",49,2016-12-26,769,Публікування матеріалів у друкованих ЗМІ,Реклама в друкованих ЗМІ,389629,Центральний офіс,39181335,Україна,"Оплата за розміщення рекламних матеріалів в газеті ""Первая городская газета.",26004100001777,state,18969.60,"ТОВ ""Фірюза""",34801897,юридична особа
НАРОДНИЙ ФРОНТ,"Закарпатська область, Ужгород, вулиця Собранецька, 84",49,2016-12-26,770,Публікування матеріалів у друкованих ЗМІ,Реклама в друкованих ЗМІ,389628,Центральний офіс,39181335,Україна,Оплата за розміщення рекламних матеріалів в газеті,26004100001777,state,10000.00,"КП Газета ""Вісті Ужгородщини""",02472660,юридична особа
НАРОДНИЙ ФРОНТ,"Дніпропетровська область, Дніпро́, вулиця Старокозацька, 58",49,2016-12-26,771,Публікування матеріалів у друкованих ЗМІ,Реклама в друкованих ЗМІ,389627,Центральний офіс,39181335,Україна,Оплата за розміщення рекламних матеріалів в газеті,26004100001777,state,30780.00,"ТОВ ""Вісті Придніпровʼя""",36442168,юридична особа
НАРОДНИЙ ФРОНТ,"Кіровоградська область, Кропивницький",49,2016-12-26,772,Публікування матеріалів у друкованих ЗМІ,Реклама в друкованих ЗМІ,389626,Центральний офіс,39181335,Україна,"Оплата за розміщення рекламних матеріалів в газеті ""Сільське життя плюс""",26004100001777,state,26400.00,"ТОВ ""Телерадіовидавнича компанія ""Новий День""",13747864,юридична особа
НАРОДНИЙ ФРОНТ,"Запорізька область, Запоріжжя",49,2016-12-26,773,Публікування матеріалів у друкованих ЗМІ,Реклама в друкованих ЗМІ,389625,Центральний офіс,39181335,Україна,"Оплата за розміщення рекламних матеріалів в газеті ""Позиція""",26004100001777,state,12000.00,"ТОВ ""Медіа-партнер""",32875422,юридична особа
НАРОДНИЙ ФРОНТ,"Івано-Франківська область, Івано-Франківськ, вулиця Сорохтея, 37",49,2016-12-26,774,Публікування матеріалів у друкованих ЗМІ,Реклама в друкованих ЗМІ,389624,Центральний офіс,39181335,Україна,Оплата за розміщення рекламних матеріалів в газеті,26004100001777,state,16796.00,"ДП ""Галицький кореспондент""",35276475,юридична особа
НАРОДНИЙ ФРОНТ,"Житомирська область, Житомир, майдан С.П. Корольова, 4/2",49,2016-12-26,775,Публікування матеріалів у друкованих ЗМІ,Реклама в друкованих ЗМІ,389623,Центральний офіс,39181335,Україна,Оплата за розміщення рекламних матеріалів в газеті,26004100001777,state,16800.00,"ТОВ ""Редакція газети ""Житомирщина""",02472499,юридична особа
НАРОДНИЙ ФРОНТ,"Черкаська область, Черкаси, вулиця Новопречистенська, 1",49,2016-12-26,776,Публікування матеріалів у друкованих ЗМІ,Реклама в друкованих ЗМІ,389622,Центральний офіс,39181335,Україна,"Оплата за розміщення рекламних матеріалів в газеті ""7 днів Черкаси""",26004100001777,state,20586.80,"ТОВ ""Агентство ""Сова""",40915691,юридична особа
НАРОДНИЙ ФРОНТ,"Черкаська область, Черкаси, вулиця Новопречистенська, 1",49,2016-12-26,777,Публікування матеріалів у друкованих ЗМІ,Реклама в друкованих ЗМІ,389621,Центральний офіс,39181335,Україна,"Оплата за розміщення рекламних матеріалів в газеті ""Акцент""",26004100001777,state,28860.00,"ТОВ ""Агентство ""Сова""",40915691,юридична особа
НАРОДНИЙ ФРОНТ,"Волинська область, Луцьк, вулиця Конякіна, 18А",49,2016-12-26,778,Публікування матеріалів у друкованих ЗМІ,Реклама в друкованих ЗМІ,389620,Центральний офіс,39181335,Україна,"Оплата за розміщення рекламних матеріалів в газеті ""Сімʼя і дім. Народна трибуна""",26004100001777,state,38400.00,"РГ ""Сімʼя і дім""",21748636,юридична особа
НАРОДНИЙ ФРОНТ,"Чернівецька область, Чернівці, вулиця Руська, 20",49,2016-12-26,779,Публікування матеріалів у друкованих ЗМІ,Реклама в друкованих ЗМІ,389619,Центральний офіс,39181335,Україна,Оплата за розміщення рекламних матеріалів в газеті,26004100001777,state,25760.00,"КП РГ ""Час""",30749802,юридична особа
НАРОДНИЙ ФРОНТ,"Черкаська область, Черкаси, вулиця Хрещатик, 251",49,2016-12-26,780,Публікування матеріалів у друкованих ЗМІ,Реклама в друкованих ЗМІ,389618,Центральний офіс,39181335,Україна,Оплата за розміщення рекламних матеріалів в газеті,26004100001777,state,12000.00,"РГ ""Черкаський край""",02475813,юридична особа
НАРОДНИЙ ФРОНТ,"Сумська область, Суми, вулиця Герасима Кондратьєва, 27",49,2016-12-26,782,Публікування матеріалів у друкованих ЗМІ,Реклама в друкованих ЗМІ,389617,Центральний офіс,39181335,Україна,Оплата за розміщення рекламних матеріалів в газеті,26004100001777,state,48000.00,"КП РГ ""Сумщина""",02475078,юридична особа
НАРОДНИЙ ФРОНТ,"Закарпатська область, Ужгород, вулиця Бєлінського, 24",49,2016-12-26,784,Публікування матеріалів у друкованих ЗМІ,Реклама в друкованих ЗМІ,389616,Центральний офіс,39181335,Україна,"Оплата за розміщення рекламних матеріалів в газеті ""РІО""",26004100001777,state,42037.92,"ТОВ ""Редакційно-видавнича фірма ""Тиждень Прес""",22082300,юридична особа
НАРОДНИЙ ФРОНТ,"Запорізька область, Запоріжжя, вулиця Поштова, 165",49,2016-12-26,785,Публікування матеріалів у друкованих ЗМІ,Реклама в друкованих ЗМІ,389615,Центральний офіс,39181335,Україна,"Оплата за розміщення рекламних матеріалів в газеті ""Запоржский пенсионер""",26004100001777,state,24000.00,"ПП ""ІН-Про""",31491446,юридична особа
НАРОДНИЙ ФРОНТ,"Хмельницька область, Хмельницький, вулиця Прибузька, 2",49,2016-12-26,786,Публікування матеріалів у друкованих ЗМІ,Реклама в друкованих ЗМІ,389614,Центральний офіс,39181335,Україна,Оплата за розміщення рекламних матеріалів в газеті,26004100001777,state,9690.00,"ТОВ ""Газета ""Проскурів""",14175341,юридична особа
НАРОДНИЙ ФРОНТ,"Полтавська область, Полтава, вулиця Європейська, 8",49,2016-12-26,789,Публікування матеріалів у друкованих ЗМІ,Реклама в друкованих ЗМІ,389613,Центральний офіс,39181335,Україна,Оплата за розміщення рекламних матеріалів в газеті,26004100001777,state,18240.00,"РГ ""Полтавський вісник""",21045231,юридична особа
НАРОДНИЙ ФРОНТ,"Запорізька область, Бердянськ, Мелітопольське шосе, 19",49,2016-12-26,766,Публікування матеріалів у друкованих ЗМІ,Реклама в друкованих ЗМІ,389612,Центральний офіс,39181335,Україна,Оплата за розміщення рекламних матеріалів в газеті,26004100001777,state,10997.60,"РГ ""Південна зоря""",13629248,юридична особа
НАРОДНИЙ ФРОНТ,"Київська обл., Обухівський район, Обухів, Володимира Чаплінського вулиця, 5",49,2016-12-26,764,Публікування матеріалів у друкованих ЗМІ,Реклама в друкованих ЗМІ,389611,Центральний офіс,39181335,Україна,Оплата за розміщення рекламних матеріалів в газеті,26004100001777,state,12000.00,"РГ ""Обухівський край""",02473300,юридична особа
НАРОДНИЙ ФРОНТ,"Кіровоградська область, Устинівський район, Устинівка",49,2016-12-26,738,Публікування матеріалів у друкованих ЗМІ,Реклама в друкованих ЗМІ,389610,Центральний офіс,39181335,Україна,Оплата за розміщення рекламних матеріалів в газеті,26004100001777,state,7000.00,"РГ ""Трудівник Устинівщини""",02473487,юридична особа
НАРОДНИЙ ФРОНТ,"Житомирська область, Попільнянський район, Попільня",49,2016-12-26,763,Публікування матеріалів у друкованих ЗМІ,Реклама в друкованих ЗМІ,389609,Центральний офіс,39181335,Україна,Оплата за розміщення рекламних матеріалів в газеті,26004100001777,state,13300.00,"РГ ""Перемога""",02472565,юридична особа
НАРОДНИЙ ФРОНТ,"Тернопільська область, Шумський район, Шумськ, вулиця Українська, 47",49,2016-12-26,633,Публікування матеріалів у друкованих ЗМІ,Реклама в друкованих ЗМІ,389608,Центральний офіс,39181335,Україна,Оплата за розміщення рекламних матеріалів в газеті,26004100001777,state,11856.00,"ТОВ ""Інформаційний центр ""Новини Шумщини""",02475204,юридична особа
НАРОДНИЙ ФРОНТ,"Івано-Франківська область, Рожнятівський район, Рожнятів, площа Єдності, 31",49,2016-12-26,741,Публікування матеріалів у друкованих ЗМІ,Реклама в друкованих ЗМІ,389607,Центральний офіс,39181335,Україна,Оплата за розміщення рекламних матеріалів в газеті,26004100001777,state,9800.00,"РГ ""Новини Підгірʼя""",02472973,юридична особа
НАРОДНИЙ ФРОНТ,"Житомирська область, Любарський район, Старий Любар, вулиця Пушкіна, 6",49,2016-12-26,742,Публікування матеріалів у друкованих ЗМІ,Реклама в друкованих ЗМІ,389606,Центральний офіс,39181335,Україна,Оплата за розміщення рекламних матеріалів в газеті,26004100001777,state,12000.00,"РГ ""Новий день""",02472536,юридична особа
НАРОДНИЙ ФРОНТ,"Волинська область, Рожищенський район, Рожище, вулиця Незалежності, 82",49,2016-12-26,743,Публікування матеріалів у друкованих ЗМІ,Реклама в друкованих ЗМІ,389605,Центральний офіс,39181335,Україна,Оплата за розміщення рекламних матеріалів в газеті,26004100001777,state,8008.00,"ПП ""Редакція газети ""Наше життя""",02471655,юридична особа
НАРОДНИЙ ФРОНТ,"Волинська область, Камінь-Каширський район, вулиця Ковельська, 36",49,2016-12-26,744,Публікування матеріалів у друкованих ЗМІ,Реклама в друкованих ЗМІ,389604,Центральний офіс,39181335,Україна,Оплата за розміщення рекламних матеріалів в газеті,26004100001777,state,10868.00,"РГ ""Полісся""",02471637,юридична особа
НАРОДНИЙ ФРОНТ,"Дніпропетровська область, Павлоград, вулиця Дніпровська, 172",49,2016-12-26,745,Публікування матеріалів у друкованих ЗМІ,Реклама в друкованих ЗМІ,389603,Центральний офіс,39181335,Україна,"Оплата за розміщення рекламних матеріалів в газеті Популярные ведомости""",26004100001777,state,15300.00,"ТОВ ""ПСК ""Форум""",35354909,юридична особа
НАРОДНИЙ ФРОНТ,"Вінницька область, Немирівський район, Немирів",49,2016-12-26,746,Публікування матеріалів у друкованих ЗМІ,Реклама в друкованих ЗМІ,389602,Центральний офіс,39181335,Україна,Оплата за розміщення рекламних матеріалів в газеті,26004100001777,state,16000.00,"ПП ""Редакція Немирівської районної громадсько-політичної газети ""Прибузькі новини""",02471465,юридична особа
НАРОДНИЙ ФРОНТ,"Житомирська область, Лугинський район, Лугини, вулиця Кірова, 13",49,2016-12-26,747,Публікування матеріалів у друкованих ЗМІ,Реклама в друкованих ЗМІ,389601,Центральний офіс,39181335,Україна,Оплата за розміщення рекламних матеріалів в газеті,26004100001777,state,5751.00,"РГ ""Промінь""",02472520,юридична особа
НАРОДНИЙ ФРОНТ,"Волинська область, Ратнівський район, Ратне, вулиця Серпнева, 5",49,2016-12-26,748,Публікування матеріалів у друкованих ЗМІ,Реклама в друкованих ЗМІ,389600,Центральний офіс,39181335,Україна,Оплата за розміщення рекламних матеріалів в газеті,26004100001777,state,10530.00,"РВК ""Ратнівщина""",02471666,юридична особа
НАРОДНИЙ ФРОНТ,"Дніпропетровська область, Нікополь, вулиця Електрометалургів, 50",49,2016-12-26,749,Публікування матеріалів у друкованих ЗМІ,Реклама в друкованих ЗМІ,389599,Центральний офіс,39181335,Україна,"Оплата за розміщення рекламних матеріалів в газеті ""Репортер""",26004100001777,state,14000.00,"ТОВ ""Інформаційний Центр ""Репортер""",30695679,юридична особа
НАРОДНИЙ ФРОНТ,"Вінницька область, Крижопільський район, Крижопіль",49,2016-12-26,750,Публікування матеріалів у друкованих ЗМІ,Реклама в друкованих ЗМІ,389598,Центральний офіс,39181335,Україна,Оплата за розміщення рекламних матеріалів в газеті,26004100001777,state,10070.00,"РГ ""Сільські новини""",02471590,юридична особа
НАРОДНИЙ ФРОНТ,"Кіровоградська область, Кропивницький, вулиця Поповича, 29",49,2016-12-26,751,Публікування матеріалів у друкованих ЗМІ,Реклама в друкованих ЗМІ,389597,Центральний офіс,39181335,Україна,Оплата за розміщення рекламних матеріалів в газеті,26004100001777,state,10400.00,"ПП ""Інформаційно-видавниче обʼєднання ""Сільське життя""",02473582,юридична особа
НАРОДНИЙ ФРОНТ,"Івано-Франківська область, Богородчанський район, Богородчани, вулиця Тараса Шевченка",49,2016-12-26,752,Публікування матеріалів у друкованих ЗМІ,Реклама в друкованих ЗМІ,389596,Центральний офіс,39181335,Україна,Оплата за розміщення рекламних матеріалів в газеті,26004100001777,state,9620.00,"РГ ""Слово народу""",02473033,юридична особа
НАРОДНИЙ ФРОНТ,"Одеська область, Білгород-Дністровський, вулиця Єврейська, 49",49,2016-12-26,753,Публікування матеріалів у друкованих ЗМІ,Реклама в друкованих ЗМІ,389595,Центральний офіс,39181335,Україна,"Оплата за розміщення рекламних матеріалів в газеті ""Торнадо-пресс""",26004100001777,state,4995.00,"ТОВ Телерадіокомпанія ""Торнадо""",19045011,юридична особа
НАРОДНИЙ ФРОНТ,"Вінницька область, Гайсинський район",49,2016-12-26,754,Публікування матеріалів у друкованих ЗМІ,Реклама в друкованих ЗМІ,389594,Центральний офіс,39181335,Україна,Оплата за розміщення рекламних матеріалів в газеті,26004100001777,state,10070.00,"ТОВ ""Гайсинська редакція районної газети ""Трибуна праці""",02471459,юридична особа
НАРОДНИЙ ФРОНТ,"Дніпропетровська область, Синельниківський район, Луб'янка",49,2016-12-26,755,Публікування матеріалів у друкованих ЗМІ,Реклама в друкованих ЗМІ,389593,Центральний офіс,39181335,Україна,"Оплата за розміщення рекламних матеріалів в газеті ""Берег надій""",26004100001777,state,11507.08,"Селянське (Фермерське) господарство ""Рой""",30299854,юридична особа
НАРОДНИЙ ФРОНТ,"Київська обл., Переяслав, Шкільна вулиця, 45",49,2016-12-26,756,Публікування матеріалів у друкованих ЗМІ,Реклама в друкованих ЗМІ,389592,Центральний офіс,39181335,Україна,Оплата за розміщення рекламних матеріалів в газеті,26004100001777,state,16000.00,"ТОВ ""Медіа-центр ""Переяславщина""",02473412,юридична особа
НАРОДНИЙ ФРОНТ,"Дніпропетровська область, Тернівка, вулиця Пушкіна, 5А",49,2016-12-26,757,Публікування матеріалів у друкованих ЗМІ,Реклама в друкованих ЗМІ,389591,Центральний офіс,39181335,Україна,Оплата за розміщення рекламних матеріалів в газеті,26004100001777,state,10000.00,"КП РГ ""Вести Терновки""",33854754,юридична особа
НАРОДНИЙ ФРОНТ,"Київська обл., Рокитнянський район, Рокитне, Леніна вулиця, 1",49,2016-12-26,758,Публікування матеріалів у друкованих ЗМІ,Реклама в друкованих ЗМІ,389590,Центральний офіс,39181335,Україна,Оплата за розміщення рекламних матеріалів в газеті,26004100001777,state,14000.00,"РГ ""Вісник Рокитнянщини""",02473323,юридична особа
НАРОДНИЙ ФРОНТ,"Закарпатська область, Хуст, вулиця Корятовича, 3",49,2016-12-26,759,Публікування матеріалів у друкованих ЗМІ,Реклама в друкованих ЗМІ,389589,Центральний офіс,39181335,Україна,Оплата за розміщення рекламних матеріалів в газеті,26004100001777,state,7192.80,"РГ ""Вісник Хустщини""",02472694,юридична особа
НАРОДНИЙ ФРОНТ,"Житомирська область, Житомир, вулиця Шевченка, 104",49,2016-12-26,760,Публікування матеріалів у друкованих ЗМІ,Реклама в друкованих ЗМІ,389588,Центральний офіс,39181335,Україна,Оплата за розміщення рекламних матеріалів в газеті,26004100001777,state,6828.76,"ТОВ ""Редакція-медіацентр ""Вісті""",02472424,юридична особа
НАРОДНИЙ ФРОНТ,"Вінницька область, Іллінецький район, Іллінці, вулиця Незалежності, 18",49,2016-12-26,761,Публікування матеріалів у друкованих ЗМІ,Реклама в друкованих ЗМІ,389587,Центральний офіс,39181335,Україна,Оплата за розміщення рекламних матеріалів в газеті,26004100001777,state,10260.00,"КП РРГР ""Вісті Тепличчини""",02471494,юридична особа
НАРОДНИЙ ФРОНТ,"Дніпропетровська область, Першотравенськ, вул. Ювілейна",49,2016-12-26,762,Публікування матеріалів у друкованих ЗМІ,Реклама в друкованих ЗМІ,389586,Центральний офіс,39181335,Україна,Оплата за розміщення рекламних матеріалів в газеті,26004100001777,state,13940.30,"КП РГ ""Першотравенські новини""",20250302,юридична особа
НАРОДНИЙ ФРОНТ,"Миколаївська область, Миколаїв, вулиця Адміральська, 20",49,2016-12-26,791,Публікування матеріалів у друкованих ЗМІ,Реклама в друкованих ЗМІ,389585,Центральний офіс,39181335,Україна,Оплата за розміщення рекламних матеріалів в газеті,26004100001777,state,20725.20,"ПП РГ ""Николаевские ноости""",23088693,юридична особа
НАРОДНИЙ ФРОНТ,"Сумська область, Сумський район, Суми",49,2016-12-26,793,Публікування матеріалів у друкованих ЗМІ,Реклама в друкованих ЗМІ,389584,Центральний офіс,39181335,Україна,Оплата за розміщення рекламних матеріалів в газеті,26004100001777,state,18480.00,"ТОВ ""Всі Суми Панорама-Медіа""",36898197,юридична особа
НАРОДНИЙ ФРОНТ,"Дніпропетровська область, Верхньодніпровський район, Верхньодніпровськ, вулиця Яблунева, 35",49,2016-12-26,830,Публікування матеріалів у друкованих ЗМІ,Реклама в друкованих ЗМІ,389583,Центральний офіс,39181335,Україна,Оплата за розміщення рекламних матеріалів в газеті,26004100001777,state,10000.00,"РГ ""Придніпровський Комунар""",02471991,юридична особа
НАРОДНИЙ ФРОНТ,"Вінницька область, Вінниця, проспект Космонавтів, 23",49,2016-12-26,831,Публікування матеріалів у друкованих ЗМІ,Реклама в друкованих ЗМІ,389582,Центральний офіс,39181335,Україна,"Оплата за розміщення рекламних матеріалів в газеті ""33й канал""",26004100001777,state,43700.00,"ТОВ ""Регіна ЛТД""",13331299,юридична особа
НАРОДНИЙ ФРОНТ,"Черкаська область, Черкаси, вулиця Хрещатик, 251",49,2016-12-26,818,Публікування матеріалів у друкованих ЗМІ,Реклама в друкованих ЗМІ,389581,Центральний офіс,39181335,Україна,"Оплата за розміщення рекламних матеріалів в газеті ""Вечірні Черкаси""",26004100001777,state,4700.00,"ПП ""Видавництво ""Республіка""",21357396,юридична особа
НАРОДНИЙ ФРОНТ,"Чернігівська область, Чернігів, вулиця Богдана Хмельницького, 4",49,2016-12-26,804,Публікування матеріалів у друкованих ЗМІ,Реклама в друкованих ЗМІ,389580,Центральний офіс,39181335,Україна,Оплата за розміщення рекламних матеріалів в газеті,26004100001777,state,47000.00,"ТОВ ""РГ ""Чернігівський вісник""",31188511,юридична особа
НАРОДНИЙ ФРОНТ,"Сумська область, Суми, вулиця Петропавлівська, 70",49,2016-12-26,796,Публікування матеріалів у друкованих ЗМІ,Реклама в друкованих ЗМІ,389579,Центральний офіс,39181335,Україна,"Оплата за розміщення рекламних матеріалів в газеті ""ДС-Експрес""",26004100001777,state,19200.00,"ТОВ ""Торговий Дім ""Петро і Павел""",21111962,юридична особа
НАРОДНИЙ ФРОНТ,"Тернопільська область, Тернопіль, вулиця Анатолія Живова, 11",49,2016-12-26,797,Публікування матеріалів у друкованих ЗМІ,Реклама в друкованих ЗМІ,389578,Центральний офіс,39181335,Україна,Оплата за розміщення рекламних матеріалів в газеті,26004100001777,state,11220.00,"РГ ""Свобода""",21157527,юридична особа
НАРОДНИЙ ФРОНТ,"Тернопільська область, Тернопіль, вулиця Гетьмана Сагайдачного, 9",49,2016-12-26,798,Публікування матеріалів у друкованих ЗМІ,Реклама в друкованих ЗМІ,389577,Центральний офіс,39181335,Україна,Оплата за розміщення рекламних матеріалів в газеті,26004100001777,state,24000.00,"ПП ""Вільне життя""",34950862,юридична особа
НАРОДНИЙ ФРОНТ,"Харківська область, Харків, Московський проспект, 24",49,2016-12-26,799,Публікування матеріалів у друкованих ЗМІ,Реклама в друкованих ЗМІ,389576,Центральний офіс,39181335,Україна,Оплата за розміщення рекламних матеріалів в газеті,26004100001777,state,11000.00,"ПрАТ ""Время""",14100461,юридична особа
НАРОДНИЙ ФРОНТ,"Черкаська область, Черкаси, вулиця Хрещатик, 251",49,2016-12-26,800,Публікування матеріалів у друкованих ЗМІ,Реклама в друкованих ЗМІ,389575,Центральний офіс,39181335,Україна,"Оплата за розміщення рекламних матеріалів в газеті ""Вечірні Черкаси""",26004100001777,state,23500.00,"ПП ""Видавництво ""Республіка""",21357396,юридична особа
НАРОДНИЙ ФРОНТ,"Кіровоградська область, Кропивницький",49,2016-12-26,801,Публікування матеріалів у друкованих ЗМІ,Реклама в друкованих ЗМІ,389574,Центральний офіс,39181335,Україна,"Оплата за розміщення рекламних матеріалів в газеті ""21й канал""",26004100001777,state,36000.00,"ТОВ ""Телерадіовидавнича компанія ""Новий День""",13747864,юридична особа
НАРОДНИЙ ФРОНТ,"Волинська область, Луцьк, проспект Перемоги, 11, 52",49,2016-12-26,803,Публікування матеріалів у друкованих ЗМІ,Реклама в друкованих ЗМІ,389573,Центральний офіс,39181335,Україна,Оплата за розміщення рекламних матеріалів в газеті,26004100001777,state,14448.00,"РГ ""Вісник+К""",36541145,юридична особа
НАРОДНИЙ ФРОНТ,"Закарпатська область, Перечинський район, Перечин, вулиця Жовтнева, 93",49,2016-12-26,806,Публікування матеріалів у друкованих ЗМІ,Реклама в друкованих ЗМІ,389572,Центральний офіс,39181335,Україна,Оплата за розміщення рекламних матеріалів в газеті,26004100001777,state,8010.00,"РГ ""Народне слово""",02472625,юридична особа
НАРОДНИЙ ФРОНТ,"Кіровоградська область, Бобринецький район, Бобринець, вулиця Орджонікідзе, 80",49,2016-12-26,739,Публікування матеріалів у друкованих ЗМІ,Реклама в друкованих ЗМІ,389571,Центральний офіс,39181335,Україна,"Оплата за розміщення рекламних матеріалів в газеті ""Честь хлібороба""",26004100001777,state,10000.00,"ТОВ ""Бобринецьке редакційно-видавниче обʼєднання ""Новий день""",02473613,юридична особа
НАРОДНИЙ ФРОНТ,"Вінницька область, Тростянецький район, Тростянець, вулиця Леніна, 30",49,2016-12-26,737,Публікування матеріалів у друкованих ЗМІ,Реклама в друкованих ЗМІ,389570,Центральний офіс,39181335,Україна,Оплата за розміщення рекламних матеріалів в газеті,26004100001777,state,17887.50,"РГ ""Тростянсцькі вісті""",02471525,юридична особа
НАРОДНИЙ ФРОНТ,"Закарпатська область, Берегове, вулиця Богдана Хмельницького, 7",49,2016-12-26,659,Публікування матеріалів у друкованих ЗМІ,Реклама в друкованих ЗМІ,389569,Центральний офіс,39181335,Україна,Оплата за розміщення рекламних матеріалів в газеті,26004100001777,state,8901.00,"КП РГ ""Берегово""",30908801,юридична особа
НАРОДНИЙ ФРОНТ,"Хмельницька область, Ярмолинецький район, Ярмолинці, вулиця Чапаєва, 48",49,2016-12-26,661,Публікування матеріалів у друкованих ЗМІ,Реклама в друкованих ЗМІ,389568,Центральний офіс,39181335,Україна,Оплата за розміщення рекламних матеріалів в газеті,26004100001777,state,13318.90,"РГ ""Вперед""",21311715,юридична особа
НАРОДНИЙ ФРОНТ,"Кіровоградська область, Олександрівський район, Олександрівка, вул. Радянська",49,2016-12-26,662,Публікування матеріалів у друкованих ЗМІ,Реклама в друкованих ЗМІ,389567,Центральний офіс,39181335,Україна,Оплата за розміщення рекламних матеріалів в газеті,26004100001777,state,10800.00,"РВО ""Олександрівщина""",33064375,юридична особа
НАРОДНИЙ ФРОНТ,"Івано-Франківська область, Тисменицький район, Тисмениця, вулиця Галицька, 15",49,2016-12-26,663,Публікування матеріалів у друкованих ЗМІ,Реклама в друкованих ЗМІ,389566,Центральний офіс,39181335,Україна,Оплата за розміщення рекламних матеріалів в газеті,26004100001777,state,8775.00,"ПП ""Редакція часопису ""Вперед""",02472988,юридична особа
НАРОДНИЙ ФРОНТ,"Дніпропетровська область, Солонянський район, Солоне, вулиця Гагаріна, 5",49,2016-12-26,664,Публікування матеріалів у друкованих ЗМІ,Реклама в друкованих ЗМІ,389565,Центральний офіс,39181335,Україна,Оплата за розміщення рекламних матеріалів в газеті,26004100001777,state,10500.00,"РГ ""Вперед""",02471815,юридична особа
НАРОДНИЙ ФРОНТ,"Івано-Франківська область, Верховинський район, Верховина, вулиця Івана Франка, 107",49,2016-12-26,665,Публікування матеріалів у друкованих ЗМІ,Реклама в друкованих ЗМІ,389564,Центральний офіс,39181335,Україна,Оплата за розміщення рекламних матеріалів в газеті,26004100001777,state,10000.00,"РГ ""Верховинські вісті""",02472996,юридична особа
НАРОДНИЙ ФРОНТ,"Полтавська область, Лубни, вулиця Гагаріна, 18",49,2016-12-26,666,Публікування матеріалів у друкованих ЗМІ,Реклама в друкованих ЗМІ,389563,Центральний офіс,39181335,Україна,"Оплата за розміщення рекламних матеріалів в газеті ""Вісник""",26004100001777,state,8973.00,"ПП ""Фірма ""Корт""",24825685,юридична особа
НАРОДНИЙ ФРОНТ,"Львівська область, Жовківський район, Жовква, вулиця Львівська, 40",49,2016-12-26,667,Публікування матеріалів у друкованих ЗМІ,Реклама в друкованих ЗМІ,389562,Центральний офіс,39181335,Україна,Оплата за розміщення рекламних матеріалів в газеті,26004100001777,state,8541.00,"КП РГ ""Відродження""",02473926,юридична особа
НАРОДНИЙ ФРОНТ,"Сумська область, Лебедин, вулиця Карпова, 7, 1",49,2016-12-26,668,Публікування матеріалів у друкованих ЗМІ,Реклама в друкованих ЗМІ,389561,Центральний офіс,39181335,Україна,Оплата за розміщення рекламних матеріалів в газеті,26004100001777,state,10070.00,"ТОВ ""Будьмо разом""",30914815,юридична особа
НАРОДНИЙ ФРОНТ,"Львівська область, Сколівський район, Сколе, вулиця Данила Галицького, 7",49,2016-12-26,669,Публікування матеріалів у друкованих ЗМІ,Реклама в друкованих ЗМІ,389560,Центральний офіс,39181335,Україна,Оплата за розміщення рекламних матеріалів в газеті,26004100001777,state,7904.00,"РГ ""Бойківська думка""",02473843,юридична особа
НАРОДНИЙ ФРОНТ,"Миколаївська область, Березанський район, Березанка",49,2016-12-26,670,Публікування матеріалів у друкованих ЗМІ,Реклама в друкованих ЗМІ,389559,Центральний офіс,39181335,Україна,Оплата за розміщення рекламних матеріалів в газеті,26004100001777,state,10557.00,"РРГ ""Березань""",02474085,юридична особа
НАРОДНИЙ ФРОНТ,"Сумська область, Охтирка, вулиця Батюка, 24",49,2016-12-26,671,Публікування матеріалів у друкованих ЗМІ,Реклама в друкованих ЗМІ,389558,Центральний офіс,39181335,Україна,"Оплата за розміщення рекламних матеріалів в газеті ""Ахтырка""",26004100001777,state,6797.00,"МПП ""Мета""",14014069,юридична особа
НАРОДНИЙ ФРОНТ,"Полтавська область, Кременчук, Переяславська вулиця, 42",49,2016-12-26,672,Публікування матеріалів у друкованих ЗМІ,Реклама в друкованих ЗМІ,389557,Центральний офіс,39181335,Україна,Оплата за розміщення рекламних матеріалів в газеті,26004100001777,state,23107.50,"РГ ""Автограф""",37600473,юридична особа
НАРОДНИЙ ФРОНТ,"Черкаська область, Жашківський район, Жашків, вулиця Соборна, 59",49,2016-12-26,673,Публікування матеріалів у друкованих ЗМІ,Реклама в друкованих ЗМІ,389556,Центральний офіс,39181335,Україна,Оплата за розміщення рекламних матеріалів в газеті,26004100001777,state,7469.20,"РГ ""Жашківщина""",02475925,юридична особа
НАРОДНИЙ ФРОНТ,"Миколаївська область, Казанківський район, Казанка, вулиця Миру, 206",49,2016-12-26,674,Публікування матеріалів у друкованих ЗМІ,Реклама в друкованих ЗМІ,389555,Центральний офіс,39181335,Україна,Оплата за розміщення рекламних матеріалів в газеті,26004100001777,state,10000.00,"РРГ ""Голос Казанківщини""",02474156,юридична особа
НАРОДНИЙ ФРОНТ,"Львівська область, Пустомитівський район, Пустомити, вул. Грушевського, 11",49,2016-12-26,675,Публікування матеріалів у друкованих ЗМІ,Реклама в друкованих ЗМІ,389554,Центральний офіс,39181335,Україна,Оплата за розміщення рекламних матеріалів в газеті,26004100001777,state,8100.00,"РГ ""Голос народу""",22418295,юридична особа
НАРОДНИЙ ФРОНТ,"Сумська область, Ямпільський район, Ямпіль, Бульвар Ювілейний, 6",49,2016-12-26,676,Публікування матеріалів у друкованих ЗМІ,Реклама в друкованих ЗМІ,389553,Центральний офіс,39181335,Україна,"Оплата за розміщення рекламних матеріалів в газеті ""Голос часу""",26004100001777,state,6318.00,"КП ""Медіасвіт Ямпіль""",38094630,юридична особа
НАРОДНИЙ ФРОНТ,"Львівська область, Стрий, вулиця Богдана Хмельницького, 43",49,2016-12-26,677,Публікування матеріалів у друкованих ЗМІ,Реклама в друкованих ЗМІ,389552,Центральний офіс,39181335,Україна,Оплата за розміщення рекламних матеріалів в газеті,26004100001777,state,6000.00,"РГ ""Гомін Волі""",20773885,юридична особа
НАРОДНИЙ ФРОНТ,"Рівненська область, Млинівський район, Млинів, вулиця Кірова, 44",49,2016-12-26,678,Публікування матеріалів у друкованих ЗМІ,Реклама в друкованих ЗМІ,389551,Центральний офіс,39181335,Україна,Оплата за розміщення рекламних матеріалів в газеті,26004100001777,state,5460.00,"РГ ""Гомін""",02474943,юридична особа
НАРОДНИЙ ФРОНТ,"Херсонська область, Високопільський район, Високопілля, вулиця Українська",49,2016-12-26,679,Публікування матеріалів у друкованих ЗМІ,Реклама в друкованих ЗМІ,389550,Центральний офіс,39181335,Україна,Оплата за розміщення рекламних матеріалів в газеті,26004100001777,state,4902.50,"Високопільська районна газета ""Високе поле""",02475546,юридична особа
НАРОДНИЙ ФРОНТ,"Одеська область, Болградський район, Болград, просп. Соборний",49,2016-12-26,680,Публікування матеріалів у друкованих ЗМІ,Реклама в друкованих ЗМІ,389549,Центральний офіс,39181335,Україна,Оплата за розміщення рекламних матеріалів в газеті,26004100001777,state,8640.00,"ТОВ ""Дружба-регіон""",02474379,юридична особа
НАРОДНИЙ ФРОНТ,"Рівненська область, Дубровицький район, Дубровиця, вулиця Макарівська, 5",49,2016-12-26,681,Публікування матеріалів у друкованих ЗМІ,Реклама в друкованих ЗМІ,389548,Центральний офіс,39181335,Україна,Оплата за розміщення рекламних матеріалів в газеті,26004100001777,state,11781.00,"РГ ""Дубровицький вісник""",21084403,юридична особа
НАРОДНИЙ ФРОНТ,"Хмельницька область, Дунаєвецький район, Дунаївці, вулиця Шевченка, 50",49,2016-12-26,682,Публікування матеріалів у друкованих ЗМІ,Реклама в друкованих ЗМІ,389547,Центральний офіс,39181335,Україна,Оплата за розміщення рекламних матеріалів в газеті,26004100001777,state,11232.00,"ПП ""Медіа-центр ""Дунаєвецький вісник""",21312583,юридична особа
НАРОДНИЙ ФРОНТ,"Чернігівська область, Ріпкинський район, Ріпки",49,2016-12-26,683,Публікування матеріалів у друкованих ЗМІ,Реклама в друкованих ЗМІ,389546,Центральний офіс,39181335,Україна,Оплата за розміщення рекламних матеріалів в газеті,26004100001777,state,12286.56,"РГ ""Життя Полісся""",02476244,юридична особа
НАРОДНИЙ ФРОНТ,"Сумська область, Білопільський район, Білопілля, вул. Соборна",49,2016-12-26,660,Публікування матеріалів у друкованих ЗМІ,Реклама в друкованих ЗМІ,389545,Центральний офіс,39181335,Україна,Оплата за розміщення рекламних матеріалів в газеті,26004100001777,state,11203.80,"ТОВ ""Медіа-центр ""Білопільщина""",02475032,юридична особа
НАРОДНИЙ ФРОНТ,"Київська обл., Березань, вулиця Фрунзе, 20",49,2016-12-26,658,Публікування матеріалів у друкованих ЗМІ,Реклама в друкованих ЗМІ,389544,Центральний офіс,39181335,Україна,Оплата за розміщення рекламних матеріалів в газеті,26004100001777,state,12474.00,"КП ""Березанський інформаційний медіацентр""",38065624,юридична особа
НАРОДНИЙ ФРОНТ,"Рівненська область, Дубно, вулиця Миколи Лисенка, 21",49,2016-12-26,685,Публікування матеріалів у друкованих ЗМІ,Реклама в друкованих ЗМІ,389543,Центральний офіс,39181335,Україна,Оплата за розміщення рекламних матеріалів в газеті,26004100001777,state,4492.80,"КП РГ ""Замок""",35091290,юридична особа
НАРОДНИЙ ФРОНТ,"Вінницька область, Гайсинський район, Гайсин, Українська вулиця, 1, буд. 23",49,2016-12-26,657,Публікування матеріалів у друкованих ЗМІ,Реклама в друкованих ЗМІ,389542,Центральний офіс,39181335,Україна,Оплата за розміщення рекламних матеріалів в газеті,26004100001777,state,7720.12,"РГ ""Гайсинський вісник""",32215603,юридична особа
НАРОДНИЙ ФРОНТ,"Рівненська область, Гощанський район, Гоща, вулиця Сагайдачного, 16",49,2016-12-26,634,Публікування матеріалів у друкованих ЗМІ,Реклама в друкованих ЗМІ,389541,Центральний офіс,39181335,Україна,Оплата за розміщення рекламних матеріалів в газеті,26004100001777,state,6426.00,"РГ ""Рідний край""",02474848,юридична особа
НАРОДНИЙ ФРОНТ,"Волинська область, Локачинський район, Локачі, вулиця Івана Франка, 6",49,2016-12-26,635,Публікування матеріалів у друкованих ЗМІ,Реклама в друкованих ЗМІ,389540,Центральний офіс,39181335,Україна,Оплата за розміщення рекламних матеріалів в газеті,26004100001777,state,8082.65,"РГ ""Сільське життя""",02471689,юридична особа
НАРОДНИЙ ФРОНТ,"Вінницька область, Могилів-Подільський",49,2016-12-26,636,Публікування матеріалів у друкованих ЗМІ,Реклама в друкованих ЗМІ,389539,Центральний офіс,39181335,Україна,Оплата за розміщення рекламних матеріалів в газеті,26004100001777,state,13370.00,"КП ""Газета ""Слово Придністровʼя""",02471442,юридична особа
НАРОДНИЙ ФРОНТ,"Дніпропетровська область, Кам’янське, вулиця Ковалевича, 2",49,2016-12-26,637,Публікування матеріалів у друкованих ЗМІ,Реклама в друкованих ЗМІ,389538,Центральний офіс,39181335,Україна,"Оплата за розміщення рекламних матеріалів в газеті ""Событие сегодня""",26004100001777,state,36720.00,"ТОВ ""Перша рекламна компанія ""Найкраща""",40519311,юридична особа
НАРОДНИЙ ФРОНТ,"Миколаївська область, Миколаїв, вулиця Адміральська, 20",49,2016-12-26,638,Публікування матеріалів у друкованих ЗМІ,Реклама в друкованих ЗМІ,389537,Центральний офіс,39181335,Україна,Оплата за розміщення рекламних матеріалів в газеті,26004100001777,state,26400.00,"КП ""Незалежна громадсько-політична газета Миколаївської області ""Южная правда""",02474239,юридична особа
НАРОДНИЙ ФРОНТ,"Чернівецька, Глибоцький район, Глибока",49,2016-12-26,639,Публікування матеріалів у друкованих ЗМІ,Реклама в друкованих ЗМІ,389536,Центральний офіс,39181335,Україна,Оплата за розміщення рекламних матеріалів в газеті,26004100001777,state,18000.00,"РГ ""Новий день""",02476273,юридична особа
НАРОДНИЙ ФРОНТ,"Херсонська область, Херсон",49,2016-12-26,640,Публікування матеріалів у друкованих ЗМІ,Реклама в друкованих ЗМІ,389535,Центральний офіс,39181335,Україна,Оплата за розміщення рекламних матеріалів в газеті,26004100001777,state,36000.00,"ТОВ ""РГ ""Новий день""",14122988,юридична особа
НАРОДНИЙ ФРОНТ,"Полтавська область, Полтава, вулиця Міщенка, 2",49,2016-12-26,643,Публікування матеріалів у друкованих ЗМІ,Реклама в друкованих ЗМІ,389534,Центральний офіс,39181335,Україна,Оплата за розміщення рекламних матеріалів в газеті,26004100001777,state,26400.00,"РГ ""Село Полтавське""",13956310,юридична особа
НАРОДНИЙ ФРОНТ,"Дніпропетровська область, Дніпро́, вулиця Столярова, 1",49,2016-12-26,644,Публікування матеріалів у друкованих ЗМІ,Реклама в друкованих ЗМІ,389533,Центральний офіс,39181335,Україна,"Оплата за розміщення рекламних матеріалів в газеті ""Популярная""",26004100001777,state,16000.00,"ТОВ ""Днєпр медіа груп""",35112142,юридична особа
НАРОДНИЙ ФРОНТ,"Хмельницька область, Хмельницький, проспект Миру, 59",49,2016-12-26,645,Публікування матеріалів у друкованих ЗМІ,Реклама в друкованих ЗМІ,389532,Центральний офіс,39181335,Україна,Оплата за розміщення рекламних матеріалів в газеті,26004100001777,state,27900.00,"ПП ""Медіа-центр ""Подільські вісті""",21313714,юридична особа
НАРОДНИЙ ФРОНТ,"Одеська область, Одеса, вулиця Садова, 3",49,2016-12-26,646,Публікування матеріалів у друкованих ЗМІ,Реклама в друкованих ЗМІ,389531,Центральний офіс,39181335,Україна,"Оплата за розміщення рекламних матеріалів в газеті ""Одесская правда""",26004100001777,state,22500.00,"ТОВ ""Неонрекламсервіс""",32901745,юридична особа
НАРОДНИЙ ФРОНТ,"Сумська область, Суми, вулиця Кооперативна, 19",49,2016-12-26,648,Публікування матеріалів у друкованих ЗМІ,Реклама в друкованих ЗМІ,389530,Центральний офіс,39181335,Україна,Оплата за розміщення рекламних матеріалів в газеті,26004100001777,state,22080.00,"Сумська громадсько-ділова газета ""Ваш шанс""",21120470,юридична особа
НАРОДНИЙ ФРОНТ,"Миколаївська область, Миколаїв, вулиця Адміральська, 20",49,2016-12-26,649,Публікування матеріалів у друкованих ЗМІ,Реклама в друкованих ЗМІ,389529,Центральний офіс,39181335,Україна,Оплата за розміщення рекламних матеріалів в газеті,26004100001777,state,20880.00,"РГ ""Вечерний Николаев""",20882700,юридична особа
НАРОДНИЙ ФРОНТ,"Харківська область, Харків, Московський проспект, 247",49,2016-12-26,650,Публікування матеріалів у друкованих ЗМІ,Реклама в друкованих ЗМІ,389528,Центральний офіс,39181335,Україна,Оплата за розміщення рекламних матеріалів в газеті,26004100001777,state,30600.00,"ТОВ РГ ""Вечірній Харків""",31062088,юридична особа
НАРОДНИЙ ФРОНТ,"Полтавська область, Полтава, вулиця Пушкіна, 115",49,2016-12-26,651,Публікування матеріалів у друкованих ЗМІ,Реклама в друкованих ЗМІ,389527,Центральний офіс,39181335,Україна,Оплата за розміщення рекламних матеріалів в газеті,26004100001777,state,19000.00,"ПП ""Зоря Полтавщини""",02474794,юридична особа
НАРОДНИЙ ФРОНТ,"Запорізька область, Запоріжжя, проспект Соборний, 152",49,2016-12-26,652,Публікування матеріалів у друкованих ЗМІ,Реклама в друкованих ЗМІ,389526,Центральний офіс,39181335,Україна,Оплата за розміщення рекламних матеріалів в газеті,26004100001777,state,14816.00,"КП ""Газета ""Запорізька правда""",19269644,юридична особа
НАРОДНИЙ ФРОНТ,"Одеська область, Одеса, вулиця Садова, 3",49,2016-12-26,653,Публікування матеріалів у друкованих ЗМІ,Реклама в друкованих ЗМІ,389525,Центральний офіс,39181335,Україна,"Оплата за розміщення рекламних матеріалів в газеті ""Жизнь на пенсии""",26004100001777,state,16800.00,"ТОВ ""Неонрекламсервіс""",32901745,юридична особа
НАРОДНИЙ ФРОНТ,"Дніпропетровська область, Дніпро́, вулиця Столярова, 1",49,2016-12-26,654,Публікування матеріалів у друкованих ЗМІ,Реклама в друкованих ЗМІ,389524,Центральний офіс,39181335,Україна,"Оплата за розміщення рекламних матеріалів в газеті ""Днепр вечерний""",26004100001777,state,47000.00,"ТОВ ЮФ ""Правник""",33669201,юридична особа
НАРОДНИЙ ФРОНТ,"Тернопільська область, Борщівський район, Борщів",49,2016-12-26,655,Публікування матеріалів у друкованих ЗМІ,Реклама в друкованих ЗМІ,389523,Центральний офіс,39181335,Україна,Оплата за розміщення рекламних матеріалів в газеті,26004100001777,state,7488.00,"РГ ""Галицький вісник плюс""",37971031,юридична особа
НАРОДНИЙ ФРОНТ,"Львівська область, Дрогобич, вулиця Тараса Шевченка, 14",49,2016-12-26,656,Публікування матеріалів у друкованих ЗМІ,Реклама в друкованих ЗМІ,389522,Центральний офіс,39181335,Україна,Оплата за розміщення рекламних матеріалів в газеті,26004100001777,state,6318.00,"РГ ""Галицька Зоря""",02473978,юридична особа
НАРОДНИЙ ФРОНТ,"Київська обл., Бородянський район, Бородянка",49,2016-12-26,736,Публікування матеріалів у друкованих ЗМІ,Реклама в друкованих ЗМІ,389521,Центральний офіс,39181335,Україна,Оплата за розміщення рекламних матеріалів в газеті,26004100001777,state,11195.00,"РГ ""Вперед""",02473406,юридична особа
НАРОДНИЙ ФРОНТ,"Дніпропетровська область, Жовті Води, вулиця Івана Франка, 20",49,2016-12-26,684,Публікування матеріалів у друкованих ЗМІ,Реклама в друкованих ЗМІ,389520,Центральний офіс,39181335,Україна,Оплата за розміщення рекламних матеріалів в газеті,26004100001777,state,7840.00,"КП РГ ""Жовтоводські віст""",20274745,юридична особа
НАРОДНИЙ ФРОНТ,"Чернівецька область, Герцаївський район, Герца, вул. Шевченка",49,2016-12-26,686,Публікування матеріалів у друкованих ЗМІ,Реклама в друкованих ЗМІ,389519,Центральний офіс,39181335,Україна,Оплата за розміщення рекламних матеріалів в газеті,26004100001777,state,8044.00,Герцаївська газета,21420077,юридична особа
НАРОДНИЙ ФРОНТ,"Київська обл., Ставищенський район, Ставище, вулиця Сергія Цимбала, 35",49,2016-12-26,723,Публікування матеріалів у друкованих ЗМІ,Реклама в друкованих ЗМІ,389518,Центральний офіс,39181335,Україна,Оплата за розміщення рекламних матеріалів в газеті,26004100001777,state,12240.00,"РГ ""Сільські обрії""",02473346,юридична особа
НАРОДНИЙ ФРОНТ,"Херсонська область, Скадовський район, Скадовськ, вулиця Олександрівська, 32",49,2016-12-26,712,Публікування матеріалів у друкованих ЗМІ,Реклама в друкованих ЗМІ,389517,Центральний офіс,39181335,Україна,Оплата за розміщення рекламних матеріалів в газеті,26004100001777,state,8376.75,"ПП ""Медіа-компанія ""Чорноморець""",02475397,юридична особа
НАРОДНИЙ ФРОНТ,"Херсонська область, Великолепетиський район, Велика Лепетиха",49,2016-12-26,713,Публікування матеріалів у друкованих ЗМІ,Реклама в друкованих ЗМІ,389516,Центральний офіс,39181335,Україна,Оплата за розміщення рекламних матеріалів в газеті,26004100001777,state,8000.00,"РГ ""Таврійські вісті""",02475537,юридична особа
НАРОДНИЙ ФРОНТ,"Чернігівська область, Талалаївський район, Талалаївка",70,2016-12-26,714,Банківські послуги,Інші витрати,389515,Центральний офіс,39181335,Україна,Оплата за розміщення рекламних матеріалів в газеті,26004100001777,state,9000.00,"ТОВ ""Борзна-інфо""",02476118,юридична особа
НАРОДНИЙ ФРОНТ,"Чернігівська область, Ічнянський район, Ічня, вулиця Покрасівка",49,2016-12-26,715,Публікування матеріалів у друкованих ЗМІ,Реклама в друкованих ЗМІ,389514,Центральний офіс,39181335,Україна,Оплата за розміщення рекламних матеріалів в газеті,26004100001777,state,11232.00,"ТОВ ""Ічня-інфо""",02476190,юридична особа
НАРОДНИЙ ФРОНТ,"Вінницька область, Тульчинський район, Тульчин",49,2016-12-26,716,Публікування матеріалів у друкованих ЗМІ,Реклама в друкованих ЗМІ,389513,Центральний офіс,39181335,Україна,Оплата за розміщення рекламних матеріалів в газеті,26004100001777,state,9036.00,"РРГ ""Тульчинський край""",02471531,юридична особа
НАРОДНИЙ ФРОНТ,"Вінницька область, Чечельницький район, Чечельник, вул. Котовського",49,2016-12-26,717,Публікування матеріалів у друкованих ЗМІ,Реклама в друкованих ЗМІ,389512,Центральний офіс,39181335,Україна,Оплата за розміщення рекламних матеріалів в газеті,26004100001777,state,9805.00,"КП РГ ""Чечельницький вісник""",02471554,юридична особа
НАРОДНИЙ ФРОНТ,"Запорізька область, Розівський район, Розівка",49,2016-12-26,719,Публікування матеріалів у друкованих ЗМІ,Реклама в друкованих ЗМІ,389511,Центральний офіс,39181335,Україна,Оплата за розміщення рекламних матеріалів в газеті,26004100001777,state,8424.00,"КП РГ ""Роза-інформ""",23790861,юридична особа
НАРОДНИЙ ФРОНТ,"Житомирська область, Романівський район, Романів",49,2016-12-26,720,Публікування матеріалів у друкованих ЗМІ,Реклама в друкованих ЗМІ,389510,Центральний офіс,39181335,Україна,Оплата за розміщення рекламних матеріалів в газеті,26004100001777,state,10098.00,"РГ ""Романівський вісник""",02472393,юридична особа
НАРОДНИЙ ФРОНТ,"Херсонська область, Горностаївський район, Горностаївка, вулиця Українська, 30",49,2016-12-26,721,Публікування матеріалів у друкованих ЗМІ,Реклама в друкованих ЗМІ,389509,Центральний офіс,39181335,Україна,Оплата за розміщення рекламних матеріалів в газеті,26004100001777,state,9000.00,"РГ ""Сільські новини""",02475581,юридична особа
НАРОДНИЙ ФРОНТ,"Харківська область, Валківський район, Валки, проспект Григорія Сковороди, 6",49,2016-12-26,722,Публікування матеріалів у друкованих ЗМІ,Реклама в друкованих ЗМІ,389508,Центральний офіс,39181335,Україна,Оплата за розміщення рекламних матеріалів в газеті,26004100001777,state,8325.00,"ТОВ ""Медіа-центр ""Сільські новини""",02476623,юридична особа
НАРОДНИЙ ФРОНТ,"Львівська область, Миколаївський район, Миколаїв, площа Ринок, 28",49,2016-12-26,724,Публікування матеріалів у друкованих ЗМІ,Реклама в друкованих ЗМІ,389507,Центральний офіс,39181335,Україна,Оплата за розміщення рекламних матеріалів в газеті,26004100001777,state,10000.00,"РГ ""Громада""",02474044,юридична особа
НАРОДНИЙ ФРОНТ,"Запорізька область, Василівський район, Василівка, бульвар Центральний, 6",49,2016-12-26,710,Публікування матеріалів у друкованих ЗМІ,Реклама в друкованих ЗМІ,389506,Центральний офіс,39181335,Україна,Оплата за розміщення рекламних матеріалів в газеті,26004100001777,state,7937.11,"РГ ""Нова Таврія""",02472890,юридична особа
НАРОДНИЙ ФРОНТ,"Вінницька область, Вінницький район, вулиця Мирна, 23",49,2016-12-26,726,Публікування матеріалів у друкованих ЗМІ,Реклама в друкованих ЗМІ,389505,Центральний офіс,39181335,Україна,Оплата за розміщення рекламних матеріалів в газеті,26004100001777,state,12985.00,"РГ ""Літинський вісник""",02471426,юридична особа
НАРОДНИЙ ФРОНТ,"Житомирська область, Олевський район, Олевськ, вул. Свято-МиколаЇвська, 4",49,2016-12-26,727,Публікування матеріалів у друкованих ЗМІ,Реклама в друкованих ЗМІ,389504,Центральний офіс,39181335,Україна,Оплата за розміщення рекламних матеріалів в газеті,26004100001777,state,9540.00,"ТОВ ""Редакція газети ""Зорі над Убортю""",02472559,юридична особа
НАРОДНИЙ ФРОНТ,"Житомирська область, Новоград-Волинський, вулиця Героїв Майдану, 3",49,2016-12-26,728,Публікування матеріалів у друкованих ЗМІ,Реклама в друкованих ЗМІ,389503,Центральний офіс,39181335,Україна,Оплата за розміщення рекламних матеріалів в газеті,26004100001777,state,9339.30,"ТОВ ""Газета ""Звягель""",36943258,юридична особа
НАРОДНИЙ ФРОНТ,"Вінницька область, Жмеринка, вулиця Соборна, 64",49,2016-12-26,729,Публікування матеріалів у друкованих ЗМІ,Реклама в друкованих ЗМІ,389502,Центральний офіс,39181335,Україна,Оплата за розміщення рекламних матеріалів в газеті,26004100001777,state,7000.00,"КП РГ ""Жмеринський меридіан""",02471413,юридична особа
НАРОДНИЙ ФРОНТ,"Вінницька область, Хмільник, вулиця Пушкіна, 11",49,2016-12-26,730,Публікування матеріалів у друкованих ЗМІ,Реклама в друкованих ЗМІ,389501,Центральний офіс,39181335,Україна,Оплата за розміщення рекламних матеріалів в газеті,26004100001777,state,8517.60,"РГ ""Життєві обрії""",02471548,юридична особа
НАРОДНИЙ ФРОНТ,"Житомирська область, Коростень, вулиця Михайла Грушевського, 60",49,2016-12-26,731,Публікування матеріалів у друкованих ЗМІ,Реклама в друкованих ЗМІ,389500,Центральний офіс,39181335,Україна,Оплата за розміщення рекламних матеріалів в газеті,26004100001777,state,6000.00,"РГ ""Древлянський край""",02472465,юридична особа
НАРОДНИЙ ФРОНТ,"Дніпропетровська область, Кривий Ріг, проспект Металургів, 30",49,2016-12-26,732,Публікування матеріалів у друкованих ЗМІ,Реклама в друкованих ЗМІ,389499,Центральний офіс,39181335,Україна,"Оплата за розміщення рекламних матеріалів в газеті ""Домашняя газета""",26004100001777,state,23088.00,"ТОВ ""Камертон""",25513918,юридична особа
НАРОДНИЙ ФРОНТ,"Запорізька область, Вільнянський район, Вільнянськ",49,2016-12-26,733,Публікування матеріалів у друкованих ЗМІ,Реклама в друкованих ЗМІ,389498,Центральний офіс,39181335,Україна,Оплата за розміщення рекламних матеріалів в газеті,26004100001777,state,8658.00,"КП РГ ""Дніпровські вогні""",02472855,юридична особа
НАРОДНИЙ ФРОНТ,"Івано-Франківська область, Галицький район, Галич, вулиця Євгена Коновальця, 5",49,2016-12-26,734,Публікування матеріалів у друкованих ЗМІ,Реклама в друкованих ЗМІ,389497,Центральний офіс,39181335,Україна,Оплата за розміщення рекламних матеріалів в газеті,26004100001777,state,11000.00,"РГ ""Галицьке слово""",25597973,юридична особа
НАРОДНИЙ ФРОНТ,"Кіровоградська область, Гайворонський район, Гайворон, вулиця Великого Кобзаря, 22/1",49,2016-12-26,735,Публікування матеріалів у друкованих ЗМІ,Реклама в друкованих ЗМІ,389496,Центральний офіс,39181335,Україна,Оплата за розміщення рекламних матеріалів в газеті,26004100001777,state,10000.00,"РВЦ ""Гайворонщина""",02467417,юридична особа
НАРОДНИЙ ФРОНТ,"Київська обл., Бровари, бульвар Незалежності, 2",49,2016-12-26,711,Публікування матеріалів у друкованих ЗМІ,Реклама в друкованих ЗМІ,389495,Центральний офіс,39181335,Україна,Оплата за розміщення рекламних матеріалів в газеті,26004100001777,state,8000.00,"КП РГ ""Нове Життя""",02473398,юридична особа
НАРОДНИЙ ФРОНТ,"Полтавська область, Чорнухинський район, Чорнухи, вулиця Сковороди, 2",49,2016-12-26,709,Публікування матеріалів у друкованих ЗМІ,Реклама в друкованих ЗМІ,389494,Центральний офіс,39181335,Україна,Оплата за розміщення рекламних матеріалів в газеті,26004100001777,state,10000.00,"РГ ""Нова праця""",02474788,юридична особа
НАРОДНИЙ ФРОНТ,"Харківська область, Золочівський район, Золочів, площа Слобожанська",49,2016-12-26,687,Публікування матеріалів у друкованих ЗМІ,Реклама в друкованих ЗМІ,389493,Центральний офіс,39181335,Україна,Оплата за розміщення рекламних матеріалів в газеті,26004100001777,state,9000.00,"ТОВ ""Медіа-центр ""Пектораль""",02476592,юридична особа
НАРОДНИЙ ФРОНТ,"Чернігівська область, Коропський район, Короп, вулиця Кибальчича, 20",49,2016-12-26,699,Публікування матеріалів у друкованих ЗМІ,Реклама в друкованих ЗМІ,389492,Центральний офіс,39181335,Україна,Оплата за розміщення рекламних матеріалів в газеті,26004100001777,state,12809.16,"РГ ""Нові горизонти""",02476209,юридична особа
НАРОДНИЙ ФРОНТ,"Хмельницька область, Ізяславський район, Ізяслав, вулиця Шевченка, 10",49,2016-12-26,688,Публікування матеріалів у друкованих ЗМІ,Реклама в друкованих ЗМІ,389491,Центральний офіс,39181335,Україна,"Оплата за розміщення рекламних матеріалів в газеті ""Зоря Надгориння""",26004100001777,state,9490.00,"ПП ""Редакція газети ""Зоря Надгориння""",02475687,юридична особа
НАРОДНИЙ ФРОНТ,"Полтавська область, Гребінківський район, Гребінка, вулиця Ярослава Мудрого, 35",49,2016-12-26,689,Публікування матеріалів у друкованих ЗМІ,Реклама в друкованих ЗМІ,389490,Центральний офіс,39181335,Україна,Оплата за розміщення рекламних матеріалів в газеті,26004100001777,state,9000.00,"РГ ""Гребінчин край""",02474630,юридична особа
НАРОДНИЙ ФРОНТ,"Запорізька область, Новомиколаївський район, Новомиколаївка, Космічна вулиця, 3",49,2016-12-26,690,Публікування матеріалів у друкованих ЗМІ,Реклама в друкованих ЗМІ,389489,Центральний офіс,39181335,Україна,Оплата за розміщення рекламних матеріалів в газеті,26004100001777,state,6840.00,"ПП ""Редакція районної газети ""Наше життя"" Новомиколаївського району Запорізької області",02472759,юридична особа
НАРОДНИЙ ФРОНТ,"Львівська обл., Мостиський р-н, м. Мостиська, вул. Будзиновського, буд. 4",49,2016-12-26,691,Публікування матеріалів у друкованих ЗМІ,Реклама в друкованих ЗМІ,389488,Центральний офіс,39181335,Україна,Оплата за розміщення рекламних матеріалів в газеті,26004100001777,state,9562.50,"РГ ""Наш край""",02473917,юридична особа
НАРОДНИЙ ФРОНТ,"Львівська область, Городоцький район, Городок, вулиця В'ячеслава Чорновола, 2",49,2016-12-26,692,Публікування матеріалів у друкованих ЗМІ,Реклама в друкованих ЗМІ,389487,Центральний офіс,39181335,Україна,Оплата за розміщення рекламних матеріалів в газеті,26004100001777,state,9126.00,"КП Редакція часопису Городоччини ""Народна думка""",02473955,юридична особа
НАРОДНИЙ ФРОНТ,"Київська обл., Біла Церква, бульвар Олександрійський, 95",49,2016-12-26,693,Публікування матеріалів у друкованих ЗМІ,Реклама в друкованих ЗМІ,389486,Центральний офіс,39181335,Україна,Оплата за розміщення рекламних матеріалів в газеті,26004100001777,state,12781.80,"РГ ""Копійка""",40624740,юридична особа
НАРОДНИЙ ФРОНТ,"Миколаївська область, Южноукраїнськ",49,2016-12-26,694,Публікування матеріалів у друкованих ЗМІ,Реклама в друкованих ЗМІ,389485,Центральний офіс,39181335,Україна,Оплата за розміщення рекламних матеріалів в газеті,26004100001777,state,9062.40,"ПП ""Редакція газети ""Контакт""",20872794,юридична особа
НАРОДНИЙ ФРОНТ,"Чернівецька область, Путильський район, Путила, вул. Українська",49,2016-12-26,696,Публікування матеріалів у друкованих ЗМІ,Реклама в друкованих ЗМІ,389484,Центральний офіс,39181335,Україна,Оплата за розміщення рекламних матеріалів в газеті,26004100001777,state,14400.00,"Путильська РГ ""Карпати""",02476385,юридична особа
НАРОДНИЙ ФРОНТ,"Полтавська область, Лохвицький район, Лохвиця, вулиця Перемоги, 13",49,2016-12-26,697,Публікування матеріалів у друкованих ЗМІ,Реклама в друкованих ЗМІ,389483,Центральний офіс,39181335,Україна,Оплата за розміщення рекламних матеріалів в газеті,26004100001777,state,10000.00,"РГ ""Зоря""",02474662,юридична особа
НАРОДНИЙ ФРОНТ,"Тернопільська область, Підгаєцький район, Підгайці, вулиця Бережанська, 11",49,2016-12-26,698,Публікування матеріалів у друкованих ЗМІ,Реклама в друкованих ЗМІ,389482,Центральний офіс,39181335,Україна,Оплата за розміщення рекламних матеріалів в газеті,26004100001777,state,5996.40,"РГ ""Земля Підгаєцька""""",21164786,юридична особа
НАРОДНИЙ ФРОНТ,"Миколаївська область, Арбузинський район, Арбузинка, площа Центральна, 18",49,2016-12-26,700,Публікування матеріалів у друкованих ЗМІ,Реклама в друкованих ЗМІ,389481,Центральний офіс,39181335,Україна,Оплата за розміщення рекламних матеріалів в газеті,26004100001777,state,9900.00,"РГ ""Нове життя""",02474245,юридична особа
НАРОДНИЙ ФРОНТ,"Львівська область, Львів, вулиця Січових Стрільців, 3",49,2016-12-26,708,Публікування матеріалів у друкованих ЗМІ,Реклама в друкованих ЗМІ,389480,Центральний офіс,39181335,Україна,Оплата за розміщення рекламних матеріалів в газеті,26004100001777,state,8000.00,"ТОВ ""Видавничий дім ""Новий Львів""",31977813,юридична особа
НАРОДНИЙ ФРОНТ,"Чернігівська область, Козелецький район, Козелець, вул. Сидорука, 4",49,2016-12-26,701,Публікування матеріалів у друкованих ЗМІ,Реклама в друкованих ЗМІ,389479,Центральний офіс,39181335,Україна,Оплата за розміщення рекламних матеріалів в газеті,26004100001777,state,9216.00,"РГ ""Новини Придесення""",02476132,юридична особа
НАРОДНИЙ ФРОНТ,"Харківська область, Зміївський район, Зміїв, Набережна вулиця, д. 24",49,2016-12-26,703,Публікування матеріалів у друкованих ЗМІ,Реклама в друкованих ЗМІ,389478,Центральний офіс,39181335,Україна,Оплата за розміщення рекламних матеріалів в газеті,26004100001777,state,14560.00,"РГ ""Зміївський курʼєр""",22642532,юридична особа
НАРОДНИЙ ФРОНТ,"Одеська область, Захарівський район, Захарівка",49,2016-12-26,704,Публікування матеріалів у друкованих ЗМІ,Реклама в друкованих ЗМІ,389477,Центральний офіс,39181335,Україна,Оплата за розміщення рекламних матеріалів в газеті,26004100001777,state,10000.00,"КП РГ ""Новини Фрунзівщин""",02474529,юридична особа
НАРОДНИЙ ФРОНТ,"Тернопільська область, Чортківський район, Чортків, вулиця Шевченка, 21",49,2016-12-26,705,Публікування матеріалів у друкованих ЗМІ,Реклама в друкованих ЗМІ,389476,Центральний офіс,39181335,Україна,Оплата за розміщення рекламних матеріалів в газеті,26004100001777,state,4348.80,"РГ ""Чортківський вісник""",35126553,юридична особа
НАРОДНИЙ ФРОНТ,"Хмельницька область, Шепетівка, Старокостянтинівське шосе, 9",49,2016-12-26,706,Публікування матеріалів у друкованих ЗМІ,Реклама в друкованих ЗМІ,389475,Центральний офіс,39181335,Україна,Оплата за розміщення рекламних матеріалів в газеті,26004100001777,state,20202.00,"РГ ""Шепетівський вісник""",02475693,юридична особа
НАРОДНИЙ ФРОНТ,"Волинська область, Маневицький район, Маневичі, вулиця Незалежності, 14",49,2016-12-26,707,Публікування матеріалів у друкованих ЗМІ,Реклама в друкованих ЗМІ,389474,Центральний офіс,39181335,Україна,Оплата за розміщення рекламних матеріалів в газеті,26004100001777,state,10640.00,"ПП ""Редакція газети ""Нова доба""",02471726,юридична особа
НАРОДНИЙ ФРОНТ,"Київська обл., Славутич",84,2016-12-26,1440,"Заробітна плата, премії","Заробітна плата, лікарняні, вагітності, відрядження, компенсації",389191,Центральний офіс,39181335,Україна,Премія за 2016р.,26004100001777,state,4025.00,Позняк Володимир Анатолійович,,фізична особа
НАРОДНИЙ ФРОНТ,"Київська обл., Славутич",84,2016-12-26,1439,"Заробітна плата, премії","Заробітна плата, лікарняні, вагітності, відрядження, компенсації",389190,Центральний офіс,39181335,Україна,Заробітна плата за грудень 2016р.,26004100001777,state,2744.31,Позняк Володимир Анатолійович,,фізична особа
НАРОДНИЙ ФРОНТ,"Київська обл., Києво-Святошинський район, Вишневе",84,2016-12-26,1438,"Заробітна плата, премії","Заробітна плата, лікарняні, вагітності, відрядження, компенсації",389189,Центральний офіс,39181335,Україна,Премія за 2016р.,26004100001777,state,5635.00,Фролов Микола Володимирович,,фізична особа
НАРОДНИЙ ФРОНТ,"Київська обл., Іванківський район, Термахівка",84,2016-12-26,1437,"Заробітна плата, премії","Заробітна плата, лікарняні, вагітності, відрядження, компенсації",389188,Центральний офіс,39181335,Україна,Премія за 2016р.,26004100001777,state,4025.00,Зосименко Наталія Миколаївна,,фізична особа
НАРОДНИЙ ФРОНТ,"Київська обл., Згурівський район, Згурівка",84,2016-12-26,1436,"Заробітна плата, премії","Заробітна плата, лікарняні, вагітності, відрядження, компенсації",389187,Центральний офіс,39181335,Україна,Премія за 2016р.,26004100001777,state,4025.00,Малько Микола Миколайович,,фізична особа
НАРОДНИЙ ФРОНТ,"Київська обл., Поліський район, Мар'янівка",84,2016-12-26,1435,"Заробітна плата, премії","Заробітна плата, лікарняні, вагітності, відрядження, компенсації",389186,Центральний офіс,39181335,Україна,Премія за 2016р.,26004100001777,state,4025.00,Недогибченко Тетяна Дмитрівна,,фізична особа
НАРОДНИЙ ФРОНТ,"Київська обл., Біла Церква",84,2016-12-26,1434,"Заробітна плата, премії","Заробітна плата, лікарняні, вагітності, відрядження, компенсації",389185,Центральний офіс,39181335,Україна,Премія за 2016р.,26004100001777,state,4025.00,Сириця Сергій Олександрович,,фізична особа
НАРОДНИЙ ФРОНТ,"Київська обл., Біла Церква",84,2016-12-26,1433,"Заробітна плата, премії","Заробітна плата, лікарняні, вагітності, відрядження, компенсації",389184,Центральний офіс,39181335,Україна,Премія за 2016р.,26004100001777,state,4025.00,Сєдих Олександр Миколайович,,фізична особа
НАРОДНИЙ ФРОНТ,"Київська обл., Києво-Святошинський район, Вишневе",84,2016-12-26,1432,"Заробітна плата, премії","Заробітна плата, лікарняні, вагітності, відрядження, компенсації",389183,Центральний офіс,39181335,Україна,Заробітна плата за грудень 2016р.,26004100001777,state,5635.00,Фролов Микола Володимирович,,фізична особа
НАРОДНИЙ ФРОНТ,"Київська обл., Іванківський район, Термахівка",84,2016-12-26,1431,"Заробітна плата, премії","Заробітна плата, лікарняні, вагітності, відрядження, компенсації",389182,Центральний офіс,39181335,Україна,Заробітна плата за грудень 2016р.,26004100001777,state,2744.31,Зосименко Наталія Миколаївна,,фізична особа
НАРОДНИЙ ФРОНТ,"Київська обл., Згурівський район, Згурівка",84,2016-12-26,1430,"Заробітна плата, премії","Заробітна плата, лікарняні, вагітності, відрядження, компенсації",389181,Центральний офіс,39181335,Україна,Заробітна плата за грудень 2016р.,26004100001777,state,2744.31,Малько Микола Миколайович,,фізична особа
НАРОДНИЙ ФРОНТ,"Київська обл., Поліський район, Мар'янівка",84,2016-12-26,1429,"Заробітна плата, премії","Заробітна плата, лікарняні, вагітності, відрядження, компенсації",389180,Центральний офіс,39181335,Україна,Заробітна плата за грудень 2016р.,26004100001777,state,2744.31,Недогибченко Тетяна Дмитрівна,,фізична особа
НАРОДНИЙ ФРОНТ,"Київська обл., Біла Церква",84,2016-12-26,1428,"Заробітна плата, премії","Заробітна плата, лікарняні, вагітності, відрядження, компенсації",389179,Центральний офіс,39181335,Україна,Заробітна плата за грудень 2016р.,26004100001777,state,3842.04,Сириця Сергій Олександрович,,фізична особа
НАРОДНИЙ ФРОНТ,"Київська обл., Біла Церква",84,2016-12-26,1427,"Заробітна плата, премії","Заробітна плата, лікарняні, вагітності, відрядження, компенсації",389178,Центральний офіс,39181335,Україна,Заробітна плата за грудень 2016р.,26004100001777,state,3293.17,Сєдих Олександр Миколайович,,фізична особа
НАРОДНИЙ ФРОНТ,"Одеська область, Миколаївський район, Миколаївка",84,2016-12-26,1426,"Заробітна плата, премії","Заробітна плата, лікарняні, вагітності, відрядження, компенсації",389177,Центральний офіс,39181335,Україна,Премія за 2016р.,26004100001777,state,3220.00,Чабанюк Тетяна Романівна,,фізична особа
НАРОДНИЙ ФРОНТ,"Одеська область, Білгород-Дністровський",84,2016-12-26,1425,"Заробітна плата, премії","Заробітна плата, лікарняні, вагітності, відрядження, компенсації",389176,Центральний офіс,39181335,Україна,Премія за 2016р.,26004100001777,state,4025.00,Томілін Віталій Андрійович,,фізична особа
НАРОДНИЙ ФРОНТ,"Одеська область, Кодимський район, Кодима",84,2016-12-26,1424,"Заробітна плата, премії","Заробітна плата, лікарняні, вагітності, відрядження, компенсації",389175,Центральний офіс,39181335,Україна,Премія за 2016р.,26004100001777,state,3220.00,Старченко Сергій Петрович,,фізична особа
НАРОДНИЙ ФРОНТ,"Одеська область, Ренійський район, Рені",84,2016-12-26,1423,"Заробітна плата, премії","Заробітна плата, лікарняні, вагітності, відрядження, компенсації",389174,Центральний офіс,39181335,Україна,Премія за 2016р.,26004100001777,state,3220.00,Слабошвицький Роман Миколайович,,фізична особа
НАРОДНИЙ ФРОНТ,"Одеська область, Роздільнянський район",84,2016-12-26,1422,"Заробітна плата, премії","Заробітна плата, лікарняні, вагітності, відрядження, компенсації",389173,Центральний офіс,39181335,Україна,Премія за 2016р.,26004100001777,state,3220.00,Самойлова Міра Леонтіївна,,фізична особа
НАРОДНИЙ ФРОНТ,"Одеська область, Одеса",84,2016-12-26,1421,"Заробітна плата, премії","Заробітна плата, лікарняні, вагітності, відрядження, компенсації",389172,Центральний офіс,39181335,Україна,Премія за 2016р.,26004100001777,state,4830.00,Озарінський Владислав Петрович,,фізична особа
НАРОДНИЙ ФРОНТ,"Одеська область, Одеса",84,2016-12-26,1420,"Заробітна плата, премії","Заробітна плата, лікарняні, вагітності, відрядження, компенсації",389171,Центральний офіс,39181335,Україна,Премія за 2016р.,26004100001777,state,4830.00,Озарінська Олеся Петрівна,,фізична особа
НАРОДНИЙ ФРОНТ,"Одеська область, Білгород-Дністровський",84,2016-12-26,1419,"Заробітна плата, премії","Заробітна плата, лікарняні, вагітності, відрядження, компенсації",389170,Центральний офіс,39181335,Україна,Премія за 2016р.,26004100001777,state,3220.00,Магомедов Магомед-Закір Сайгідул-Баталович,,фізична особа
НАРОДНИЙ ФРОНТ,"Одеська область, Захарівський район, Затишшя",84,2016-12-26,1418,"Заробітна плата, премії","Заробітна плата, лікарняні, вагітності, відрядження, компенсації",389169,Центральний офіс,39181335,Україна,Премія за 2016р.,26004100001777,state,3220.00,Лисов Юрій Іванович,,фізична особа
НАРОДНИЙ ФРОНТ,"Одеська область, Ширяївський район, Макарове",84,2016-12-26,1417,"Заробітна плата, премії","Заробітна плата, лікарняні, вагітності, відрядження, компенсації",389168,Центральний офіс,39181335,Україна,Премія за 2016р.,26004100001777,state,3220.00,Житар Вікторія Вікторівна,,фізична особа
НАРОДНИЙ ФРОНТ,"Одеська область, Одеса",84,2016-12-26,1416,"Заробітна плата, премії","Заробітна плата, лікарняні, вагітності, відрядження, компенсації",389167,Центральний офіс,39181335,Україна,Премія за 2016р.,26004100001777,state,4830.00,Бондарук Руслана Вікторівна,,фізична особа
НАРОДНИЙ ФРОНТ,"Одеська область, Миколаївський район, Миколаївка",84,2016-12-26,1415,"Заробітна плата, премії","Заробітна плата, лікарняні, вагітності, відрядження, компенсації",389166,Центральний офіс,39181335,Україна,Заробітна плата за грудень 2016р.,26004100001777,state,3220.00,Чабанюк Тетяна Романівна,,фізична особа
НАРОДНИЙ ФРОНТ,"Одеська область, Білгород-Дністровський",84,2016-12-26,1414,"Заробітна плата, премії","Заробітна плата, лікарняні, вагітності, відрядження, компенсації",389165,Центральний офіс,39181335,Україна,Заробітна плата за грудень 2016р.,26004100001777,state,4025.00,Томілін Віталій Андрійович,,фізична особа
НАРОДНИЙ ФРОНТ,"Одеська область, Кодимський район, Кодима",84,2016-12-26,1413,"Заробітна плата, премії","Заробітна плата, лікарняні, вагітності, відрядження, компенсації",389164,Центральний офіс,39181335,Україна,Заробітна плата за грудень 2016р.,26004100001777,state,3220.00,Старченко Сергій Петрович,,фізична особа
НАРОДНИЙ ФРОНТ,"Одеська область, Ренійський район, Рені",84,2016-12-26,1412,"Заробітна плата, премії","Заробітна плата, лікарняні, вагітності, відрядження, компенсації",389163,Центральний офіс,39181335,Україна,Заробітна плата за грудень 2016р.,26004100001777,state,1317.27,Слабошвицький Роман Миколайович,,фізична особа
НАРОДНИЙ ФРОНТ,"Одеська область, Роздільнянський район",84,2016-12-26,1411,"Заробітна плата, премії","Заробітна плата, лікарняні, вагітності, відрядження, компенсації",389162,Центральний офіс,39181335,Україна,Заробітна плата за грудень 2016р.,26004100001777,state,3220.00,Самойлова Міра Леонтіївна,,фізична особа
НАРОДНИЙ ФРОНТ,"Одеська область, Одеса",84,2016-12-26,1410,"Заробітна плата, премії","Заробітна плата, лікарняні, вагітності, відрядження, компенсації",389161,Центральний офіс,39181335,Україна,Заробітна плата за грудень 2016р.,26004100001777,state,4830.00,Озарінський Владислав Петрович,,фізична особа
НАРОДНИЙ ФРОНТ,"Одеська область, Одеса",84,2016-12-26,1409,"Заробітна плата, премії","Заробітна плата, лікарняні, вагітності, відрядження, компенсації",389160,Центральний офіс,39181335,Україна,Заробітна плата за грудень 2016р.,26004100001777,state,4830.00,Озарінська Олеся Петрівна,,фізична особа
НАРОДНИЙ ФРОНТ,"Одеська область, Білгород-Дністровський",84,2016-12-26,1408,"Заробітна плата, премії","Заробітна плата, лікарняні, вагітності, відрядження, компенсації",389159,Центральний офіс,39181335,Україна,Заробітна плата за грудень 2016р.,26004100001777,state,3220.00,Магомедов Магомед-Закір Сайгідул-Баталович,,фізична особа
НАРОДНИЙ ФРОНТ,"Одеська область, Захарівський район, Затишшя",84,2016-12-26,1407,"Заробітна плата, премії","Заробітна плата, лікарняні, вагітності, відрядження, компенсації",389158,Центральний офіс,39181335,Україна,Заробітна плата за грудень 2016р.,26004100001777,state,3220.00,Лисов Юрій Іванович,,фізична особа
НАРОДНИЙ ФРОНТ,"Одеська область, Ширяївський район, Макарове",84,2016-12-26,1406,"Заробітна плата, премії","Заробітна плата, лікарняні, вагітності, відрядження, компенсації",389157,Центральний офіс,39181335,Україна,Заробітна плата за грудень 2016р.,26004100001777,state,3220.00,Житар Вікторія Вікторівна,,фізична особа
НАРОДНИЙ ФРОНТ,"Одеська область, Одеса",84,2016-12-26,1405,"Заробітна плата, премії","Заробітна плата, лікарняні, вагітності, відрядження, компенсації",389156,Центральний офіс,39181335,Україна,Заробітна плата за грудень 2016р.,26004100001777,state,4830.00,Бондарук Руслана Вікторівна,,фізична особа
НАРОДНИЙ ФРОНТ,"Чернігівська область, Сосницький район, Сосниця",84,2016-12-26,1404,"Заробітна плата, премії","Заробітна плата, лікарняні, вагітності, відрядження, компенсації",389155,Центральний офіс,39181335,Україна,Премія за 2016р.,26004100001777,state,4025.00,Матвієнко Олексій Михайлович,,фізична особа
НАРОДНИЙ ФРОНТ,"Київська обл., Володарський район, Володарка",84,2016-12-26,1403,"Заробітна плата, премії","Заробітна плата, лікарняні, вагітності, відрядження, компенсації",389154,Центральний офіс,39181335,Україна,Премія за 2016р.,26004100001777,state,4025.00,Янковська Валентина Василівна,,фізична особа
НАРОДНИЙ ФРОНТ,Київ,84,2016-12-26,1400,"Заробітна плата, премії","Заробітна плата, лікарняні, вагітності, відрядження, компенсації",389153,Центральний офіс,39181335,Україна,Премія за 2016р.,26004100001777,state,4025.00,Лемза Руслан Вікторович,,фізична особа
НАРОДНИЙ ФРОНТ,Київ,84,2016-12-26,1399,"Заробітна плата, премії","Заробітна плата, лікарняні, вагітності, відрядження, компенсації",389152,Центральний офіс,39181335,Україна,Премія за 2016р.,26004100001777,state,4025.00,Циганенко Олександр Васильович,,фізична особа
НАРОДНИЙ ФРОНТ,Київ,84,2016-12-26,1398,"Заробітна плата, премії","Заробітна плата, лікарняні, вагітності, відрядження, компенсації",389151,Центральний офіс,39181335,Україна,Премія за 2016р.,26004100001777,state,5635.00,Карюк Марія Володимирівна,,фізична особа
НАРОДНИЙ ФРОНТ,"Волинська область, Луцьк",84,2016-12-26,1397,"Заробітна плата, премії","Заробітна плата, лікарняні, вагітності, відрядження, компенсації",389150,Центральний офіс,39181335,Україна,Премія за 2016р.,26004100001777,state,5635.00,Яручик Світлана Василівна,,фізична особа
НАРОДНИЙ ФРОНТ,"Київська обл., Бородянський район, Загальці",84,2016-12-26,1396,"Заробітна плата, премії","Заробітна плата, лікарняні, вагітності, відрядження, компенсації",389149,Центральний офіс,39181335,Україна,Премія за 2016р.,26004100001777,state,4025.00,Цуруль Вікторія Павлівна,,фізична особа
НАРОДНИЙ ФРОНТ,"Київська обл., Богуславський район, Хохітва",84,2016-12-26,1395,"Заробітна плата, премії","Заробітна плата, лікарняні, вагітності, відрядження, компенсації",389148,Центральний офіс,39181335,Україна,Премія за 2016р.,26004100001777,state,4025.00,Фоміна Олена Олександрівна,,фізична особа
НАРОДНИЙ ФРОНТ,"Київська обл., Києво-Святошинський район, Гостомель, вулиця Кулішова, 14",84,2016-12-26,1394,"Заробітна плата, премії","Заробітна плата, лікарняні, вагітності, відрядження, компенсації",389147,Центральний офіс,39181335,Україна,Премія за 2016р.,26004100001777,state,4025.00,Смолянчук Вікторія Олегівна,,фізична особа
НАРОДНИЙ ФРОНТ,"Київська обл., Бориспіль",84,2016-12-26,1393,"Заробітна плата, премії","Заробітна плата, лікарняні, вагітності, відрядження, компенсації",389146,Центральний офіс,39181335,Україна,Премія за 2016р.,26004100001777,state,4025.00,Сіренко Вікторія Олександрівна,,фізична особа
НАРОДНИЙ ФРОНТ,"Київська обл., Таращанський район, Тараща",84,2016-12-26,1392,"Заробітна плата, премії","Заробітна плата, лікарняні, вагітності, відрядження, компенсації",389145,Центральний офіс,39181335,Україна,Премія за 2016р.,26004100001777,state,4025.00,Ситенко Олеся Сергіївна,,фізична особа
НАРОДНИЙ ФРОНТ,"Київська обл., Тетіївський район, Тетіїв",84,2016-12-26,1391,"Заробітна плата, премії","Заробітна плата, лікарняні, вагітності, відрядження, компенсації",389144,Центральний офіс,39181335,Україна,Премія за 2016р.,26004100001777,state,4025.00,Селянко Ніна Олександрівна,,фізична особа
НАРОДНИЙ ФРОНТ,"Київська обл., Вишгородський район",84,2016-12-26,1390,"Заробітна плата, премії","Заробітна плата, лікарняні, вагітності, відрядження, компенсації",389143,Центральний офіс,39181335,Україна,Премія за 2016р.,26004100001777,state,4025.00,Махновець Віктор Петрович,,фізична особа
НАРОДНИЙ ФРОНТ,"Київська обл., Бровари, вулиця Короленка",84,2016-12-26,1389,"Заробітна плата, премії","Заробітна плата, лікарняні, вагітності, відрядження, компенсації",389142,Центральний офіс,39181335,Україна,Премія за 2016р.,26004100001777,state,4025.00,Лях Петро Миколайович,,фізична особа
НАРОДНИЙ ФРОНТ,"Київська обл., Васильківський район, Саливінки",84,2016-12-26,1388,"Заробітна плата, премії","Заробітна плата, лікарняні, вагітності, відрядження, компенсації",389141,Центральний офіс,39181335,Україна,Премія за 2016р.,26004100001777,state,4025.00,Лисак Віталій Олександрович,,фізична особа
НАРОДНИЙ ФРОНТ,"Київська обл., Миронівський район, Миронівка",84,2016-12-26,1387,"Заробітна плата, премії","Заробітна плата, лікарняні, вагітності, відрядження, компенсації",389140,Центральний офіс,39181335,Україна,Премія за 2016р.,26004100001777,state,4025.00,Левіт Юлія Іванівна,,фізична особа
НАРОДНИЙ ФРОНТ,"Київська обл., Яготинський район, Яготин",84,2016-12-26,1386,"Заробітна плата, премії","Заробітна плата, лікарняні, вагітності, відрядження, компенсації",389139,Центральний офіс,39181335,Україна,Премія за 2016р.,26004100001777,state,4025.00,Кузняк Ярослав Степанович,,фізична особа
НАРОДНИЙ ФРОНТ,"Київська обл., Сквирський район, Сквира",84,2016-12-26,1385,"Заробітна плата, премії","Заробітна плата, лікарняні, вагітності, відрядження, компенсації",389138,Центральний офіс,39181335,Україна,Премія за 2016р.,26004100001777,state,4025.00,Іванченко Григорій Іванович,2820118414,фізична особа
НАРОДНИЙ ФРОНТ,"Київська обл., Переяслав",84,2016-12-26,1384,"Заробітна плата, премії","Заробітна плата, лікарняні, вагітності, відрядження, компенсації",389137,Центральний офіс,39181335,Україна,Премія за 2016р.,26004100001777,state,4025.00,Демещук Павло Олександрович,,фізична особа
НАРОДНИЙ ФРОНТ,"Київська обл., Обухівський район, Обухів",84,2016-12-26,1383,"Заробітна плата, премії","Заробітна плата, лікарняні, вагітності, відрядження, компенсації",389136,Центральний офіс,39181335,Україна,Премія за 2016р.,26004100001777,state,4025.00,Гуменюк Віталій Анатолійович,,фізична особа
НАРОДНИЙ ФРОНТ,"Київська обл., Переяслав",84,2016-12-26,1382,"Заробітна плата, премії","Заробітна плата, лікарняні, вагітності, відрядження, компенсації",389135,Центральний офіс,39181335,Україна,Премія за 2016р.,26004100001777,state,4025.00,Гриценко Артем Миколайович,,фізична особа
НАРОДНИЙ ФРОНТ,"Київська обл., Рокитнянський район, Рокитне",84,2016-12-26,1381,"Заробітна плата, премії","Заробітна плата, лікарняні, вагітності, відрядження, компенсації",389134,Центральний офіс,39181335,Україна,Премія за 2016р.,26004100001777,state,4025.00,Воскреса Любов Петрівна,,фізична особа
НАРОДНИЙ ФРОНТ,Київ,84,2016-12-26,1380,"Заробітна плата, премії","Заробітна плата, лікарняні, вагітності, відрядження, компенсації",389133,Центральний офіс,39181335,Україна,Премія за 2016р.,26004100001777,state,4025.00,Біжко Оксана Павлівна,,фізична особа
НАРОДНИЙ ФРОНТ,"Київська обл., Кагарлицький район, Слобода",84,2016-12-26,1379,"Заробітна плата, премії","Заробітна плата, лікарняні, вагітності, відрядження, компенсації",389132,Центральний офіс,39181335,Україна,Премія за 2016р.,26004100001777,state,4025.00,Безлегка Інна Олександрівна,,фізична особа
НАРОДНИЙ ФРОНТ,"Київська обл., Обухівський район, Гусачівка",84,2016-12-26,1378,"Заробітна плата, премії","Заробітна плата, лікарняні, вагітності, відрядження, компенсації",389131,Центральний офіс,39181335,Україна,Премія за 2016р.,26004100001777,state,4025.00,Балабан Валентина Володимирівна,,фізична особа
НАРОДНИЙ ФРОНТ,"Київська обл., Баришівський район, Гостролуччя",84,2016-12-26,1377,"Заробітна плата, премії","Заробітна плата, лікарняні, вагітності, відрядження, компенсації",389130,Центральний офіс,39181335,Україна,Премія за 2016р.,26004100001777,state,4025.00,Агієнко Сергій Володимирович,,фізична особа
НАРОДНИЙ ФРОНТ,"Чернігівська область, Сосницький район, Сосниця",84,2016-12-26,1402,"Заробітна плата, премії","Заробітна плата, лікарняні, вагітності, відрядження, компенсації",389129,Центральний офіс,39181335,Україна,Заробітна плата за грудень 2016р.,26004100001777,state,1646.59,Матвієнко Олексій Михайлович,,фізична особа
НАРОДНИЙ ФРОНТ,"Київська обл., Володарський район, Володарка",84,2016-12-26,1401,"Заробітна плата, премії","Заробітна плата, лікарняні, вагітності, відрядження, компенсації",389128,Центральний офіс,39181335,Україна,Заробітна плата за грудень 2016р.,26004100001777,state,2744.32,Янковська Валентина Василівна,,фізична особа
НАРОДНИЙ ФРОНТ,Київ,84,2016-12-26,1376,"Заробітна плата, премії","Заробітна плата, лікарняні, вагітності, відрядження, компенсації",389127,Центральний офіс,39181335,Україна,Заробітна плата за грудень 2016р.,26004100001777,state,1646.59,Лемза Руслан Вікторович,,фізична особа
НАРОДНИЙ ФРОНТ,Київ,84,2016-12-26,1375,"Заробітна плата, премії","Заробітна плата, лікарняні, вагітності, відрядження, компенсації",389126,Центральний офіс,39181335,Україна,Заробітна плата за грудень 2016р.,26004100001777,state,2744.32,Циганенко Олександр Васильович,,фізична особа
НАРОДНИЙ ФРОНТ,Київ,84,2016-12-26,1374,"Заробітна плата, премії","Заробітна плата, лікарняні, вагітності, відрядження, компенсації",389125,Центральний офіс,39181335,Україна,Заробітна плата за грудень 2016р.,26004100001777,state,3842.05,Карюк Марія Володимирівна,,фізична особа
НАРОДНИЙ ФРОНТ,"Волинська область, Луцьк",84,2016-12-26,1373,"Заробітна плата, премії","Заробітна плата, лікарняні, вагітності, відрядження, компенсації",389124,Центральний офіс,39181335,Україна,Заробітна плата за грудень 2016р.,26004100001777,state,4610.45,Яручик Світлана Василівна,,фізична особа
НАРОДНИЙ ФРОНТ,"Київська обл., Бородянський район, Загальці",84,2016-12-26,1372,"Заробітна плата, премії","Заробітна плата, лікарняні, вагітності, відрядження, компенсації",389123,Центральний офіс,39181335,Україна,Заробітна плата за грудень 2016р.,26004100001777,state,1646.59,Цуруль Вікторія Павлівна,,фізична особа
НАРОДНИЙ ФРОНТ,"Київська обл., Богуславський район, Хохітва",84,2016-12-26,1371,"Заробітна плата, премії","Заробітна плата, лікарняні, вагітності, відрядження, компенсації",389122,Центральний офіс,39181335,Україна,Заробітна плата за грудень 2016р.,26004100001777,state,2744.32,Фоміна Олена Олександрівна,,фізична особа
НАРОДНИЙ ФРОНТ,"Київська обл., Києво-Святошинський район, Гостомель, вулиця Кулішова, 14",84,2016-12-26,1370,"Заробітна плата, премії","Заробітна плата, лікарняні, вагітності, відрядження, компенсації",389121,Центральний офіс,39181335,Україна,Заробітна плата за грудень 2016р.,26004100001777,state,1646.59,Смолянчук Вікторія Олегівна,,фізична особа
НАРОДНИЙ ФРОНТ,"Київська обл., Бориспіль",84,2016-12-26,1369,"Заробітна плата, премії","Заробітна плата, лікарняні, вагітності, відрядження, компенсації",389120,Центральний офіс,39181335,Україна,Заробітна плата за грудень 2016р.,26004100001777,state,3293.18,Сіренко Вікторія Олександрівна,,фізична особа
НАРОДНИЙ ФРОНТ,"Київська обл., Таращанський район, Тараща",84,2016-12-26,1368,"Заробітна плата, премії","Заробітна плата, лікарняні, вагітності, відрядження, компенсації",389119,Центральний офіс,39181335,Україна,Заробітна плата за грудень 2016р.,26004100001777,state,2744.32,Ситенко Олеся Сергіївна,,фізична особа
НАРОДНИЙ ФРОНТ,"Київська обл., Тетіївський район, Тетіїв",84,2016-12-26,1367,"Заробітна плата, премії","Заробітна плата, лікарняні, вагітності, відрядження, компенсації",389118,Центральний офіс,39181335,Україна,Заробітна плата за грудень 2016р.,26004100001777,state,1646.59,Селянко Ніна Олександрівна,,фізична особа
НАРОДНИЙ ФРОНТ,"Київська обл., Вишгородський район",84,2016-12-26,1366,"Заробітна плата, премії","Заробітна плата, лікарняні, вагітності, відрядження, компенсації",389117,Центральний офіс,39181335,Україна,Заробітна плата за грудень 2016р.,26004100001777,state,4025.00,Махновець Віктор Петрович,,фізична особа
НАРОДНИЙ ФРОНТ,"Київська обл., Бровари, вулиця Короленка",84,2016-12-26,1365,"Заробітна плата, премії","Заробітна плата, лікарняні, вагітності, відрядження, компенсації",389116,Центральний офіс,39181335,Україна,Заробітна плата за грудень 2016р.,26004100001777,state,1646.59,Лях Петро Миколайович,,фізична особа
НАРОДНИЙ ФРОНТ,"Київська обл., Васильківський район, Саливінки",84,2016-12-26,1364,"Заробітна плата, премії","Заробітна плата, лікарняні, вагітності, відрядження, компенсації",389115,Центральний офіс,39181335,Україна,Заробітна плата за грудень 2016р.,26004100001777,state,2744.32,Лисак Віталій Олександрович,,фізична особа
НАРОДНИЙ ФРОНТ,"Київська обл., Миронівський район, Миронівка",84,2016-12-26,1363,"Заробітна плата, премії","Заробітна плата, лікарняні, вагітності, відрядження, компенсації",389114,Центральний офіс,39181335,Україна,Заробітна плата за грудень 2016р.,26004100001777,state,2744.32,Левіт Юлія Іванівна,,фізична особа
НАРОДНИЙ ФРОНТ,"Київська обл., Яготинський район, Яготин",84,2016-12-26,1362,"Заробітна плата, премії","Заробітна плата, лікарняні, вагітності, відрядження, компенсації",389113,Центральний офіс,39181335,Україна,Заробітна плата за грудень 2016р.,26004100001777,state,2744.32,Кузняк Ярослав Степанович,,фізична особа
НАРОДНИЙ ФРОНТ,"Київська обл., Сквирський район, Сквира",84,2016-12-26,1361,"Заробітна плата, премії","Заробітна плата, лікарняні, вагітності, відрядження, компенсації",389112,Центральний офіс,39181335,Україна,Заробітна плата за грудень 2016р.,26004100001777,state,2744.32,Іванченко Григорій Іванович,2820118414,фізична особа
НАРОДНИЙ ФРОНТ,"Київська обл., Переяслав",84,2016-12-26,1360,"Заробітна плата, премії","Заробітна плата, лікарняні, вагітності, відрядження, компенсації",389111,Центральний офіс,39181335,Україна,Заробітна плата за грудень 2016р.,26004100001777,state,2744.32,Демещук Павло Олександрович,,фізична особа
НАРОДНИЙ ФРОНТ,"Київська обл., Обухівський район, Обухів",84,2016-12-26,1359,"Заробітна плата, премії","Заробітна плата, лікарняні, вагітності, відрядження, компенсації",389110,Центральний офіс,39181335,Україна,Заробітна плата за грудень 2016р.,26004100001777,state,2744.32,Гуменюк Віталій Анатолійович,,фізична особа
НАРОДНИЙ ФРОНТ,"Київська обл., Переяслав",84,2016-12-26,1358,"Заробітна плата, премії","Заробітна плата, лікарняні, вагітності, відрядження, компенсації",389109,Центральний офіс,39181335,Україна,Заробітна плата за грудень 2016р.,26004100001777,state,2744.32,Гриценко Артем Миколайович,,фізична особа
НАРОДНИЙ ФРОНТ,"Київська обл., Рокитнянський район, Рокитне",84,2016-12-26,1357,"Заробітна плата, премії","Заробітна плата, лікарняні, вагітності, відрядження, компенсації",389108,Центральний офіс,39181335,Україна,Заробітна плата за грудень 2016р.,26004100001777,state,2744.32,Воскреса Любов Петрівна,,фізична особа
НАРОДНИЙ ФРОНТ,Київ,84,2016-12-26,1356,"Заробітна плата, премії","Заробітна плата, лікарняні, вагітності, відрядження, компенсації",389107,Центральний офіс,39181335,Україна,Заробітна плата за грудень 2016р.,26004100001777,state,1646.59,Біжко Оксана Павлівна,,фізична особа
НАРОДНИЙ ФРОНТ,"Київська обл., Кагарлицький район, Слобода",84,2016-12-26,1355,"Заробітна плата, премії","Заробітна плата, лікарняні, вагітності, відрядження, компенсації",389106,Центральний офіс,39181335,Україна,Заробітна плата за грудень 2016р.,26004100001777,state,2744.32,Безлегка Інна Олександрівна,,фізична особа
НАРОДНИЙ ФРОНТ,"Київська обл., Обухівський район, Гусачівка",84,2016-12-26,1354,"Заробітна плата, премії","Заробітна плата, лікарняні, вагітності, відрядження, компенсації",389105,Центральний офіс,39181335,Україна,Заробітна плата за грудень 2016р.,26004100001777,state,2744.32,Балабан Валентина Володимирівна,,фізична особа
НАРОДНИЙ ФРОНТ,"Київська обл., Баришівський район, Гостролуччя",84,2016-12-26,1353,"Заробітна плата, премії","Заробітна плата, лікарняні, вагітності, відрядження, компенсації",389104,Центральний офіс,39181335,Україна,Заробітна плата за грудень 2016р.,26004100001777,state,2744.32,Агієнко Сергій Володимирович,,фізична особа
НАРОДНИЙ ФРОНТ,"Херсонська область, Нова Каховка",84,2016-12-26,1352,"Заробітна плата, премії","Заробітна плата, лікарняні, вагітності, відрядження, компенсації",389103,Центральний офіс,39181335,Україна,Премія за 2016р.,26004100001777,state,4025.00,Лазоренко Анастасія Володимирівна,,фізична особа
НАРОДНИЙ ФРОНТ,"Херсонська область, Нова Каховка",84,2016-12-26,1351,"Заробітна плата, премії","Заробітна плата, лікарняні, вагітності, відрядження, компенсації",389102,Центральний офіс,39181335,Україна,Заробітна плата за грудень 2016р.,26004100001777,state,4025.00,Лазоренко Анастасія Володимирівна,,фізична особа
НАРОДНИЙ ФРОНТ,"Херсонська область, Голопристанський район, Гола Пристань",84,2016-12-26,1350,"Заробітна плата, премії","Заробітна плата, лікарняні, вагітності, відрядження, компенсації",389101,Центральний офіс,39181335,Україна,Премія за 2016р.,26004100001777,state,4025.00,Черемис Катерина Олексіївна,,фізична особа
НАРОДНИЙ ФРОНТ,"Херсонська область, Бериславський район, Берислав",84,2016-12-26,1349,"Заробітна плата, премії","Заробітна плата, лікарняні, вагітності, відрядження, компенсації",389100,Центральний офіс,39181335,Україна,Премія за 2016р.,26004100001777,state,4025.00,Удод Антон Олександрович,,фізична особа
НАРОДНИЙ ФРОНТ,"Херсонська область, Каховка",84,2016-12-26,1348,"Заробітна плата, премії","Заробітна плата, лікарняні, вагітності, відрядження, компенсації",389099,Центральний офіс,39181335,Україна,Премія за 2016р.,26004100001777,state,4025.00,Скорін Володимир Анатолійович,,фізична особа
НАРОДНИЙ ФРОНТ,"Херсонська область, Високопільський район, Архангельське",84,2016-12-26,1347,"Заробітна плата, премії","Заробітна плата, лікарняні, вагітності, відрядження, компенсації",389098,Центральний офіс,39181335,Україна,Премія за 2016р.,26004100001777,state,4025.00,Саввіна Любов Іванівна,,фізична особа
НАРОДНИЙ ФРОНТ,"Херсонська область, Херсон",84,2016-12-26,1346,"Заробітна плата, премії","Заробітна плата, лікарняні, вагітності, відрядження, компенсації",389097,Центральний офіс,39181335,Україна,Премія за 2016р.,26004100001777,state,4025.00,Риженко Костянтин Олександрович,,фізична особа
НАРОДНИЙ ФРОНТ,"Херсонська область, Великолепетиський район, Велика Лепетиха",84,2016-12-26,1345,"Заробітна плата, премії","Заробітна плата, лікарняні, вагітності, відрядження, компенсації",389096,Центральний офіс,39181335,Україна,Премія за 2016р.,26004100001777,state,4025.00,Продай Юрій Іванович,,фізична особа
НАРОДНИЙ ФРОНТ,"Херсонська область, Каланчацький район, Каланчак",84,2016-12-26,1344,"Заробітна плата, премії","Заробітна плата, лікарняні, вагітності, відрядження, компенсації",389095,Центральний офіс,39181335,Україна,Премія за 2016р.,26004100001777,state,4025.00,Пономарчук Інна Володимирівна,,фізична особа
НАРОДНИЙ ФРОНТ,"Херсонська область, Нижньосірогозький район, Нижні Сірогози",84,2016-12-26,1343,"Заробітна плата, премії","Заробітна плата, лікарняні, вагітності, відрядження, компенсації",389094,Центральний офіс,39181335,Україна,Премія за 2016р.,26004100001777,state,4025.00,Перепросов Володимир Вікторович,,фізична особа
НАРОДНИЙ ФРОНТ,"Херсонська область, Херсон",84,2016-12-26,1342,"Заробітна плата, премії","Заробітна плата, лікарняні, вагітності, відрядження, компенсації",389093,Центральний офіс,39181335,Україна,Премія за 2016р.,26004100001777,state,5635.00,Пастух Оксана Вікторівна,,фізична особа
НАРОДНИЙ ФРОНТ,"Херсонська область, Новотроїцький район, Новотроїцьке",84,2016-12-26,1341,"Заробітна плата, премії","Заробітна плата, лікарняні, вагітності, відрядження, компенсації",389092,Центральний офіс,39181335,Україна,Премія за 2016р.,26004100001777,state,4025.00,Мороз Ольга Степанівна,,фізична особа
НАРОДНИЙ ФРОНТ,"Херсонська область, Горностаївський район, Горностаївка",84,2016-12-26,1370,"Заробітна плата, премії","Заробітна плата, лікарняні, вагітності, відрядження, компенсації",389091,Центральний офіс,39181335,Україна,Премія за 2016р.,26004100001777,state,4025.00,Мінченко Олександр Львович,,фізична особа
НАРОДНИЙ ФРОНТ,"Херсонська область, Великоолександрівський район, Велика Олександрівка",84,2016-12-26,1339,"Заробітна плата, премії","Заробітна плата, лікарняні, вагітності, відрядження, компенсації",389090,Центральний офіс,39181335,Україна,Премія за 2016р.,26004100001777,state,4025.00,Литвиненко Олександр Леонідович,,фізична особа
НАРОДНИЙ ФРОНТ,"Херсонська область, Горностаївський район, Горностаївка",84,2016-12-26,1337,"Заробітна плата, премії","Заробітна плата, лікарняні, вагітності, відрядження, компенсації",389089,Центральний офіс,39181335,Україна,Премія за 2016р.,26004100001777,state,4025.00,Лілік Євгенія Сергіївна,,фізична особа
НАРОДНИЙ ФРОНТ,"Херсонська область, Каховський район, Чорнянка",84,2016-12-26,1336,"Заробітна плата, премії","Заробітна плата, лікарняні, вагітності, відрядження, компенсації",389088,Центральний офіс,39181335,Україна,Премія за 2016р.,26004100001777,state,5635.00,Кучеренко Тетяна Ігорівна,,фізична особа
НАРОДНИЙ ФРОНТ,"Херсонська область, Херсон",84,2016-12-26,1335,"Заробітна плата, премії","Заробітна плата, лікарняні, вагітності, відрядження, компенсації",389087,Центральний офіс,39181335,Україна,Премія за 2016р.,26004100001777,state,4025.00,Кучеренко Андрій Ігорович,,фізична особа
НАРОДНИЙ ФРОНТ,"Херсонська область, Скадовський район, Скадовськ",84,2016-12-26,1334,"Заробітна плата, премії","Заробітна плата, лікарняні, вагітності, відрядження, компенсації",389086,Центральний офіс,39181335,Україна,Премія за 2016р.,26004100001777,state,4025.00,Закусило Анна Вадимівна,,фізична особа
НАРОДНИЙ ФРОНТ,"Херсонська область, Нововоронцовський район, Нововоронцовка",84,2016-12-26,1333,"Заробітна плата, премії","Заробітна плата, лікарняні, вагітності, відрядження, компенсації",389085,Центральний офіс,39181335,Україна,Премія за 2016р.,26004100001777,state,4025.00,Дьяченко Марина Олегівна,,фізична особа
НАРОДНИЙ ФРОНТ,"Херсонська область, Олешківський район, Олешки",84,2016-12-26,1332,"Заробітна плата, премії","Заробітна плата, лікарняні, вагітності, відрядження, компенсації",389084,Центральний офіс,39181335,Україна,Премія за 2016р.,26004100001777,state,4025.00,Дроговоз Антон Ігорович,,фізична особа
НАРОДНИЙ ФРОНТ,"Херсонська область, Херсон",84,2016-12-26,1331,"Заробітна плата, премії","Заробітна плата, лікарняні, вагітності, відрядження, компенсації",389083,Центральний офіс,39181335,Україна,Премія за 2016р.,26004100001777,state,4025.00,Гасаненко Віталій Геннадійович,,фізична особа
НАРОДНИЙ ФРОНТ,"Херсонська область, Генічеський район, Генічеськ",84,2016-12-26,1330,"Заробітна плата, премії","Заробітна плата, лікарняні, вагітності, відрядження, компенсації",389082,Центральний офіс,39181335,Україна,Премія за 2016р.,26004100001777,state,4025.00,Гапченко Галина Миколаївна,,фізична особа
НАРОДНИЙ ФРОНТ,"Херсонська область, Херсон",84,2016-12-26,1329,"Заробітна плата, премії","Заробітна плата, лікарняні, вагітності, відрядження, компенсації",389081,Центральний офіс,39181335,Україна,Премія за 2016р.,26004100001777,state,5635.00,Виноградова Ольга Олександрівна,,фізична особа
НАРОДНИЙ ФРОНТ,"Херсонська область, Верхньорогачицький район, Верхній Рогачик",84,2016-12-26,1328,"Заробітна плата, премії","Заробітна плата, лікарняні, вагітності, відрядження, компенсації",389080,Центральний офіс,39181335,Україна,Премія за 2016р.,26004100001777,state,4025.00,Вересенко Інна Олександрівна,,фізична особа
НАРОДНИЙ ФРОНТ,"Херсонська область, Чаплинський район, Чаплинка",84,2016-12-26,1327,"Заробітна плата, премії","Заробітна плата, лікарняні, вагітності, відрядження, компенсації",389079,Центральний офіс,39181335,Україна,Премія за 2016р.,26004100001777,state,4025.00,Буренко Олег Анатолійович,,фізична особа
НАРОДНИЙ ФРОНТ,"Херсонська область, Херсон",84,2016-12-26,1326,"Заробітна плата, премії","Заробітна плата, лікарняні, вагітності, відрядження, компенсації",389078,Центральний офіс,39181335,Україна,Премія за 2016р.,26004100001777,state,4025.00,Бургар Оксана Михайлівна,,фізична особа
НАРОДНИЙ ФРОНТ,"Херсонська область, Херсон",84,2016-12-26,1325,"Заробітна плата, премії","Заробітна плата, лікарняні, вагітності, відрядження, компенсації",389077,Центральний офіс,39181335,Україна,Премія за 2016р.,26004100001777,state,3018.75,Богданов Ярослав Якович,,фізична особа
НАРОДНИЙ ФРОНТ,"Херсонська область, Скадовський район, Скадовськ",84,2016-12-26,1300,"Заробітна плата, премії","Заробітна плата, лікарняні, вагітності, відрядження, компенсації",389076,Центральний офіс,39181335,Україна,Заробітна плата за грудень 2016р.,26004100001777,state,4025.00,Закусило Анна Вадимівна,,фізична особа
НАРОДНИЙ ФРОНТ,"Херсонська область, Нововоронцовський район, Нововоронцовка",84,2016-12-26,1299,"Заробітна плата, премії","Заробітна плата, лікарняні, вагітності, відрядження, компенсації",389075,Центральний офіс,39181335,Україна,Заробітна плата за грудень 2016р.,26004100001777,state,4025.00,Дьяченко Марина Олегівна,,фізична особа
НАРОДНИЙ ФРОНТ,"Херсонська область, Великоолександрівський район, Велика Олександрівка",84,2016-12-26,1305,"Заробітна плата, премії","Заробітна плата, лікарняні, вагітності, відрядження, компенсації",389074,Центральний офіс,39181335,Україна,Заробітна плата за грудень 2016р.,26004100001777,state,2195.45,Литвиненко Олександр Леонідович,,фізична особа
НАРОДНИЙ ФРОНТ,"Херсонська область, Горностаївський район, Горностаївка",84,2016-12-26,1303,"Заробітна плата, премії","Заробітна плата, лікарняні, вагітності, відрядження, компенсації",389073,Центральний офіс,39181335,Україна,Заробітна плата за грудень 2016р.,26004100001777,state,4025.00,Лілік Євгенія Сергіївна,,фізична особа
НАРОДНИЙ ФРОНТ,"Херсонська область, Горностаївський район, Горностаївка",84,2016-12-26,1306,"Заробітна плата, премії","Заробітна плата, лікарняні, вагітності, відрядження, компенсації",389072,Центральний офіс,39181335,Україна,Заробітна плата за грудень 2016р.,26004100001777,state,4025.00,Мінченко Олександр Львович,,фізична особа
НАРОДНИЙ ФРОНТ,"Херсонська область, Херсон",84,2016-12-26,1302,"Заробітна плата, премії","Заробітна плата, лікарняні, вагітності, відрядження, компенсації",389071,Центральний офіс,39181335,Україна,Заробітна плата за грудень 2016р.,26004100001777,state,5635.00,Кучеренко Тетяна Ігорівна,,фізична особа
НАРОДНИЙ ФРОНТ,"Херсонська область, Каховський район, Чорнянка",84,2016-12-26,1301,"Заробітна плата, премії","Заробітна плата, лікарняні, вагітності, відрядження, компенсації",389070,Центральний офіс,39181335,Україна,Заробітна плата за грудень 2016р.,26004100001777,state,4025.00,Кучеренко Андрій Ігорович,,фізична особа
НАРОДНИЙ ФРОНТ,"Херсонська область, Херсон",84,2016-12-26,1318,"Заробітна плата, премії","Заробітна плата, лікарняні, вагітності, відрядження, компенсації",389069,Центральний офіс,39181335,Україна,Заробітна плата за грудень 2016р.,26004100001777,state,1646.59,Богданов Ярослав Якович,,фізична особа
НАРОДНИЙ ФРОНТ,"Херсонська область, Верхньорогачицький район, Верхній Рогачик",84,2016-12-26,1321,"Заробітна плата, премії","Заробітна плата, лікарняні, вагітності, відрядження, компенсації",389068,Центральний офіс,39181335,Україна,Заробітна плата за грудень 2016р.,26004100001777,state,2195.45,Вересенко Інна Олександрівна,,фізична особа
НАРОДНИЙ ФРОНТ,"Херсонська область, Херсон",84,2016-12-26,1324,"Заробітна плата, премії","Заробітна плата, лікарняні, вагітності, відрядження, компенсації",389067,Центральний офіс,39181335,Україна,Заробітна плата за грудень 2016р.,26004100001777,state,4025.00,Гасаненко Віталій Геннадійович,,фізична особа
НАРОДНИЙ ФРОНТ,"Херсонська область, Херсон",84,2016-12-26,1322,"Заробітна плата, премії","Заробітна плата, лікарняні, вагітності, відрядження, компенсації",389066,Центральний офіс,39181335,Україна,Заробітна плата за грудень 2016р.,26004100001777,state,5635.00,Виноградова Ольга Олександрівна,,фізична особа
НАРОДНИЙ ФРОНТ,"Херсонська область, Генічеський район, Генічеськ",84,2016-12-26,1323,"Заробітна плата, премії","Заробітна плата, лікарняні, вагітності, відрядження, компенсації",389065,Центральний офіс,39181335,Україна,Заробітна плата за грудень 2016р.,26004100001777,state,4025.00,Гапченко Галина Миколаївна,,фізична особа
НАРОДНИЙ ФРОНТ,"Херсонська область, Чаплинський район, Чаплинка",84,2016-12-26,1320,"Заробітна плата, премії","Заробітна плата, лікарняні, вагітності, відрядження, компенсації",389064,Центральний офіс,39181335,Україна,Заробітна плата за грудень 2016р.,26004100001777,state,4025.00,Буренко Олег Анатолійович,,фізична особа
НАРОДНИЙ ФРОНТ,"Херсонська область, Олешківський район, Олешки",84,2016-12-26,1317,"Заробітна плата, премії","Заробітна плата, лікарняні, вагітності, відрядження, компенсації",389063,Центральний офіс,39181335,Україна,Заробітна плата за грудень 2016р.,26004100001777,state,4025.00,Дроговоз Антон Ігорович,,фізична особа
НАРОДНИЙ ФРОНТ,"Херсонська область, Херсон",84,2016-12-26,1319,"Заробітна плата, премії","Заробітна плата, лікарняні, вагітності, відрядження, компенсації",389062,Центральний офіс,39181335,Україна,Заробітна плата за грудень 2016р.,26004100001777,state,4025.00,Бургар Оксана Михайлівна,,фізична особа
НАРОДНИЙ ФРОНТ,"Херсонська область, Голопристанський район, Гола Пристань",84,2016-12-26,1316,"Заробітна плата, премії","Заробітна плата, лікарняні, вагітності, відрядження, компенсації",389061,Центральний офіс,39181335,Україна,Заробітна плата за грудень 2016р.,26004100001777,state,2195.45,Черемис Катерина Олексіївна,,фізична особа
НАРОДНИЙ ФРОНТ,"Херсонська область, Бериславський район, Берислав",84,2016-12-26,1315,"Заробітна плата, премії","Заробітна плата, лікарняні, вагітності, відрядження, компенсації",389060,Центральний офіс,39181335,Україна,Заробітна плата за грудень 2016р.,26004100001777,state,4025.00,Удод Антон Олександрович,,фізична особа
НАРОДНИЙ ФРОНТ,"Херсонська область, Каховка",84,2016-12-26,1314,"Заробітна плата, премії","Заробітна плата, лікарняні, вагітності, відрядження, компенсації",389059,Центральний офіс,39181335,Україна,Заробітна плата за грудень 2016р.,26004100001777,state,4025.00,Скорін Володимир Анатолійович,,фізична особа
НАРОДНИЙ ФРОНТ,"Херсонська область, Високопільський район, Архангельське",84,2016-12-26,1313,"Заробітна плата, премії","Заробітна плата, лікарняні, вагітності, відрядження, компенсації",389058,Центральний офіс,39181335,Україна,Заробітна плата за грудень 2016р.,26004100001777,state,2195.45,Саввіна Любов Іванівна,,фізична особа
НАРОДНИЙ ФРОНТ,"Херсонська область, Херсон",84,2016-12-26,1312,"Заробітна плата, премії","Заробітна плата, лікарняні, вагітності, відрядження, компенсації",389057,Центральний офіс,39181335,Україна,Заробітна плата за грудень 2016р.,26004100001777,state,4025.00,Риженко Костянтин Олександрович,,фізична особа
НАРОДНИЙ ФРОНТ,"Херсонська область, Великолепетиський район, Велика Лепетиха",84,2016-12-26,1311,"Заробітна плата, премії","Заробітна плата, лікарняні, вагітності, відрядження, компенсації",389056,Центральний офіс,39181335,Україна,Заробітна плата за грудень 2016р.,26004100001777,state,4025.00,Продай Юрій Іванович,,фізична особа
НАРОДНИЙ ФРОНТ,"Херсонська область, Каланчацький район, Каланчак",84,2016-12-26,1310,"Заробітна плата, премії","Заробітна плата, лікарняні, вагітності, відрядження, компенсації",389055,Центральний офіс,39181335,Україна,Заробітна плата за грудень 2016р.,26004100001777,state,4025.00,Пономарчук Інна Володимирівна,,фізична особа
НАРОДНИЙ ФРОНТ,"Херсонська область, Нижньосірогозький район, Нижні Сірогози",84,2016-12-26,1309,"Заробітна плата, премії","Заробітна плата, лікарняні, вагітності, відрядження, компенсації",389054,Центральний офіс,39181335,Україна,Заробітна плата за грудень 2016р.,26004100001777,state,4025.00,Перепросов Володимир Вікторович,,фізична особа
НАРОДНИЙ ФРОНТ,"Херсонська область, Херсон",84,2016-12-26,1308,"Заробітна плата, премії","Заробітна плата, лікарняні, вагітності, відрядження, компенсації",389053,Центральний офіс,39181335,Україна,Заробітна плата за грудень 2016р.,26004100001777,state,5635.00,Пастух Оксана Вікторівна,,фізична особа
НАРОДНИЙ ФРОНТ,"Херсонська область, Новотроїцький район, Новотроїцьке",84,2016-12-26,1307,"Заробітна плата, премії","Заробітна плата, лікарняні, вагітності, відрядження, компенсації",389052,Центральний офіс,39181335,Україна,Заробітна плата за грудень 2016р.,26004100001777,state,4025.00,Мороз Ольга Степанівна,,фізична особа
НАРОДНИЙ ФРОНТ,"Одеська область, Березівський район, Березівка",84,2016-12-26,1298,"Заробітна плата, премії","Заробітна плата, лікарняні, вагітності, відрядження, компенсації",389051,Центральний офіс,39181335,Україна,Премія за 2016р.,26004100001777,state,3220.00,Шевчук Анатолій Васильович,,фізична особа
НАРОДНИЙ ФРОНТ,"Одеська область, Іванівський район, Іванівка",84,2016-12-26,1297,"Заробітна плата, премії","Заробітна плата, лікарняні, вагітності, відрядження, компенсації",389050,Центральний офіс,39181335,Україна,Премія за 2016р.,26004100001777,state,3220.00,Шевченко Лідія Анатоліївна,,фізична особа
НАРОДНИЙ ФРОНТ,"Одеська область, Балтський район, Ракулове",84,2016-12-26,1296,"Заробітна плата, премії","Заробітна плата, лікарняні, вагітності, відрядження, компенсації",389049,Центральний офіс,39181335,Україна,Премія за 2016р.,26004100001777,state,3220.00,Орленко Ольга Петрівна,,фізична особа
НАРОДНИЙ ФРОНТ,"Одеська область, Болградський район, Новий Каракурт",84,2016-12-26,1295,"Заробітна плата, премії","Заробітна плата, лікарняні, вагітності, відрядження, компенсації",389048,Центральний офіс,39181335,Україна,Премія за 2016р.,26004100001777,state,3220.00,Окоркова Тетяна Кирилівна,,фізична особа
НАРОДНИЙ ФРОНТ,"Одеська область, Окнянський район, Окни",84,2016-12-26,1294,"Заробітна плата, премії","Заробітна плата, лікарняні, вагітності, відрядження, компенсації",389047,Центральний офіс,39181335,Україна,Премія за 2016р.,26004100001777,state,3220.00,Москул Ольга Володимирівна,,фізична особа
НАРОДНИЙ ФРОНТ,"Миколаївська область, Березанський район, Коблеве",84,2016-12-26,1293,"Заробітна плата, премії","Заробітна плата, лікарняні, вагітності, відрядження, компенсації",389046,Центральний офіс,39181335,Україна,Премія за 2016р.,26004100001777,state,4025.00,Лозко Вікторія Олександрівна,,фізична особа
НАРОДНИЙ ФРОНТ,"Одеська область, Саратський район, Плахтіївка",84,2016-12-26,1292,"Заробітна плата, премії","Заробітна плата, лікарняні, вагітності, відрядження, компенсації",389045,Центральний офіс,39181335,Україна,Премія за 2016р.,26004100001777,state,3220.00,Кошельник Олег Григорович,,фізична особа
НАРОДНИЙ ФРОНТ,"Одеська область, Ізмаїльський район, Ізмаїл",84,2016-12-26,1291,"Заробітна плата, премії","Заробітна плата, лікарняні, вагітності, відрядження, компенсації",389044,Центральний офіс,39181335,Україна,Премія за 2016р.,26004100001777,state,4025.00,Капко Наталія Іванівна,,фізична особа
НАРОДНИЙ ФРОНТ,"Одеська область, Чорноморськ",84,2016-12-26,1290,"Заробітна плата, премії","Заробітна плата, лікарняні, вагітності, відрядження, компенсації",389043,Центральний офіс,39181335,Україна,Премія за 2016р.,26004100001777,state,4025.00,Зінченко Ольга Сергіївна,,фізична особа
НАРОДНИЙ ФРОНТ,"Одеська область, Татарбунарський район, Татарбунари",84,2016-12-26,1289,"Заробітна плата, премії","Заробітна плата, лікарняні, вагітності, відрядження, компенсації",389042,Центральний офіс,39181335,Україна,Премія за 2016р.,26004100001777,state,3220.00,Демченко Світлана Павлівна,,фізична особа
НАРОДНИЙ ФРОНТ,"Одеська область, Ананьївський район, Ананьїв",84,2016-12-26,1288,"Заробітна плата, премії","Заробітна плата, лікарняні, вагітності, відрядження, компенсації",389041,Центральний офіс,39181335,Україна,Премія за 2016р.,26004100001777,state,3220.00,Григорашенко Ганна Андріївна,,фізична особа
НАРОДНИЙ ФРОНТ,"Волинська область, Ківерцівський район, Озерце",84,2016-12-26,1287,"Заробітна плата, премії","Заробітна плата, лікарняні, вагітності, відрядження, компенсації",389040,Центральний офіс,39181335,Україна,Премія за 2016р.,26004100001777,state,3220.00,Гойло Наталія Олександрівна,,фізична особа
НАРОДНИЙ ФРОНТ,"Одеська область, Савранський район, Саврань",84,2016-12-26,1286,"Заробітна плата, премії","Заробітна плата, лікарняні, вагітності, відрядження, компенсації",389039,Центральний офіс,39181335,Україна,Премія за 2016р.,26004100001777,state,3220.00,Будик Ольга Миколаївна,,фізична особа
НАРОДНИЙ ФРОНТ,"Одеська область, Ізмаїльський район, Утконосівка",84,2016-12-26,1285,"Заробітна плата, премії","Заробітна плата, лікарняні, вагітності, відрядження, компенсації",389038,Центральний офіс,39181335,Україна,Премія за 2016р.,26004100001777,state,3220.00,Бабаян Інга Валеріївна,,фізична особа
НАРОДНИЙ ФРОНТ,"Одеська область, Березівський район, Березівка",84,2016-12-26,1284,"Заробітна плата, премії","Заробітна плата, лікарняні, вагітності, відрядження, компенсації",389037,Центральний офіс,39181335,Україна,Заробітна плата за грудень 2016р.,26004100001777,state,3220.00,Шевчук Анатолій Васильович,,фізична особа
НАРОДНИЙ ФРОНТ,"Одеська область, Іванівський район, Іванівка",84,2016-12-26,1283,"Заробітна плата, премії","Заробітна плата, лікарняні, вагітності, відрядження, компенсації",389036,Центральний офіс,39181335,Україна,Заробітна плата за грудень 2016р.,26004100001777,state,3220.00,Шевченко Лідія Анатоліївна,,фізична особа
НАРОДНИЙ ФРОНТ,"Одеська область, Балтський район, Ракулове",84,2016-12-26,1282,"Заробітна плата, премії","Заробітна плата, лікарняні, вагітності, відрядження, компенсації",389035,Центральний офіс,39181335,Україна,Заробітна плата за грудень 2016р.,26004100001777,state,3220.00,Орленко Ольга Петрівна,,фізична особа
НАРОДНИЙ ФРОНТ,"Одеська область, Болградський район, Новий Каракурт",84,2016-12-26,1281,"Заробітна плата, премії","Заробітна плата, лікарняні, вагітності, відрядження, компенсації",389034,Центральний офіс,39181335,Україна,Заробітна плата за грудень 2016р.,26004100001777,state,3220.00,Окоркова Тетяна Кирилівна,,фізична особа
НАРОДНИЙ ФРОНТ,"Одеська область, Окнянський район, Окни",84,2016-12-26,1280,"Заробітна плата, премії","Заробітна плата, лікарняні, вагітності, відрядження, компенсації",389033,Центральний офіс,39181335,Україна,Заробітна плата за грудень 2016р.,26004100001777,state,2341.82,Москул Ольга Володимирівна,,фізична особа
НАРОДНИЙ ФРОНТ,"Миколаївська область, Березанський район, Коблеве",84,2016-12-26,1279,"Заробітна плата, премії","Заробітна плата, лікарняні, вагітності, відрядження, компенсації",389032,Центральний офіс,39181335,Україна,Заробітна плата за грудень 2016р.,26004100001777,state,3293.18,Лозко Вікторія Олександрівна,,фізична особа
НАРОДНИЙ ФРОНТ,"Одеська область, Саратський район, Плахтіївка",84,2016-12-26,1278,"Заробітна плата, премії","Заробітна плата, лікарняні, вагітності, відрядження, компенсації",389031,Центральний офіс,39181335,Україна,Заробітна плата за грудень 2016р.,26004100001777,state,1463.64,Кошельник Олег Григорович,,фізична особа
НАРОДНИЙ ФРОНТ,"Одеська область, Ізмаїльський район, Ізмаїл",84,2016-12-26,1277,"Заробітна плата, премії","Заробітна плата, лікарняні, вагітності, відрядження, компенсації",389030,Центральний офіс,39181335,Україна,Заробітна плата за грудень 2016р.,26004100001777,state,4025.00,Капко Наталія Іванівна,,фізична особа
НАРОДНИЙ ФРОНТ,"Одеська область, Чорноморськ",84,2016-12-26,1276,"Заробітна плата, премії","Заробітна плата, лікарняні, вагітності, відрядження, компенсації",389029,Центральний офіс,39181335,Україна,Заробітна плата за грудень 2016р.,26004100001777,state,4025.00,Зінченко Ольга Сергіївна,,фізична особа
НАРОДНИЙ ФРОНТ,"Одеська область, Татарбунарський район, Татарбунари",84,2016-12-26,1275,"Заробітна плата, премії","Заробітна плата, лікарняні, вагітності, відрядження, компенсації",389028,Центральний офіс,39181335,Україна,Заробітна плата за грудень 2016р.,26004100001777,state,2195.45,Демченко Світлана Павлівна,,фізична особа
НАРОДНИЙ ФРОНТ,"Одеська область, Ананьївський район, Ананьїв",84,2016-12-26,1274,"Заробітна плата, премії","Заробітна плата, лікарняні, вагітності, відрядження, компенсації",389027,Центральний офіс,39181335,Україна,Заробітна плата за грудень 2016р.,26004100001777,state,2634.55,Григорашенко Ганна Андріївна,,фізична особа
НАРОДНИЙ ФРОНТ,"Волинська область, Ківерцівський район, Озерце",84,2016-12-26,1273,"Заробітна плата, премії","Заробітна плата, лікарняні, вагітності, відрядження, компенсації",389026,Центральний офіс,39181335,Україна,Заробітна плата за грудень 2016р.,26004100001777,state,1317.27,Гойло Наталія Олександрівна,,фізична особа
НАРОДНИЙ ФРОНТ,"Одеська область, Савранський район, Саврань",84,2016-12-26,1272,"Заробітна плата, премії","Заробітна плата, лікарняні, вагітності, відрядження, компенсації",389025,Центральний офіс,39181335,Україна,Заробітна плата за грудень 2016р.,26004100001777,state,3220.00,Будик Ольга Миколаївна,,фізична особа
НАРОДНИЙ ФРОНТ,"Одеська область, Ізмаїльський район, Утконосівка",84,2016-12-26,1271,"Заробітна плата, премії","Заробітна плата, лікарняні, вагітності, відрядження, компенсації",389024,Центральний офіс,39181335,Україна,Заробітна плата за грудень 2016р.,26004100001777,state,2634.55,Бабаян Інга Валеріївна,,фізична особа
НАРОДНИЙ ФРОНТ,"Запорізька область, Якимівський район, Якимівка",84,2016-12-26,1270,"Заробітна плата, премії","Заробітна плата, лікарняні, вагітності, відрядження, компенсації",389023,Центральний офіс,39181335,Україна,Премія за 2016р.,26004100001777,state,3220.00,Чаплигін Віктор Тимофійович,,фізична особа
НАРОДНИЙ ФРОНТ,"Запорізька область, Якимівський район, Якимівка",84,2016-12-26,1269,"Заробітна плата, премії","Заробітна плата, лікарняні, вагітності, відрядження, компенсації",389022,Центральний офіс,39181335,Україна,Заробітна плата за грудень 2016р.,26004100001777,state,3220.00,Чаплигін Віктор Тимофійович,,фізична особа
НАРОДНИЙ ФРОНТ,"Донецька область, Новогродівка",84,2016-12-26,1268,"Заробітна плата, премії","Заробітна плата, лікарняні, вагітності, відрядження, компенсації",389021,Центральний офіс,39181335,Україна,Премія за 2016р.,26004100001777,state,4025.00,Єрохіна Галина Володимирівна,,фізична особа
НАРОДНИЙ ФРОНТ,"Донецька область, Костянтинівка",84,2016-12-26,1267,"Заробітна плата, премії","Заробітна плата, лікарняні, вагітності, відрядження, компенсації",389020,Центральний офіс,39181335,Україна,Премія за 2016р.,26004100001777,state,4025.00,Манькова Ганна Олександрівна,,фізична особа
НАРОДНИЙ ФРОНТ,"Донецька область, Волноваський район, Волноваха",84,2016-12-26,1266,"Заробітна плата, премії","Заробітна плата, лікарняні, вагітності, відрядження, компенсації",389019,Центральний офіс,39181335,Україна,Премія за 2016р.,26004100001777,state,4025.00,Горбань Лідія Михайлівна,,фізична особа
НАРОДНИЙ ФРОНТ,"Донецька область, Бахмут",84,2016-12-26,1265,"Заробітна плата, премії","Заробітна плата, лікарняні, вагітності, відрядження, компенсації",389018,Центральний офіс,39181335,Україна,Премія за 2016р.,26004100001777,state,4025.00,Гончарова Наталя Вікторівна,,фізична особа
НАРОДНИЙ ФРОНТ,"Донецька область, Маріуполь",84,2016-12-26,1264,"Заробітна плата, премії","Заробітна плата, лікарняні, вагітності, відрядження, компенсації",389017,Центральний офіс,39181335,Україна,Премія за 2016р.,26004100001777,state,4025.00,Алейнікова Юлія Олександрівна,,фізична особа
НАРОДНИЙ ФРОНТ,"Донецька область, Авдіївка",84,2016-12-26,1263,"Заробітна плата, премії","Заробітна плата, лікарняні, вагітності, відрядження, компенсації",389016,Центральний офіс,39181335,Україна,Премія за 2016р.,26004100001777,state,4025.00,Холостенко Наталя Віталіївна,,фізична особа
НАРОДНИЙ ФРОНТ,"Донецька область, Донецьк",84,2016-12-26,1262,"Заробітна плата, премії","Заробітна плата, лікарняні, вагітності, відрядження, компенсації",389015,Центральний офіс,39181335,Україна,Премія за 2016р.,26004100001777,state,5635.00,Буслов Віктор Юрійович,,фізична особа
НАРОДНИЙ ФРОНТ,"Донецька область, Мар'їнський район, Курахове",84,2016-12-26,1261,"Заробітна плата, премії","Заробітна плата, лікарняні, вагітності, відрядження, компенсації",389014,Центральний офіс,39181335,Україна,Премія за 2016р.,26004100001777,state,4025.00,Ємеліна Наталя Євгенівна,,фізична особа
НАРОДНИЙ ФРОНТ,"Донецька область, Маріуполь",84,2016-12-26,1260,"Заробітна плата, премії","Заробітна плата, лікарняні, вагітності, відрядження, компенсації",389013,Центральний офіс,39181335,Україна,Премія за 2016р.,26004100001777,state,4025.00,Колікова Катерина Олександрівна,,фізична особа
НАРОДНИЙ ФРОНТ,"Донецька область, Олександрівський район, Софіївка",84,2016-12-26,1259,"Заробітна плата, премії","Заробітна плата, лікарняні, вагітності, відрядження, компенсації",389012,Центральний офіс,39181335,Україна,Премія за 2016р.,26004100001777,state,4025.00,Семенов Олексій Іванович,,фізична особа
НАРОДНИЙ ФРОНТ,"Донецька область, Маріуполь",84,2016-12-26,1258,"Заробітна плата, премії","Заробітна плата, лікарняні, вагітності, відрядження, компенсації",389011,Центральний офіс,39181335,Україна,Премія за 2016р.,26004100001777,state,5635.00,Чирипуха Ганна Іванівна,,фізична особа
НАРОДНИЙ ФРОНТ,"Донецька область, Костянтинівка",84,2016-12-26,1257,"Заробітна плата, премії","Заробітна плата, лікарняні, вагітності, відрядження, компенсації",389010,Центральний офіс,39181335,Україна,Премія за 2016р.,26004100001777,state,4025.00,Гнипа Юлія Віталіївна,,фізична особа
НАРОДНИЙ ФРОНТ,"Донецька область, Бахмут",84,2016-12-26,1256,"Заробітна плата, премії","Заробітна плата, лікарняні, вагітності, відрядження, компенсації",389009,Центральний офіс,39181335,Україна,Премія за 2016р.,26004100001777,state,4025.00,Мартиненко Євгенія Вікторівна,,фізична особа
НАРОДНИЙ ФРОНТ,"Донецька область, Маріуполь",84,2016-12-26,1255,"Заробітна плата, премії","Заробітна плата, лікарняні, вагітності, відрядження, компенсації",389008,Центральний офіс,39181335,Україна,Премія за 2016р.,26004100001777,state,4025.00,Калініна Наталя Петрівна,,фізична особа
НАРОДНИЙ ФРОНТ,"Донецька область, Донецьк",84,2016-12-26,1254,"Заробітна плата, премії","Заробітна плата, лікарняні, вагітності, відрядження, компенсації",389007,Центральний офіс,39181335,Україна,Премія за 2016р.,26004100001777,state,5635.00,Писаренко Віталій Сергійович,,фізична особа
НАРОДНИЙ ФРОНТ,"Дніпропетровська область, Дніпро́",84,2016-12-26,1253,"Заробітна плата, премії","Заробітна плата, лікарняні, вагітності, відрядження, компенсації",389006,Центральний офіс,39181335,Україна,Премія за 2016р.,26004100001777,state,4025.00,Попова Людмила Дмитрівна,,фізична особа
НАРОДНИЙ ФРОНТ,"Донецька область, Маріуполь",84,2016-12-26,1252,"Заробітна плата, премії","Заробітна плата, лікарняні, вагітності, відрядження, компенсації",389005,Центральний офіс,39181335,Україна,Премія за 2016р.,26004100001777,state,4025.00,Корольов Володимир Іванович,,фізична особа
НАРОДНИЙ ФРОНТ,"Донецька область, Маріуполь",84,2016-12-26,1251,"Заробітна плата, премії","Заробітна плата, лікарняні, вагітності, відрядження, компенсації",389004,Центральний офіс,39181335,Україна,Премія за 2016р.,26004100001777,state,5635.00,Аленіна Вікторія Олександрівна,,фізична особа
НАРОДНИЙ ФРОНТ,"Донецька область, Новогродівка",84,2016-12-26,1250,"Заробітна плата, премії","Заробітна плата, лікарняні, вагітності, відрядження, компенсації",389003,Центральний офіс,39181335,Україна,Заробітна плата за грудень 2016р.,26004100001777,state,1646.59,Єрохіна Галина Володимирівна,,фізична особа
НАРОДНИЙ ФРОНТ,"Донецька область, Костянтинівка",84,2016-12-26,1249,"Заробітна плата, премії","Заробітна плата, лікарняні, вагітності, відрядження, компенсації",389002,Центральний офіс,39181335,Україна,Заробітна плата за грудень 2016р.,26004100001777,state,1646.59,Манькова Ганна Олександрівна,,фізична особа
НАРОДНИЙ ФРОНТ,"Донецька область, Волноваський район, Волноваха",84,2016-12-26,1248,"Заробітна плата, премії","Заробітна плата, лікарняні, вагітності, відрядження, компенсації",389001,Центральний офіс,39181335,Україна,Заробітна плата за грудень 2016р.,26004100001777,state,4025.00,Горбань Лідія Михайлівна,,фізична особа
НАРОДНИЙ ФРОНТ,"Донецька область, Бахмут",84,2016-12-26,1247,"Заробітна плата, премії","Заробітна плата, лікарняні, вагітності, відрядження, компенсації",389000,Центральний офіс,39181335,Україна,Заробітна плата за грудень 2016р.,26004100001777,state,1646.59,Гончарова Наталя Вікторівна,,фізична особа
НАРОДНИЙ ФРОНТ,"Донецька область, Маріуполь",84,2016-12-26,1246,"Заробітна плата, премії","Заробітна плата, лікарняні, вагітності, відрядження, компенсації",388999,Центральний офіс,39181335,Україна,Заробітна плата за грудень 2016р.,26004100001777,state,2744.32,Алейнікова Юлія Олександрівна,,фізична особа
НАРОДНИЙ ФРОНТ,"Донецька область, Авдіївка",84,2016-12-26,1245,"Заробітна плата, премії","Заробітна плата, лікарняні, вагітності, відрядження, компенсації",388998,Центральний офіс,39181335,Україна,Заробітна плата за грудень 2016р.,26004100001777,state,1646.59,Холостенко Наталя Віталіївна,,фізична особа
НАРОДНИЙ ФРОНТ,"Донецька область, Донецьк",84,2016-12-26,1244,"Заробітна плата, премії","Заробітна плата, лікарняні, вагітності, відрядження, компенсації",388997,Центральний офіс,39181335,Україна,Заробітна плата за грудень 2016р.,26004100001777,state,2305.23,Буслов Віктор Юрійович,,фізична особа
НАРОДНИЙ ФРОНТ,"Донецька область, Мар'їнський район, Курахове",84,2016-12-26,1243,"Заробітна плата, премії","Заробітна плата, лікарняні, вагітності, відрядження, компенсації",388996,Центральний офіс,39181335,Україна,Заробітна плата за грудень 2016р.,26004100001777,state,4025.00,Ємеліна Наталя Євгенівна,,фізична особа
НАРОДНИЙ ФРОНТ,"Донецька область, Маріуполь",84,2016-12-26,1242,"Заробітна плата, премії","Заробітна плата, лікарняні, вагітності, відрядження, компенсації",388995,Центральний офіс,39181335,Україна,Заробітна плата за грудень 2016р.,26004100001777,state,1646.59,Колікова Катерина Олександрівна,,фізична особа
НАРОДНИЙ ФРОНТ,"Донецька область, Олександрівський район, Софіївка",84,2016-12-26,1241,"Заробітна плата, премії","Заробітна плата, лікарняні, вагітності, відрядження, компенсації",388994,Центральний офіс,39181335,Україна,Заробітна плата за грудень 2016р.,26004100001777,state,1646.59,Семенов Олексій Іванович,,фізична особа
НАРОДНИЙ ФРОНТ,"Донецька область, Маріуполь",84,2016-12-26,1240,"Заробітна плата, премії","Заробітна плата, лікарняні, вагітності, відрядження, компенсації",388993,Центральний офіс,39181335,Україна,Заробітна плата за грудень 2016р.,26004100001777,state,5635.00,Чирипуха Ганна Іванівна,,фізична особа
НАРОДНИЙ ФРОНТ,"Донецька область, Костянтинівка",84,2016-12-26,1239,"Заробітна плата, премії","Заробітна плата, лікарняні, вагітності, відрядження, компенсації",388992,Центральний офіс,39181335,Україна,Заробітна плата за грудень 2016р.,26004100001777,state,1646.59,Гнипа Юлія Віталіївна,,фізична особа
НАРОДНИЙ ФРОНТ,"Донецька область, Бахмут",84,2016-12-26,1238,"Заробітна плата, премії","Заробітна плата, лікарняні, вагітності, відрядження, компенсації",388991,Центральний офіс,39181335,Україна,Заробітна плата за грудень 2016р.,26004100001777,state,1646.59,Мартиненко Євгенія Вікторівна,,фізична особа
НАРОДНИЙ ФРОНТ,"Донецька область, Маріуполь",84,2016-12-26,1237,"Заробітна плата, премії","Заробітна плата, лікарняні, вагітності, відрядження, компенсації",388990,Центральний офіс,39181335,Україна,Заробітна плата за грудень 2016р.,26004100001777,state,1646.59,Калініна Наталя Петрівна,,фізична особа
НАРОДНИЙ ФРОНТ,"Донецька область, Донецьк",84,2016-12-26,1236,"Заробітна плата, премії","Заробітна плата, лікарняні, вагітності, відрядження, компенсації",388989,Центральний офіс,39181335,Україна,Заробітна плата за грудень 2016р.,26004100001777,state,2305.23,Писаренко Віталій Сергійович,,фізична особа
НАРОДНИЙ ФРОНТ,"Дніпропетровська область, Дніпро́",84,2016-12-26,1235,"Заробітна плата, премії","Заробітна плата, лікарняні, вагітності, відрядження, компенсації",388988,Центральний офіс,39181335,Україна,Заробітна плата за грудень 2016р.,26004100001777,state,4025.00,Попова Людмила Дмитрівна,,фізична особа
НАРОДНИЙ ФРОНТ,"Донецька область, Маріуполь",84,2016-12-26,1234,"Заробітна плата, премії","Заробітна плата, лікарняні, вагітності, відрядження, компенсації",388987,Центральний офіс,39181335,Україна,Заробітна плата за грудень 2016р.,26004100001777,state,3293.18,Корольов Володимир Іванович,,фізична особа
НАРОДНИЙ ФРОНТ,"Донецька область, Маріуполь",84,2016-12-26,1233,"Заробітна плата, премії","Заробітна плата, лікарняні, вагітності, відрядження, компенсації",388986,Центральний офіс,39181335,Україна,Заробітна плата за грудень 2016р.,26004100001777,state,5635.00,Аленіна Вікторія Олександрівна,,фізична особа
НАРОДНИЙ ФРОНТ,"Запорізька область, Запоріжжя",84,2016-12-26,232,"Заробітна плата, премії","Заробітна плата, лікарняні, вагітності, відрядження, компенсації",388985,Центральний офіс,39181335,Україна,Премія за 2016р.,26004100001777,state,4830.00,Шугай Олена Олександрівна,,фізична особа
НАРОДНИЙ ФРОНТ,"Запорізька область, Веселівський район, Веселе",84,2016-12-26,231,"Заробітна плата, премії","Заробітна плата, лікарняні, вагітності, відрядження, компенсації",388984,Центральний офіс,39181335,Україна,Премія за 2016р.,26004100001777,state,3220.00,Чернишов Олександр Анатолійович,,фізична особа
НАРОДНИЙ ФРОНТ,"Запорізька область, Запоріжжя",84,2016-12-26,230,"Заробітна плата, премії","Заробітна плата, лікарняні, вагітності, відрядження, компенсації",388983,Центральний офіс,39181335,Україна,Премія за 2016р.,26004100001777,state,3220.00,Філіпченко Юрій Юрійович,,фізична особа
НАРОДНИЙ ФРОНТ,"Запорізька область, Приазовський район, Приазовське",84,2016-12-26,229,"Заробітна плата, премії","Заробітна плата, лікарняні, вагітності, відрядження, компенсації",388982,Центральний офіс,39181335,Україна,Премія за 2016р.,26004100001777,state,3220.00,Срібний Олексій Григорович,,фізична особа
НАРОДНИЙ ФРОНТ,"Запорізька область, Бердянськ",84,2016-12-26,228,"Заробітна плата, премії","Заробітна плата, лікарняні, вагітності, відрядження, компенсації",388981,Центральний офіс,39181335,Україна,Премія за 2016р.,26004100001777,state,4830.00,Сажнєв Олег Вячеславович,,фізична особа
НАРОДНИЙ ФРОНТ,"Запорізька область, Оріхівський район, Оріхів",84,2016-12-26,227,"Заробітна плата, премії","Заробітна плата, лікарняні, вагітності, відрядження, компенсації",388980,Центральний офіс,39181335,Україна,Премія за 2016р.,26004100001777,state,3220.00,Рогозна Наталія Анатоліївна,,фізична особа
НАРОДНИЙ ФРОНТ,"Запорізька область, Бердянськ",84,2016-12-26,226,"Заробітна плата, премії","Заробітна плата, лікарняні, вагітності, відрядження, компенсації",388979,Центральний офіс,39181335,Україна,Премія за 2016р.,26004100001777,state,3220.00,Пономаренко Геннадій Владиславович,,фізична особа
НАРОДНИЙ ФРОНТ,"Запорізька область, Пологівський район, Пологи",84,2016-12-26,225,"Заробітна плата, премії","Заробітна плата, лікарняні, вагітності, відрядження, компенсації",388978,Центральний офіс,39181335,Україна,Премія за 2016р.,26004100001777,state,3220.00,Полянський Олександр Станіславович,,фізична особа
НАРОДНИЙ ФРОНТ,"Запорізька область, Запоріжжя",84,2016-12-26,224,"Заробітна плата, премії","Заробітна плата, лікарняні, вагітності, відрядження, компенсації",388977,Центральний офіс,39181335,Україна,Премія за 2016р.,26004100001777,state,4830.00,Останькович Олена Миколаївна,,фізична особа
НАРОДНИЙ ФРОНТ,"Запорізька область, Запоріжжя",84,2016-12-26,223,"Заробітна плата, премії","Заробітна плата, лікарняні, вагітності, відрядження, компенсації",388976,Центральний офіс,39181335,Україна,Премія за 2016р.,26004100001777,state,4830.00,Надєін Геннадій Сергійович,,фізична особа
НАРОДНИЙ ФРОНТ,"Запорізька область, Токмак",84,2016-12-26,222,"Заробітна плата, премії","Заробітна плата, лікарняні, вагітності, відрядження, компенсації",388975,Центральний офіс,39181335,Україна,Премія за 2016р.,26004100001777,state,3220.00,Мітленко Юрій Валентинович,,фізична особа
НАРОДНИЙ ФРОНТ,"Запорізька область, Вільнянський район, Вільнянськ",84,2016-12-26,221,"Заробітна плата, премії","Заробітна плата, лікарняні, вагітності, відрядження, компенсації",388974,Центральний офіс,39181335,Україна,Премія за 2016р.,26004100001777,state,3220.00,Линник Ірина Григорівна,,фізична особа
НАРОДНИЙ ФРОНТ,"Запорізька область, Приморський район, Приморськ",84,2016-12-26,220,"Заробітна плата, премії","Заробітна плата, лікарняні, вагітності, відрядження, компенсації",388973,Центральний офіс,39181335,Україна,Премія за 2016р.,26004100001777,state,3220.00,Леонов Сергій Анатолійович,,фізична особа
НАРОДНИЙ ФРОНТ,"Запорізька область, Запоріжжя",84,2016-12-26,219,"Заробітна плата, премії","Заробітна плата, лікарняні, вагітності, відрядження, компенсації",388972,Центральний офіс,39181335,Україна,Премія за 2016р.,26004100001777,state,4830.00,Кузьменко Вадим Володимирович,,фізична особа
НАРОДНИЙ ФРОНТ,"Запорізька область, Великобілозерський район, Велика Білозерка",84,2016-12-26,218,"Заробітна плата, премії","Заробітна плата, лікарняні, вагітності, відрядження, компенсації",388971,Центральний офіс,39181335,Україна,Премія за 2016р.,26004100001777,state,3220.00,Косіков Олег Леонідович,,фізична особа
НАРОДНИЙ ФРОНТ,"Запорізька область, Михайлівський район, Михайлівка",84,2016-12-26,217,"Заробітна плата, премії","Заробітна плата, лікарняні, вагітності, відрядження, компенсації",388970,Центральний офіс,39181335,Україна,Премія за 2016р.,26004100001777,state,3220.00,Козій Наталія Петрівна,,фізична особа
НАРОДНИЙ ФРОНТ,"Запорізька область, Чернігівський район, Чернігівка",84,2016-12-26,216,"Заробітна плата, премії","Заробітна плата, лікарняні, вагітності, відрядження, компенсації",388969,Центральний офіс,39181335,Україна,Премія за 2016р.,26004100001777,state,3220.00,Ільїн Юрій Миколайович,,фізична особа
НАРОДНИЙ ФРОНТ,"Запорізька область, Запоріжжя",84,2016-12-26,215,"Заробітна плата, премії","Заробітна плата, лікарняні, вагітності, відрядження, компенсації",388968,Центральний офіс,39181335,Україна,Премія за 2016р.,26004100001777,state,4830.00,Зуєнко Людмила Миколаївна,,фізична особа
НАРОДНИЙ ФРОНТ,"Запорізька область, Більмацький район, Трудове",84,2016-12-26,214,"Заробітна плата, премії","Заробітна плата, лікарняні, вагітності, відрядження, компенсації",388967,Центральний офіс,39181335,Україна,Премія за 2016р.,26004100001777,state,3220.00,Давва Артем Володимирович,,фізична особа
НАРОДНИЙ ФРОНТ,"Запорізька область, Запоріжжя",84,2016-12-26,213,"Заробітна плата, премії","Заробітна плата, лікарняні, вагітності, відрядження, компенсації",388966,Центральний офіс,39181335,Україна,Премія за 2016р.,26004100001777,state,3220.00,Голіцина Христина Олександрівна,,фізична особа
НАРОДНИЙ ФРОНТ,"Запорізька область, Розівський район, Вишнювате",84,2016-12-26,212,"Заробітна плата, премії","Заробітна плата, лікарняні, вагітності, відрядження, компенсації",388965,Центральний офіс,39181335,Україна,Премія за 2016р.,26004100001777,state,3220.00,Галімбієвська Наталя Федорівна,,фізична особа
НАРОДНИЙ ФРОНТ,"Запорізька область, Запоріжжя",84,2016-12-26,211,"Заробітна плата, премії","Заробітна плата, лікарняні, вагітності, відрядження, компенсації",388964,Центральний офіс,39181335,Україна,Премія за 2016р.,26004100001777,state,3220.00,Бобаль Владислав Миколайович,,фізична особа
НАРОДНИЙ ФРОНТ,"Запорізька область, Запоріжжя",84,2016-12-26,210,"Заробітна плата, премії","Заробітна плата, лікарняні, вагітності, відрядження, компенсації",388963,Центральний офіс,39181335,Україна,Премія за 2016р.,26004100001777,state,4830.00,Біленко Олексій Валерійович,,фізична особа
НАРОДНИЙ ФРОНТ,"Запорізька область, Енергодар",84,2016-12-26,209,"Заробітна плата, премії","Заробітна плата, лікарняні, вагітності, відрядження, компенсації",388962,Центральний офіс,39181335,Україна,Премія за 2016р.,26004100001777,state,4830.00,Балацька Аліна Сергіївна,,фізична особа
НАРОДНИЙ ФРОНТ,"Запорізька область, Василівський район, Василівка",84,2016-12-26,208,"Заробітна плата, премії","Заробітна плата, лікарняні, вагітності, відрядження, компенсації",388961,Центральний офіс,39181335,Україна,Премія за 2016р.,26004100001777,state,3220.00,Астахова Олена Іванівна,,фізична особа
НАРОДНИЙ ФРОНТ,"Запорізька область, Запоріжжя",84,2016-12-26,207,"Заробітна плата, премії","Заробітна плата, лікарняні, вагітності, відрядження, компенсації",388960,Центральний офіс,39181335,Україна,Заробітна плата за грудень 2016р.,26004100001777,state,4830.00,Шугай Олена Олександрівна,,фізична особа
НАРОДНИЙ ФРОНТ,"Запорізька область, Веселівський район, Веселе",84,2016-12-26,206,"Заробітна плата, премії","Заробітна плата, лікарняні, вагітності, відрядження, компенсації",388959,Центральний офіс,39181335,Україна,Заробітна плата за грудень 2016р.,26004100001777,state,2634.55,Чернишов Олександр Анатолійович,,фізична особа
НАРОДНИЙ ФРОНТ,"Запорізька область, Запоріжжя",84,2016-12-26,205,"Заробітна плата, премії","Заробітна плата, лікарняні, вагітності, відрядження, компенсації",388958,Центральний офіс,39181335,Україна,Заробітна плата за грудень 2016р.,26004100001777,state,1902.73,Філіпченко Юрій Юрійович,,фізична особа
